{"text_format":"1","workbook":"xlsx","n_sheets":25,"sheets":["Sheet1","Moshakhasat","savabegh","Article","inovation","book","proposal","conference","responsibility","journals","supervisor","karafarini","doc","maghale","ebda","ketab","tarh","hamayesh","majaleh","masouliat","karafariniii","Rahnama","H index","total","sum"],"not_rendered":{"charts":0,"images":3,"macros":1,"external_links":0,"defined_names":0,"comments":0,"pivot_tables":0},"unopened":[],"bounds":{"document_bytes":16777216,"sheet_cells":100000,"rows_first":2000,"rows_last":500,"rows_between":2000,"halvings":0,"cell_chars":16384,"cell_head_chars":4096},"cells_cut":0,"cells_raw":0,"read":"whole","date_system":"1900"}

{"sheet":"Sheet1","index":0,"n_rows":0,"n_cols":0,"rows_kept":0,"cut":false,"hidden":false,"merged":[[0,0,1048575,16383]]}

{"sheet":"Moshakhasat","index":1,"n_rows":60,"n_cols":8,"rows_kept":60,"cut":false,"hidden":false,"merged":[[28,0,28,1],[18,0,18,1],[16,0,16,1],[28,2,28,5],[49,0,50,1],[44,0,44,1],[48,0,48,1],[30,0,30,1],[32,0,32,1],[36,0,36,1],[42,0,42,1],[38,0,38,1],[46,0,46,1],[34,0,34,1],[20,0,20,1],[40,0,40,1],[0,0,0,1],[4,0,4,1],[8,0,8,1],[10,0,10,1],[6,0,6,1],[12,0,12,1],[24,0,24,1],[26,0,26,1],[14,0,14,1],[1,2,1,5],[22,0,22,1]]}
["به نام خداوند بخشنده ی مهربان"]
["نکات مهم: \n- فقط فعالیت هایی که در بازه زمانی 3 سال گذشته به انجام رسیده اند مشمول امتیاز بوده و مورد ارزیابی قرار خواهند گرفت.\n- شرکت برگزیدگان دوره های قبل، در سایر بخش های جشنواره بلامانع است.\n                    \nراهنما: فایل ثبت نام شامل مراحل مختلفی می باشد و شما برای ارسال هر یک از مستندات درخواست شده در هر قسمت از فرم ثبت نام می توانید از امکان موجود در نرم افزار excel موسوم به Insert Object استفاده کرده و تمام مستندات خود را در صفحه \"مستندات\" بارگذاری نمایید. درغیر این صورت مستندات را به صورت CD به دبیرخانه جشنواره ارسال نمایید. لطفا از کپی پیست کردن اطلاعات در داخل سلول ها خودداری نموده و اطلاعات را صرفا تایپ نمایید. لطفا با استفاده از کلید های تعبیه شده مراحل را طی کنید."]
["مشخصات شرکت کننده","پاسخ های خود را رو به روی هر سوال وارد کنید"]
["نام و نام خانوادگی"]
[]
["کد ملی"]
[]
["لطفا تصویر پرسنلی خود را در باکس آبی رو به رو اضافه کنید."]
[]
["مقطع تحصیلی فعلی  (در صورت دانشجو بودن)"]
[]
["رشته تحصیلی فعلی  (در صورت دانشجو بودن)"]
[]
["آخرین مدرک تحصیلی"]
[]
["تاریخ تولد"]
[]
["سن"]
[]
["شماره تلفن ثابت"]
[]
["  تلفن همراه"]
[]
["آدرس پست الكترونيكي"]
[]
["اگر شاغل هستید محل کار خود را قید کنید: دانشگاه/ دانشكده/مركز تحقيقاتي"]
[]
["محل تحصیل فعلی: دانشکده/پردیس/ مرکز تحقیقات"]
[]
["عناوین مهمترین جوایز و افتخارات (اخذ رتبه ازجشنواره های دانشگاهی، ملی یا بین المللی معتبر و ، ....) خود را مرقوم کنید",null,null,null,null,0]
[null,null,null,null,null,1]
["آیا در جشنواره های قبلی حائز رتبه شده اید؟ لطفا ذکر بفرمائید در کدام محور چه رتبه ای را کسب نموده اید.",null,null,null,null,2]
[null,null,null,null,null,3]
["لینک حساب کاربری Scopus",null,null,null,null,4]
[null,null,null,null,null,5,null,"عضو شورای مرکزی"]
["شاخص اچ (H-index) بدون خود ارجاعی ( از منوی کشویی استفاده کنید)",null,null,null,null,6,null,"عضو هیئت مدیره"]
[null,null,null,null,null,7,null,"عضو عادی"]
["متوسط تعداد ارجاعات به ازای هر مقاله (Citations/number of papers)",null,null,null,null,8,null,"خیر"]
[null,null,null,null,null,9]
["آیا عضو انجمن های علمی مورد تایید وزارت بهداشت هستید؟ (از منوی کشویی استفاده کنید)",null,null,null,null,10,null,"بله"]
[null,null,null,null,null,11,null,"خیر"]
["آیا عضو انجمن علمی بهداشت محیط ایران هستید؟ ( از منوی کشویی استفاده کنید)",null,null,null,null,12]
[null,null,null,null,null,13]
["مدت زمان عضویت پیوسته شما در انجمن علمی بهداشت محیط چند سال می باشد؟",null,null,null,null,14]
[null,null,null,null,null,15]
["کد عضویت در انجمن علمی بهداشت محیط ایران",null,null,null,null,16]
[null,null,null,null,null,17]
["قصد شرکت در کدام محور رادارید؟ ( از منوی کشویی استفاده کنید)",null,null,null,null,18]
[null,null,null,null,null,19]
["برای رفتن به مرحله بعد از منوی  رو به رو ، گزینه سوابق تحصیلی را انتخاب کنید.",null,null,null,null,20]
[null,null,null,null,null,21]
[null,null,null,null,null,"22 و بالاتر"]
[null,"کتاب- تالیف"]
[null,"کتاب - ترجمه"]
[null,"مقاله"]
[null,"پژوهشگر جوان"]
[null,"پایان نامه ارشد"]
[null,"پایان نامه دکتری"]
[null,"مجله"]
[null,"ابداع و اختراع"]

{"sheet":"savabegh","index":2,"n_rows":8,"n_cols":8,"rows_kept":8,"cut":false,"hidden":false,"merged":[[2,0,2,7],[0,8,1048575,13],[0,0,1,7],[8,0,213,7]]}
[]
[]
["جدول 1- سوابق تحصیلی خود را در جدول ذیل مرقوم نمایید:(مقاطع بعد از دیپلم)"]
["معدل","سال پایان/ ادامه دارد","سال شروع","مقطع تحصیلی","محل تحصیل","گرایش","رشته تحصیلی","ردیف"]
[null,null,null,null,null,null,null,1]
[null,null,null,null,null,null,null,2]
[null,null,null,null,null,null,null,3]
[null,null,null,null,null,null,null,4]

{"sheet":"Article","index":3,"n_rows":208,"n_cols":19,"rows_kept":208,"cut":false,"hidden":false,"merged":[[0,0,0,7],[6,0,6,7],[5,0,5,7]]}
[]
[]
[]
[]
[]
["جدول شماره 2: مقالات چاپ شده"]
["توجه: فقط اطلاعات مقالات چاپ شده در 3 سال اخیر را وارد نمایید. به Submission  مقاله امتیازی تعلق نمی گیرد ولی Acceptance مقاله به شرط آنلاین شدن آن مورد قبول است.  ",null,null,null,null,null,null,null,null,null,null,null,null,null,null,null,null,"فارسی","دارد"]
["ردیف","نام مقاله","نام مجله","DOI مقاله ","سال انتشار","نوع مقاله","جایگاه شما در فهرست نويسندگان","محل نمایه مجله",null,null,null,"ISI, PubMed, Medline","Orginal, Systematic Review, Review",1,"اول و یا مسئول",1,"پایان نامه ","انگلیسی","ندارد"]
[1,null,null,null,null,null,null,null,{"$f":"IF(ISBLANK(D9),0,IF(D9=$S$8,0,IF(H9=$L$9,20*VLOOKUP(F9,$M$8:$N$13,2,FALSE)*VLOOKUP(G9,$O$8:$P$11,2,FALSE),IF(H9=$L$10,15*VLOOKUP(F9,$M$8:$N$13,2,FALSE)*VLOOKUP(G9,$O$8:$P$11,2,FALSE),IF(H9=$L$11,5*VLOOKUP(F9,$M$8:$N$13,2,FALSE)*VLOOKUP(G9,$O$8:$P$11,2,FALSE),IF(H9=$L$8,IF(#REF!>1,25*#REF!*VLOOKUP(F9,$M$8:$N$13,2,FALSE)*VLOOKUP(G9,$O$8:$P$11,2,FALSE),25*VLOOKUP(F9,$M$8:$N$13,2,FALSE)*VLOOKUP(G9,$O$8:$P$11,2,FALSE))))))))","v":0},null,null,"Scopus, Embase,Biosis, Chemical Abstract, Current Contents ","Short Communication, Brief Communication, Rapid Communication",1.5,"دوم",0.8," طرح "]
[2,null,null,null,null,null,null,null,{"$f":"IF(ISBLANK(D10),0,IF(D10=$S$8,0,IF(H10=$L$9,20*VLOOKUP(F10,$M$8:$N$13,2,FALSE)*VLOOKUP(G10,$O$8:$P$11,2,FALSE),IF(H10=$L$10,15*VLOOKUP(F10,$M$8:$N$13,2,FALSE)*VLOOKUP(G10,$O$8:$P$11,2,FALSE),IF(H10=$L$11,5*VLOOKUP(F10,$M$8:$N$13,2,FALSE)*VLOOKUP(G10,$O$8:$P$11,2,FALSE),IF(H10=$L$8,IF(#REF!>1,25*#REF!*VLOOKUP(F10,$M$8:$N$13,2,FALSE)*VLOOKUP(G10,$O$8:$P$11,2,FALSE),25*VLOOKUP(F10,$M$8:$N$13,2,FALSE)*VLOOKUP(G10,$O$8:$P$11,2,FALSE))))))))","v":0},null,null,"ISC","Research Letter, Case Report",1,"سوم",0.6,"هیچکدام"]
[3,null,null,null,null,null,null,null,{"$f":"IF(ISBLANK(D11),0,IF(D11=$S$8,0,IF(H11=$L$9,20*VLOOKUP(F11,$M$8:$N$13,2,FALSE)*VLOOKUP(G11,$O$8:$P$11,2,FALSE),IF(H11=$L$10,15*VLOOKUP(F11,$M$8:$N$13,2,FALSE)*VLOOKUP(G11,$O$8:$P$11,2,FALSE),IF(H11=$L$11,5*VLOOKUP(F11,$M$8:$N$13,2,FALSE)*VLOOKUP(G11,$O$8:$P$11,2,FALSE),IF(H11=$L$8,IF(#REF!>1,25*#REF!*VLOOKUP(F11,$M$8:$N$13,2,FALSE)*VLOOKUP(G11,$O$8:$P$11,2,FALSE),25*VLOOKUP(F11,$M$8:$N$13,2,FALSE)*VLOOKUP(G11,$O$8:$P$11,2,FALSE))))))))","v":0},null,null,"فارسی ISI, Scopus","Letter to editor",0.6,"چهارم",0.4]
[4,null,null,null,null,null,null,null,{"$f":"IF(ISBLANK(D12),0,IF(D12=$S$8,0,IF(H12=$L$9,20*VLOOKUP(F12,$M$8:$N$13,2,FALSE)*VLOOKUP(G12,$O$8:$P$11,2,FALSE),IF(H12=$L$10,15*VLOOKUP(F12,$M$8:$N$13,2,FALSE)*VLOOKUP(G12,$O$8:$P$11,2,FALSE),IF(H12=$L$11,5*VLOOKUP(F12,$M$8:$N$13,2,FALSE)*VLOOKUP(G12,$O$8:$P$11,2,FALSE),IF(H12=$L$8,IF(#REF!>1,25*#REF!*VLOOKUP(F12,$M$8:$N$13,2,FALSE)*VLOOKUP(G12,$O$8:$P$11,2,FALSE),25*VLOOKUP(F12,$M$8:$N$13,2,FALSE)*VLOOKUP(G12,$O$8:$P$11,2,FALSE))))))))","v":0},null,null,"علمی ترویجی",null,0.3,"پنجم"]
[5,null,null,null,null,null,null,null,{"$f":"IF(ISBLANK(D13),0,IF(D13=$S$8,0,IF(H13=$L$9,20*VLOOKUP(F13,$M$8:$N$13,2,FALSE)*VLOOKUP(G13,$O$8:$P$11,2,FALSE),IF(H13=$L$10,15*VLOOKUP(F13,$M$8:$N$13,2,FALSE)*VLOOKUP(G13,$O$8:$P$11,2,FALSE),IF(H13=$L$11,5*VLOOKUP(F13,$M$8:$N$13,2,FALSE)*VLOOKUP(G13,$O$8:$P$11,2,FALSE),IF(H13=$L$8,IF(#REF!>1,25*#REF!*VLOOKUP(F13,$M$8:$N$13,2,FALSE)*VLOOKUP(G13,$O$8:$P$11,2,FALSE),25*VLOOKUP(F13,$M$8:$N$13,2,FALSE)*VLOOKUP(G13,$O$8:$P$11,2,FALSE))))))))","v":0},null,null,null,null,0.2,"ششم و بعد از آن",null,"کمتر از 1"]
[6,null,null,null,null,null,null,null,{"$f":"IF(ISBLANK(D14),0,IF(D14=$S$8,0,IF(H14=$L$9,20*VLOOKUP(F14,$M$8:$N$13,2,FALSE)*VLOOKUP(G14,$O$8:$P$11,2,FALSE),IF(H14=$L$10,15*VLOOKUP(F14,$M$8:$N$13,2,FALSE)*VLOOKUP(G14,$O$8:$P$11,2,FALSE),IF(H14=$L$11,5*VLOOKUP(F14,$M$8:$N$13,2,FALSE)*VLOOKUP(G14,$O$8:$P$11,2,FALSE),IF(H14=$L$8,IF(#REF!>1,25*#REF!*VLOOKUP(F14,$M$8:$N$13,2,FALSE)*VLOOKUP(G14,$O$8:$P$11,2,FALSE),25*VLOOKUP(F14,$M$8:$N$13,2,FALSE)*VLOOKUP(G14,$O$8:$P$11,2,FALSE))))))))","v":0},null,null,null,null,null,null,null,"1 تا 3"]
[7,null,null,null,null,null,null,null,{"$f":"IF(ISBLANK(D15),0,IF(D15=$S$8,0,IF(H15=$L$9,20*VLOOKUP(F15,$M$8:$N$13,2,FALSE)*VLOOKUP(G15,$O$8:$P$11,2,FALSE),IF(H15=$L$10,15*VLOOKUP(F15,$M$8:$N$13,2,FALSE)*VLOOKUP(G15,$O$8:$P$11,2,FALSE),IF(H15=$L$11,5*VLOOKUP(F15,$M$8:$N$13,2,FALSE)*VLOOKUP(G15,$O$8:$P$11,2,FALSE),IF(H15=$L$8,IF(#REF!>1,25*#REF!*VLOOKUP(F15,$M$8:$N$13,2,FALSE)*VLOOKUP(G15,$O$8:$P$11,2,FALSE),25*VLOOKUP(F15,$M$8:$N$13,2,FALSE)*VLOOKUP(G15,$O$8:$P$11,2,FALSE))))))))","v":0},null,null,null,null,null,null,null,"3 تا 5"]
[8,null,null,null,null,null,null,null,{"$f":"IF(ISBLANK(D16),0,IF(D16=$S$8,0,IF(H16=$L$9,20*VLOOKUP(F16,$M$8:$N$13,2,FALSE)*VLOOKUP(G16,$O$8:$P$11,2,FALSE),IF(H16=$L$10,15*VLOOKUP(F16,$M$8:$N$13,2,FALSE)*VLOOKUP(G16,$O$8:$P$11,2,FALSE),IF(H16=$L$11,5*VLOOKUP(F16,$M$8:$N$13,2,FALSE)*VLOOKUP(G16,$O$8:$P$11,2,FALSE),IF(H16=$L$8,IF(#REF!>1,25*#REF!*VLOOKUP(F16,$M$8:$N$13,2,FALSE)*VLOOKUP(G16,$O$8:$P$11,2,FALSE),25*VLOOKUP(F16,$M$8:$N$13,2,FALSE)*VLOOKUP(G16,$O$8:$P$11,2,FALSE))))))))","v":0},null,null,null,null,null,null,null,"5 و بالاتر"]
[9,null,null,null,null,null,null,null,{"$f":"IF(ISBLANK(D17),0,IF(D17=$S$8,0,IF(H17=$L$9,20*VLOOKUP(F17,$M$8:$N$13,2,FALSE)*VLOOKUP(G17,$O$8:$P$11,2,FALSE),IF(H17=$L$10,15*VLOOKUP(F17,$M$8:$N$13,2,FALSE)*VLOOKUP(G17,$O$8:$P$11,2,FALSE),IF(H17=$L$11,5*VLOOKUP(F17,$M$8:$N$13,2,FALSE)*VLOOKUP(G17,$O$8:$P$11,2,FALSE),IF(H17=$L$8,IF(#REF!>1,25*#REF!*VLOOKUP(F17,$M$8:$N$13,2,FALSE)*VLOOKUP(G17,$O$8:$P$11,2,FALSE),25*VLOOKUP(F17,$M$8:$N$13,2,FALSE)*VLOOKUP(G17,$O$8:$P$11,2,FALSE))))))))","v":0},null,null,null,null,null,null,null,"صفر"]
[10,null,null,null,null,null,null,null,{"$f":"IF(ISBLANK(D18),0,IF(D18=$S$8,0,IF(H18=$L$9,20*VLOOKUP(F18,$M$8:$N$13,2,FALSE)*VLOOKUP(G18,$O$8:$P$11,2,FALSE),IF(H18=$L$10,15*VLOOKUP(F18,$M$8:$N$13,2,FALSE)*VLOOKUP(G18,$O$8:$P$11,2,FALSE),IF(H18=$L$11,5*VLOOKUP(F18,$M$8:$N$13,2,FALSE)*VLOOKUP(G18,$O$8:$P$11,2,FALSE),IF(H18=$L$8,IF(#REF!>1,25*#REF!*VLOOKUP(F18,$M$8:$N$13,2,FALSE)*VLOOKUP(G18,$O$8:$P$11,2,FALSE),25*VLOOKUP(F18,$M$8:$N$13,2,FALSE)*VLOOKUP(G18,$O$8:$P$11,2,FALSE))))))))","v":0}]
[11,null,null,null,null,null,null,null,{"$f":"IF(ISBLANK(D19),0,IF(D19=$S$8,0,IF(H19=$L$9,20*VLOOKUP(F19,$M$8:$N$13,2,FALSE)*VLOOKUP(G19,$O$8:$P$11,2,FALSE),IF(H19=$L$10,15*VLOOKUP(F19,$M$8:$N$13,2,FALSE)*VLOOKUP(G19,$O$8:$P$11,2,FALSE),IF(H19=$L$11,5*VLOOKUP(F19,$M$8:$N$13,2,FALSE)*VLOOKUP(G19,$O$8:$P$11,2,FALSE),IF(H19=$L$8,IF(#REF!>1,25*#REF!*VLOOKUP(F19,$M$8:$N$13,2,FALSE)*VLOOKUP(G19,$O$8:$P$11,2,FALSE),25*VLOOKUP(F19,$M$8:$N$13,2,FALSE)*VLOOKUP(G19,$O$8:$P$11,2,FALSE))))))))","v":0}]
[12,null,null,null,null,null,null,null,{"$f":"IF(ISBLANK(D20),0,IF(D20=$S$8,0,IF(H20=$L$9,20*VLOOKUP(F20,$M$8:$N$13,2,FALSE)*VLOOKUP(G20,$O$8:$P$11,2,FALSE),IF(H20=$L$10,15*VLOOKUP(F20,$M$8:$N$13,2,FALSE)*VLOOKUP(G20,$O$8:$P$11,2,FALSE),IF(H20=$L$11,5*VLOOKUP(F20,$M$8:$N$13,2,FALSE)*VLOOKUP(G20,$O$8:$P$11,2,FALSE),IF(H20=$L$8,IF(#REF!>1,25*#REF!*VLOOKUP(F20,$M$8:$N$13,2,FALSE)*VLOOKUP(G20,$O$8:$P$11,2,FALSE),25*VLOOKUP(F20,$M$8:$N$13,2,FALSE)*VLOOKUP(G20,$O$8:$P$11,2,FALSE))))))))","v":0}]
[13,null,null,null,null,null,null,null,{"$f":"IF(ISBLANK(D21),0,IF(D21=$S$8,0,IF(H21=$L$9,20*VLOOKUP(F21,$M$8:$N$13,2,FALSE)*VLOOKUP(G21,$O$8:$P$11,2,FALSE),IF(H21=$L$10,15*VLOOKUP(F21,$M$8:$N$13,2,FALSE)*VLOOKUP(G21,$O$8:$P$11,2,FALSE),IF(H21=$L$11,5*VLOOKUP(F21,$M$8:$N$13,2,FALSE)*VLOOKUP(G21,$O$8:$P$11,2,FALSE),IF(H21=$L$8,IF(#REF!>1,25*#REF!*VLOOKUP(F21,$M$8:$N$13,2,FALSE)*VLOOKUP(G21,$O$8:$P$11,2,FALSE),25*VLOOKUP(F21,$M$8:$N$13,2,FALSE)*VLOOKUP(G21,$O$8:$P$11,2,FALSE))))))))","v":0}]
[14,null,null,null,null,null,null,null,{"$f":"IF(ISBLANK(D22),0,IF(D22=$S$8,0,IF(H22=$L$9,20*VLOOKUP(F22,$M$8:$N$13,2,FALSE)*VLOOKUP(G22,$O$8:$P$11,2,FALSE),IF(H22=$L$10,15*VLOOKUP(F22,$M$8:$N$13,2,FALSE)*VLOOKUP(G22,$O$8:$P$11,2,FALSE),IF(H22=$L$11,5*VLOOKUP(F22,$M$8:$N$13,2,FALSE)*VLOOKUP(G22,$O$8:$P$11,2,FALSE),IF(H22=$L$8,IF(#REF!>1,25*#REF!*VLOOKUP(F22,$M$8:$N$13,2,FALSE)*VLOOKUP(G22,$O$8:$P$11,2,FALSE),25*VLOOKUP(F22,$M$8:$N$13,2,FALSE)*VLOOKUP(G22,$O$8:$P$11,2,FALSE))))))))","v":0}]
[15,null,null,null,null,null,null,null,{"$f":"IF(ISBLANK(D23),0,IF(D23=$S$8,0,IF(H23=$L$9,20*VLOOKUP(F23,$M$8:$N$13,2,FALSE)*VLOOKUP(G23,$O$8:$P$11,2,FALSE),IF(H23=$L$10,15*VLOOKUP(F23,$M$8:$N$13,2,FALSE)*VLOOKUP(G23,$O$8:$P$11,2,FALSE),IF(H23=$L$11,5*VLOOKUP(F23,$M$8:$N$13,2,FALSE)*VLOOKUP(G23,$O$8:$P$11,2,FALSE),IF(H23=$L$8,IF(#REF!>1,25*#REF!*VLOOKUP(F23,$M$8:$N$13,2,FALSE)*VLOOKUP(G23,$O$8:$P$11,2,FALSE),25*VLOOKUP(F23,$M$8:$N$13,2,FALSE)*VLOOKUP(G23,$O$8:$P$11,2,FALSE))))))))","v":0}]
[16,null,null,null,null,null,null,null,{"$f":"IF(ISBLANK(D24),0,IF(D24=$S$8,0,IF(H24=$L$9,20*VLOOKUP(F24,$M$8:$N$13,2,FALSE)*VLOOKUP(G24,$O$8:$P$11,2,FALSE),IF(H24=$L$10,15*VLOOKUP(F24,$M$8:$N$13,2,FALSE)*VLOOKUP(G24,$O$8:$P$11,2,FALSE),IF(H24=$L$11,5*VLOOKUP(F24,$M$8:$N$13,2,FALSE)*VLOOKUP(G24,$O$8:$P$11,2,FALSE),IF(H24=$L$8,IF(#REF!>1,25*#REF!*VLOOKUP(F24,$M$8:$N$13,2,FALSE)*VLOOKUP(G24,$O$8:$P$11,2,FALSE),25*VLOOKUP(F24,$M$8:$N$13,2,FALSE)*VLOOKUP(G24,$O$8:$P$11,2,FALSE))))))))","v":0}]
[17,null,null,null,null,null,null,null,{"$f":"IF(ISBLANK(D25),0,IF(D25=$S$8,0,IF(H25=$L$9,20*VLOOKUP(F25,$M$8:$N$13,2,FALSE)*VLOOKUP(G25,$O$8:$P$11,2,FALSE),IF(H25=$L$10,15*VLOOKUP(F25,$M$8:$N$13,2,FALSE)*VLOOKUP(G25,$O$8:$P$11,2,FALSE),IF(H25=$L$11,5*VLOOKUP(F25,$M$8:$N$13,2,FALSE)*VLOOKUP(G25,$O$8:$P$11,2,FALSE),IF(H25=$L$8,IF(#REF!>1,25*#REF!*VLOOKUP(F25,$M$8:$N$13,2,FALSE)*VLOOKUP(G25,$O$8:$P$11,2,FALSE),25*VLOOKUP(F25,$M$8:$N$13,2,FALSE)*VLOOKUP(G25,$O$8:$P$11,2,FALSE))))))))","v":0}]
[18,null,null,null,null,null,null,null,{"$f":"IF(ISBLANK(D26),0,IF(D26=$S$8,0,IF(H26=$L$9,20*VLOOKUP(F26,$M$8:$N$13,2,FALSE)*VLOOKUP(G26,$O$8:$P$11,2,FALSE),IF(H26=$L$10,15*VLOOKUP(F26,$M$8:$N$13,2,FALSE)*VLOOKUP(G26,$O$8:$P$11,2,FALSE),IF(H26=$L$11,5*VLOOKUP(F26,$M$8:$N$13,2,FALSE)*VLOOKUP(G26,$O$8:$P$11,2,FALSE),IF(H26=$L$8,IF(#REF!>1,25*#REF!*VLOOKUP(F26,$M$8:$N$13,2,FALSE)*VLOOKUP(G26,$O$8:$P$11,2,FALSE),25*VLOOKUP(F26,$M$8:$N$13,2,FALSE)*VLOOKUP(G26,$O$8:$P$11,2,FALSE))))))))","v":0}]
[19,null,null,null,null,null,null,null,{"$f":"IF(ISBLANK(D27),0,IF(D27=$S$8,0,IF(H27=$L$9,20*VLOOKUP(F27,$M$8:$N$13,2,FALSE)*VLOOKUP(G27,$O$8:$P$11,2,FALSE),IF(H27=$L$10,15*VLOOKUP(F27,$M$8:$N$13,2,FALSE)*VLOOKUP(G27,$O$8:$P$11,2,FALSE),IF(H27=$L$11,5*VLOOKUP(F27,$M$8:$N$13,2,FALSE)*VLOOKUP(G27,$O$8:$P$11,2,FALSE),IF(H27=$L$8,IF(#REF!>1,25*#REF!*VLOOKUP(F27,$M$8:$N$13,2,FALSE)*VLOOKUP(G27,$O$8:$P$11,2,FALSE),25*VLOOKUP(F27,$M$8:$N$13,2,FALSE)*VLOOKUP(G27,$O$8:$P$11,2,FALSE))))))))","v":0}]
[20,null,null,null,null,null,null,null,{"$f":"IF(ISBLANK(D28),0,IF(D28=$S$8,0,IF(H28=$L$9,20*VLOOKUP(F28,$M$8:$N$13,2,FALSE)*VLOOKUP(G28,$O$8:$P$11,2,FALSE),IF(H28=$L$10,15*VLOOKUP(F28,$M$8:$N$13,2,FALSE)*VLOOKUP(G28,$O$8:$P$11,2,FALSE),IF(H28=$L$11,5*VLOOKUP(F28,$M$8:$N$13,2,FALSE)*VLOOKUP(G28,$O$8:$P$11,2,FALSE),IF(H28=$L$8,IF(#REF!>1,25*#REF!*VLOOKUP(F28,$M$8:$N$13,2,FALSE)*VLOOKUP(G28,$O$8:$P$11,2,FALSE),25*VLOOKUP(F28,$M$8:$N$13,2,FALSE)*VLOOKUP(G28,$O$8:$P$11,2,FALSE))))))))","v":0}]
[21,null,null,null,null,null,null,null,{"$f":"IF(ISBLANK(D29),0,IF(D29=$S$8,0,IF(H29=$L$9,20*VLOOKUP(F29,$M$8:$N$13,2,FALSE)*VLOOKUP(G29,$O$8:$P$11,2,FALSE),IF(H29=$L$10,15*VLOOKUP(F29,$M$8:$N$13,2,FALSE)*VLOOKUP(G29,$O$8:$P$11,2,FALSE),IF(H29=$L$11,5*VLOOKUP(F29,$M$8:$N$13,2,FALSE)*VLOOKUP(G29,$O$8:$P$11,2,FALSE),IF(H29=$L$8,IF(#REF!>1,25*#REF!*VLOOKUP(F29,$M$8:$N$13,2,FALSE)*VLOOKUP(G29,$O$8:$P$11,2,FALSE),25*VLOOKUP(F29,$M$8:$N$13,2,FALSE)*VLOOKUP(G29,$O$8:$P$11,2,FALSE))))))))","v":0}]
[22,null,null,null,null,null,null,null,{"$f":"IF(ISBLANK(D30),0,IF(D30=$S$8,0,IF(H30=$L$9,20*VLOOKUP(F30,$M$8:$N$13,2,FALSE)*VLOOKUP(G30,$O$8:$P$11,2,FALSE),IF(H30=$L$10,15*VLOOKUP(F30,$M$8:$N$13,2,FALSE)*VLOOKUP(G30,$O$8:$P$11,2,FALSE),IF(H30=$L$11,5*VLOOKUP(F30,$M$8:$N$13,2,FALSE)*VLOOKUP(G30,$O$8:$P$11,2,FALSE),IF(H30=$L$8,IF(#REF!>1,25*#REF!*VLOOKUP(F30,$M$8:$N$13,2,FALSE)*VLOOKUP(G30,$O$8:$P$11,2,FALSE),25*VLOOKUP(F30,$M$8:$N$13,2,FALSE)*VLOOKUP(G30,$O$8:$P$11,2,FALSE))))))))","v":0}]
[23,null,null,null,null,null,null,null,{"$f":"IF(ISBLANK(D31),0,IF(D31=$S$8,0,IF(H31=$L$9,20*VLOOKUP(F31,$M$8:$N$13,2,FALSE)*VLOOKUP(G31,$O$8:$P$11,2,FALSE),IF(H31=$L$10,15*VLOOKUP(F31,$M$8:$N$13,2,FALSE)*VLOOKUP(G31,$O$8:$P$11,2,FALSE),IF(H31=$L$11,5*VLOOKUP(F31,$M$8:$N$13,2,FALSE)*VLOOKUP(G31,$O$8:$P$11,2,FALSE),IF(H31=$L$8,IF(#REF!>1,25*#REF!*VLOOKUP(F31,$M$8:$N$13,2,FALSE)*VLOOKUP(G31,$O$8:$P$11,2,FALSE),25*VLOOKUP(F31,$M$8:$N$13,2,FALSE)*VLOOKUP(G31,$O$8:$P$11,2,FALSE))))))))","v":0}]
[24,null,null,null,null,null,null,null,{"$f":"IF(ISBLANK(D32),0,IF(D32=$S$8,0,IF(H32=$L$9,20*VLOOKUP(F32,$M$8:$N$13,2,FALSE)*VLOOKUP(G32,$O$8:$P$11,2,FALSE),IF(H32=$L$10,15*VLOOKUP(F32,$M$8:$N$13,2,FALSE)*VLOOKUP(G32,$O$8:$P$11,2,FALSE),IF(H32=$L$11,5*VLOOKUP(F32,$M$8:$N$13,2,FALSE)*VLOOKUP(G32,$O$8:$P$11,2,FALSE),IF(H32=$L$8,IF(#REF!>1,25*#REF!*VLOOKUP(F32,$M$8:$N$13,2,FALSE)*VLOOKUP(G32,$O$8:$P$11,2,FALSE),25*VLOOKUP(F32,$M$8:$N$13,2,FALSE)*VLOOKUP(G32,$O$8:$P$11,2,FALSE))))))))","v":0}]
[25,null,null,null,null,null,null,null,{"$f":"IF(ISBLANK(D33),0,IF(D33=$S$8,0,IF(H33=$L$9,20*VLOOKUP(F33,$M$8:$N$13,2,FALSE)*VLOOKUP(G33,$O$8:$P$11,2,FALSE),IF(H33=$L$10,15*VLOOKUP(F33,$M$8:$N$13,2,FALSE)*VLOOKUP(G33,$O$8:$P$11,2,FALSE),IF(H33=$L$11,5*VLOOKUP(F33,$M$8:$N$13,2,FALSE)*VLOOKUP(G33,$O$8:$P$11,2,FALSE),IF(H33=$L$8,IF(#REF!>1,25*#REF!*VLOOKUP(F33,$M$8:$N$13,2,FALSE)*VLOOKUP(G33,$O$8:$P$11,2,FALSE),25*VLOOKUP(F33,$M$8:$N$13,2,FALSE)*VLOOKUP(G33,$O$8:$P$11,2,FALSE))))))))","v":0}]
[26,null,null,null,null,null,null,null,{"$f":"IF(ISBLANK(D34),0,IF(D34=$S$8,0,IF(H34=$L$9,20*VLOOKUP(F34,$M$8:$N$13,2,FALSE)*VLOOKUP(G34,$O$8:$P$11,2,FALSE),IF(H34=$L$10,15*VLOOKUP(F34,$M$8:$N$13,2,FALSE)*VLOOKUP(G34,$O$8:$P$11,2,FALSE),IF(H34=$L$11,5*VLOOKUP(F34,$M$8:$N$13,2,FALSE)*VLOOKUP(G34,$O$8:$P$11,2,FALSE),IF(H34=$L$8,IF(#REF!>1,25*#REF!*VLOOKUP(F34,$M$8:$N$13,2,FALSE)*VLOOKUP(G34,$O$8:$P$11,2,FALSE),25*VLOOKUP(F34,$M$8:$N$13,2,FALSE)*VLOOKUP(G34,$O$8:$P$11,2,FALSE))))))))","v":0}]
[27,null,null,null,null,null,null,null,{"$f":"IF(ISBLANK(D35),0,IF(D35=$S$8,0,IF(H35=$L$9,20*VLOOKUP(F35,$M$8:$N$13,2,FALSE)*VLOOKUP(G35,$O$8:$P$11,2,FALSE),IF(H35=$L$10,15*VLOOKUP(F35,$M$8:$N$13,2,FALSE)*VLOOKUP(G35,$O$8:$P$11,2,FALSE),IF(H35=$L$11,5*VLOOKUP(F35,$M$8:$N$13,2,FALSE)*VLOOKUP(G35,$O$8:$P$11,2,FALSE),IF(H35=$L$8,IF(#REF!>1,25*#REF!*VLOOKUP(F35,$M$8:$N$13,2,FALSE)*VLOOKUP(G35,$O$8:$P$11,2,FALSE),25*VLOOKUP(F35,$M$8:$N$13,2,FALSE)*VLOOKUP(G35,$O$8:$P$11,2,FALSE))))))))","v":0}]
[28,null,null,null,null,null,null,null,{"$f":"IF(ISBLANK(D36),0,IF(D36=$S$8,0,IF(H36=$L$9,20*VLOOKUP(F36,$M$8:$N$13,2,FALSE)*VLOOKUP(G36,$O$8:$P$11,2,FALSE),IF(H36=$L$10,15*VLOOKUP(F36,$M$8:$N$13,2,FALSE)*VLOOKUP(G36,$O$8:$P$11,2,FALSE),IF(H36=$L$11,5*VLOOKUP(F36,$M$8:$N$13,2,FALSE)*VLOOKUP(G36,$O$8:$P$11,2,FALSE),IF(H36=$L$8,IF(#REF!>1,25*#REF!*VLOOKUP(F36,$M$8:$N$13,2,FALSE)*VLOOKUP(G36,$O$8:$P$11,2,FALSE),25*VLOOKUP(F36,$M$8:$N$13,2,FALSE)*VLOOKUP(G36,$O$8:$P$11,2,FALSE))))))))","v":0}]
[29,null,null,null,null,null,null,null,{"$f":"IF(ISBLANK(D37),0,IF(D37=$S$8,0,IF(H37=$L$9,20*VLOOKUP(F37,$M$8:$N$13,2,FALSE)*VLOOKUP(G37,$O$8:$P$11,2,FALSE),IF(H37=$L$10,15*VLOOKUP(F37,$M$8:$N$13,2,FALSE)*VLOOKUP(G37,$O$8:$P$11,2,FALSE),IF(H37=$L$11,5*VLOOKUP(F37,$M$8:$N$13,2,FALSE)*VLOOKUP(G37,$O$8:$P$11,2,FALSE),IF(H37=$L$8,IF(#REF!>1,25*#REF!*VLOOKUP(F37,$M$8:$N$13,2,FALSE)*VLOOKUP(G37,$O$8:$P$11,2,FALSE),25*VLOOKUP(F37,$M$8:$N$13,2,FALSE)*VLOOKUP(G37,$O$8:$P$11,2,FALSE))))))))","v":0}]
[30,null,null,null,null,null,null,null,{"$f":"IF(ISBLANK(D38),0,IF(D38=$S$8,0,IF(H38=$L$9,20*VLOOKUP(F38,$M$8:$N$13,2,FALSE)*VLOOKUP(G38,$O$8:$P$11,2,FALSE),IF(H38=$L$10,15*VLOOKUP(F38,$M$8:$N$13,2,FALSE)*VLOOKUP(G38,$O$8:$P$11,2,FALSE),IF(H38=$L$11,5*VLOOKUP(F38,$M$8:$N$13,2,FALSE)*VLOOKUP(G38,$O$8:$P$11,2,FALSE),IF(H38=$L$8,IF(#REF!>1,25*#REF!*VLOOKUP(F38,$M$8:$N$13,2,FALSE)*VLOOKUP(G38,$O$8:$P$11,2,FALSE),25*VLOOKUP(F38,$M$8:$N$13,2,FALSE)*VLOOKUP(G38,$O$8:$P$11,2,FALSE))))))))","v":0}]
[31,null,null,null,null,null,null,null,{"$f":"IF(ISBLANK(D39),0,IF(D39=$S$8,0,IF(H39=$L$9,20*VLOOKUP(F39,$M$8:$N$13,2,FALSE)*VLOOKUP(G39,$O$8:$P$11,2,FALSE),IF(H39=$L$10,15*VLOOKUP(F39,$M$8:$N$13,2,FALSE)*VLOOKUP(G39,$O$8:$P$11,2,FALSE),IF(H39=$L$11,5*VLOOKUP(F39,$M$8:$N$13,2,FALSE)*VLOOKUP(G39,$O$8:$P$11,2,FALSE),IF(H39=$L$8,IF(#REF!>1,25*#REF!*VLOOKUP(F39,$M$8:$N$13,2,FALSE)*VLOOKUP(G39,$O$8:$P$11,2,FALSE),25*VLOOKUP(F39,$M$8:$N$13,2,FALSE)*VLOOKUP(G39,$O$8:$P$11,2,FALSE))))))))","v":0}]
[32,null,null,null,null,null,null,null,{"$f":"IF(ISBLANK(D40),0,IF(D40=$S$8,0,IF(H40=$L$9,20*VLOOKUP(F40,$M$8:$N$13,2,FALSE)*VLOOKUP(G40,$O$8:$P$11,2,FALSE),IF(H40=$L$10,15*VLOOKUP(F40,$M$8:$N$13,2,FALSE)*VLOOKUP(G40,$O$8:$P$11,2,FALSE),IF(H40=$L$11,5*VLOOKUP(F40,$M$8:$N$13,2,FALSE)*VLOOKUP(G40,$O$8:$P$11,2,FALSE),IF(H40=$L$8,IF(#REF!>1,25*#REF!*VLOOKUP(F40,$M$8:$N$13,2,FALSE)*VLOOKUP(G40,$O$8:$P$11,2,FALSE),25*VLOOKUP(F40,$M$8:$N$13,2,FALSE)*VLOOKUP(G40,$O$8:$P$11,2,FALSE))))))))","v":0}]
[33,null,null,null,null,null,null,null,{"$f":"IF(ISBLANK(D41),0,IF(D41=$S$8,0,IF(H41=$L$9,20*VLOOKUP(F41,$M$8:$N$13,2,FALSE)*VLOOKUP(G41,$O$8:$P$11,2,FALSE),IF(H41=$L$10,15*VLOOKUP(F41,$M$8:$N$13,2,FALSE)*VLOOKUP(G41,$O$8:$P$11,2,FALSE),IF(H41=$L$11,5*VLOOKUP(F41,$M$8:$N$13,2,FALSE)*VLOOKUP(G41,$O$8:$P$11,2,FALSE),IF(H41=$L$8,IF(#REF!>1,25*#REF!*VLOOKUP(F41,$M$8:$N$13,2,FALSE)*VLOOKUP(G41,$O$8:$P$11,2,FALSE),25*VLOOKUP(F41,$M$8:$N$13,2,FALSE)*VLOOKUP(G41,$O$8:$P$11,2,FALSE))))))))","v":0}]
[34,null,null,null,null,null,null,null,{"$f":"IF(ISBLANK(D42),0,IF(D42=$S$8,0,IF(H42=$L$9,20*VLOOKUP(F42,$M$8:$N$13,2,FALSE)*VLOOKUP(G42,$O$8:$P$11,2,FALSE),IF(H42=$L$10,15*VLOOKUP(F42,$M$8:$N$13,2,FALSE)*VLOOKUP(G42,$O$8:$P$11,2,FALSE),IF(H42=$L$11,5*VLOOKUP(F42,$M$8:$N$13,2,FALSE)*VLOOKUP(G42,$O$8:$P$11,2,FALSE),IF(H42=$L$8,IF(#REF!>1,25*#REF!*VLOOKUP(F42,$M$8:$N$13,2,FALSE)*VLOOKUP(G42,$O$8:$P$11,2,FALSE),25*VLOOKUP(F42,$M$8:$N$13,2,FALSE)*VLOOKUP(G42,$O$8:$P$11,2,FALSE))))))))","v":0}]
[35,null,null,null,null,null,null,null,{"$f":"IF(ISBLANK(D43),0,IF(D43=$S$8,0,IF(H43=$L$9,20*VLOOKUP(F43,$M$8:$N$13,2,FALSE)*VLOOKUP(G43,$O$8:$P$11,2,FALSE),IF(H43=$L$10,15*VLOOKUP(F43,$M$8:$N$13,2,FALSE)*VLOOKUP(G43,$O$8:$P$11,2,FALSE),IF(H43=$L$11,5*VLOOKUP(F43,$M$8:$N$13,2,FALSE)*VLOOKUP(G43,$O$8:$P$11,2,FALSE),IF(H43=$L$8,IF(#REF!>1,25*#REF!*VLOOKUP(F43,$M$8:$N$13,2,FALSE)*VLOOKUP(G43,$O$8:$P$11,2,FALSE),25*VLOOKUP(F43,$M$8:$N$13,2,FALSE)*VLOOKUP(G43,$O$8:$P$11,2,FALSE))))))))","v":0}]
[36,null,null,null,null,null,null,null,{"$f":"IF(ISBLANK(D44),0,IF(D44=$S$8,0,IF(H44=$L$9,20*VLOOKUP(F44,$M$8:$N$13,2,FALSE)*VLOOKUP(G44,$O$8:$P$11,2,FALSE),IF(H44=$L$10,15*VLOOKUP(F44,$M$8:$N$13,2,FALSE)*VLOOKUP(G44,$O$8:$P$11,2,FALSE),IF(H44=$L$11,5*VLOOKUP(F44,$M$8:$N$13,2,FALSE)*VLOOKUP(G44,$O$8:$P$11,2,FALSE),IF(H44=$L$8,IF(#REF!>1,25*#REF!*VLOOKUP(F44,$M$8:$N$13,2,FALSE)*VLOOKUP(G44,$O$8:$P$11,2,FALSE),25*VLOOKUP(F44,$M$8:$N$13,2,FALSE)*VLOOKUP(G44,$O$8:$P$11,2,FALSE))))))))","v":0}]
[37,null,null,null,null,null,null,null,{"$f":"IF(ISBLANK(D45),0,IF(D45=$S$8,0,IF(H45=$L$9,20*VLOOKUP(F45,$M$8:$N$13,2,FALSE)*VLOOKUP(G45,$O$8:$P$11,2,FALSE),IF(H45=$L$10,15*VLOOKUP(F45,$M$8:$N$13,2,FALSE)*VLOOKUP(G45,$O$8:$P$11,2,FALSE),IF(H45=$L$11,5*VLOOKUP(F45,$M$8:$N$13,2,FALSE)*VLOOKUP(G45,$O$8:$P$11,2,FALSE),IF(H45=$L$8,IF(#REF!>1,25*#REF!*VLOOKUP(F45,$M$8:$N$13,2,FALSE)*VLOOKUP(G45,$O$8:$P$11,2,FALSE),25*VLOOKUP(F45,$M$8:$N$13,2,FALSE)*VLOOKUP(G45,$O$8:$P$11,2,FALSE))))))))","v":0}]
[38,null,null,null,null,null,null,null,{"$f":"IF(ISBLANK(D46),0,IF(D46=$S$8,0,IF(H46=$L$9,20*VLOOKUP(F46,$M$8:$N$13,2,FALSE)*VLOOKUP(G46,$O$8:$P$11,2,FALSE),IF(H46=$L$10,15*VLOOKUP(F46,$M$8:$N$13,2,FALSE)*VLOOKUP(G46,$O$8:$P$11,2,FALSE),IF(H46=$L$11,5*VLOOKUP(F46,$M$8:$N$13,2,FALSE)*VLOOKUP(G46,$O$8:$P$11,2,FALSE),IF(H46=$L$8,IF(#REF!>1,25*#REF!*VLOOKUP(F46,$M$8:$N$13,2,FALSE)*VLOOKUP(G46,$O$8:$P$11,2,FALSE),25*VLOOKUP(F46,$M$8:$N$13,2,FALSE)*VLOOKUP(G46,$O$8:$P$11,2,FALSE))))))))","v":0}]
[39,null,null,null,null,null,null,null,{"$f":"IF(ISBLANK(D47),0,IF(D47=$S$8,0,IF(H47=$L$9,20*VLOOKUP(F47,$M$8:$N$13,2,FALSE)*VLOOKUP(G47,$O$8:$P$11,2,FALSE),IF(H47=$L$10,15*VLOOKUP(F47,$M$8:$N$13,2,FALSE)*VLOOKUP(G47,$O$8:$P$11,2,FALSE),IF(H47=$L$11,5*VLOOKUP(F47,$M$8:$N$13,2,FALSE)*VLOOKUP(G47,$O$8:$P$11,2,FALSE),IF(H47=$L$8,IF(#REF!>1,25*#REF!*VLOOKUP(F47,$M$8:$N$13,2,FALSE)*VLOOKUP(G47,$O$8:$P$11,2,FALSE),25*VLOOKUP(F47,$M$8:$N$13,2,FALSE)*VLOOKUP(G47,$O$8:$P$11,2,FALSE))))))))","v":0}]
[40,null,null,null,null,null,null,null,{"$f":"IF(ISBLANK(D48),0,IF(D48=$S$8,0,IF(H48=$L$9,20*VLOOKUP(F48,$M$8:$N$13,2,FALSE)*VLOOKUP(G48,$O$8:$P$11,2,FALSE),IF(H48=$L$10,15*VLOOKUP(F48,$M$8:$N$13,2,FALSE)*VLOOKUP(G48,$O$8:$P$11,2,FALSE),IF(H48=$L$11,5*VLOOKUP(F48,$M$8:$N$13,2,FALSE)*VLOOKUP(G48,$O$8:$P$11,2,FALSE),IF(H48=$L$8,IF(#REF!>1,25*#REF!*VLOOKUP(F48,$M$8:$N$13,2,FALSE)*VLOOKUP(G48,$O$8:$P$11,2,FALSE),25*VLOOKUP(F48,$M$8:$N$13,2,FALSE)*VLOOKUP(G48,$O$8:$P$11,2,FALSE))))))))","v":0}]
[41,null,null,null,null,null,null,null,{"$f":"IF(ISBLANK(D49),0,IF(D49=$S$8,0,IF(H49=$L$9,20*VLOOKUP(F49,$M$8:$N$13,2,FALSE)*VLOOKUP(G49,$O$8:$P$11,2,FALSE),IF(H49=$L$10,15*VLOOKUP(F49,$M$8:$N$13,2,FALSE)*VLOOKUP(G49,$O$8:$P$11,2,FALSE),IF(H49=$L$11,5*VLOOKUP(F49,$M$8:$N$13,2,FALSE)*VLOOKUP(G49,$O$8:$P$11,2,FALSE),IF(H49=$L$8,IF(#REF!>1,25*#REF!*VLOOKUP(F49,$M$8:$N$13,2,FALSE)*VLOOKUP(G49,$O$8:$P$11,2,FALSE),25*VLOOKUP(F49,$M$8:$N$13,2,FALSE)*VLOOKUP(G49,$O$8:$P$11,2,FALSE))))))))","v":0}]
[42,null,null,null,null,null,null,null,{"$f":"IF(ISBLANK(D50),0,IF(D50=$S$8,0,IF(H50=$L$9,20*VLOOKUP(F50,$M$8:$N$13,2,FALSE)*VLOOKUP(G50,$O$8:$P$11,2,FALSE),IF(H50=$L$10,15*VLOOKUP(F50,$M$8:$N$13,2,FALSE)*VLOOKUP(G50,$O$8:$P$11,2,FALSE),IF(H50=$L$11,5*VLOOKUP(F50,$M$8:$N$13,2,FALSE)*VLOOKUP(G50,$O$8:$P$11,2,FALSE),IF(H50=$L$8,IF(#REF!>1,25*#REF!*VLOOKUP(F50,$M$8:$N$13,2,FALSE)*VLOOKUP(G50,$O$8:$P$11,2,FALSE),25*VLOOKUP(F50,$M$8:$N$13,2,FALSE)*VLOOKUP(G50,$O$8:$P$11,2,FALSE))))))))","v":0}]
[43,null,null,null,null,null,null,null,{"$f":"IF(ISBLANK(D51),0,IF(D51=$S$8,0,IF(H51=$L$9,20*VLOOKUP(F51,$M$8:$N$13,2,FALSE)*VLOOKUP(G51,$O$8:$P$11,2,FALSE),IF(H51=$L$10,15*VLOOKUP(F51,$M$8:$N$13,2,FALSE)*VLOOKUP(G51,$O$8:$P$11,2,FALSE),IF(H51=$L$11,5*VLOOKUP(F51,$M$8:$N$13,2,FALSE)*VLOOKUP(G51,$O$8:$P$11,2,FALSE),IF(H51=$L$8,IF(#REF!>1,25*#REF!*VLOOKUP(F51,$M$8:$N$13,2,FALSE)*VLOOKUP(G51,$O$8:$P$11,2,FALSE),25*VLOOKUP(F51,$M$8:$N$13,2,FALSE)*VLOOKUP(G51,$O$8:$P$11,2,FALSE))))))))","v":0}]
[44,null,null,null,null,null,null,null,{"$f":"IF(ISBLANK(D52),0,IF(D52=$S$8,0,IF(H52=$L$9,20*VLOOKUP(F52,$M$8:$N$13,2,FALSE)*VLOOKUP(G52,$O$8:$P$11,2,FALSE),IF(H52=$L$10,15*VLOOKUP(F52,$M$8:$N$13,2,FALSE)*VLOOKUP(G52,$O$8:$P$11,2,FALSE),IF(H52=$L$11,5*VLOOKUP(F52,$M$8:$N$13,2,FALSE)*VLOOKUP(G52,$O$8:$P$11,2,FALSE),IF(H52=$L$8,IF(#REF!>1,25*#REF!*VLOOKUP(F52,$M$8:$N$13,2,FALSE)*VLOOKUP(G52,$O$8:$P$11,2,FALSE),25*VLOOKUP(F52,$M$8:$N$13,2,FALSE)*VLOOKUP(G52,$O$8:$P$11,2,FALSE))))))))","v":0}]
[45,null,null,null,null,null,null,null,{"$f":"IF(ISBLANK(D53),0,IF(D53=$S$8,0,IF(H53=$L$9,20*VLOOKUP(F53,$M$8:$N$13,2,FALSE)*VLOOKUP(G53,$O$8:$P$11,2,FALSE),IF(H53=$L$10,15*VLOOKUP(F53,$M$8:$N$13,2,FALSE)*VLOOKUP(G53,$O$8:$P$11,2,FALSE),IF(H53=$L$11,5*VLOOKUP(F53,$M$8:$N$13,2,FALSE)*VLOOKUP(G53,$O$8:$P$11,2,FALSE),IF(H53=$L$8,IF(#REF!>1,25*#REF!*VLOOKUP(F53,$M$8:$N$13,2,FALSE)*VLOOKUP(G53,$O$8:$P$11,2,FALSE),25*VLOOKUP(F53,$M$8:$N$13,2,FALSE)*VLOOKUP(G53,$O$8:$P$11,2,FALSE))))))))","v":0}]
[46,null,null,null,null,null,null,null,{"$f":"IF(ISBLANK(D54),0,IF(D54=$S$8,0,IF(H54=$L$9,20*VLOOKUP(F54,$M$8:$N$13,2,FALSE)*VLOOKUP(G54,$O$8:$P$11,2,FALSE),IF(H54=$L$10,15*VLOOKUP(F54,$M$8:$N$13,2,FALSE)*VLOOKUP(G54,$O$8:$P$11,2,FALSE),IF(H54=$L$11,5*VLOOKUP(F54,$M$8:$N$13,2,FALSE)*VLOOKUP(G54,$O$8:$P$11,2,FALSE),IF(H54=$L$8,IF(#REF!>1,25*#REF!*VLOOKUP(F54,$M$8:$N$13,2,FALSE)*VLOOKUP(G54,$O$8:$P$11,2,FALSE),25*VLOOKUP(F54,$M$8:$N$13,2,FALSE)*VLOOKUP(G54,$O$8:$P$11,2,FALSE))))))))","v":0}]
[47,null,null,null,null,null,null,null,{"$f":"IF(ISBLANK(D55),0,IF(D55=$S$8,0,IF(H55=$L$9,20*VLOOKUP(F55,$M$8:$N$13,2,FALSE)*VLOOKUP(G55,$O$8:$P$11,2,FALSE),IF(H55=$L$10,15*VLOOKUP(F55,$M$8:$N$13,2,FALSE)*VLOOKUP(G55,$O$8:$P$11,2,FALSE),IF(H55=$L$11,5*VLOOKUP(F55,$M$8:$N$13,2,FALSE)*VLOOKUP(G55,$O$8:$P$11,2,FALSE),IF(H55=$L$8,IF(#REF!>1,25*#REF!*VLOOKUP(F55,$M$8:$N$13,2,FALSE)*VLOOKUP(G55,$O$8:$P$11,2,FALSE),25*VLOOKUP(F55,$M$8:$N$13,2,FALSE)*VLOOKUP(G55,$O$8:$P$11,2,FALSE))))))))","v":0}]
[48,null,null,null,null,null,null,null,{"$f":"IF(ISBLANK(D56),0,IF(D56=$S$8,0,IF(H56=$L$9,20*VLOOKUP(F56,$M$8:$N$13,2,FALSE)*VLOOKUP(G56,$O$8:$P$11,2,FALSE),IF(H56=$L$10,15*VLOOKUP(F56,$M$8:$N$13,2,FALSE)*VLOOKUP(G56,$O$8:$P$11,2,FALSE),IF(H56=$L$11,5*VLOOKUP(F56,$M$8:$N$13,2,FALSE)*VLOOKUP(G56,$O$8:$P$11,2,FALSE),IF(H56=$L$8,IF(#REF!>1,25*#REF!*VLOOKUP(F56,$M$8:$N$13,2,FALSE)*VLOOKUP(G56,$O$8:$P$11,2,FALSE),25*VLOOKUP(F56,$M$8:$N$13,2,FALSE)*VLOOKUP(G56,$O$8:$P$11,2,FALSE))))))))","v":0}]
[49,null,null,null,null,null,null,null,{"$f":"IF(ISBLANK(D57),0,IF(D57=$S$8,0,IF(H57=$L$9,20*VLOOKUP(F57,$M$8:$N$13,2,FALSE)*VLOOKUP(G57,$O$8:$P$11,2,FALSE),IF(H57=$L$10,15*VLOOKUP(F57,$M$8:$N$13,2,FALSE)*VLOOKUP(G57,$O$8:$P$11,2,FALSE),IF(H57=$L$11,5*VLOOKUP(F57,$M$8:$N$13,2,FALSE)*VLOOKUP(G57,$O$8:$P$11,2,FALSE),IF(H57=$L$8,IF(#REF!>1,25*#REF!*VLOOKUP(F57,$M$8:$N$13,2,FALSE)*VLOOKUP(G57,$O$8:$P$11,2,FALSE),25*VLOOKUP(F57,$M$8:$N$13,2,FALSE)*VLOOKUP(G57,$O$8:$P$11,2,FALSE))))))))","v":0}]
[50,null,null,null,null,null,null,null,{"$f":"IF(ISBLANK(D58),0,IF(D58=$S$8,0,IF(H58=$L$9,20*VLOOKUP(F58,$M$8:$N$13,2,FALSE)*VLOOKUP(G58,$O$8:$P$11,2,FALSE),IF(H58=$L$10,15*VLOOKUP(F58,$M$8:$N$13,2,FALSE)*VLOOKUP(G58,$O$8:$P$11,2,FALSE),IF(H58=$L$11,5*VLOOKUP(F58,$M$8:$N$13,2,FALSE)*VLOOKUP(G58,$O$8:$P$11,2,FALSE),IF(H58=$L$8,IF(#REF!>1,25*#REF!*VLOOKUP(F58,$M$8:$N$13,2,FALSE)*VLOOKUP(G58,$O$8:$P$11,2,FALSE),25*VLOOKUP(F58,$M$8:$N$13,2,FALSE)*VLOOKUP(G58,$O$8:$P$11,2,FALSE))))))))","v":0}]
[51,null,null,null,null,null,null,null,{"$f":"IF(ISBLANK(D59),0,IF(D59=$S$8,0,IF(H59=$L$9,20*VLOOKUP(F59,$M$8:$N$13,2,FALSE)*VLOOKUP(G59,$O$8:$P$11,2,FALSE),IF(H59=$L$10,15*VLOOKUP(F59,$M$8:$N$13,2,FALSE)*VLOOKUP(G59,$O$8:$P$11,2,FALSE),IF(H59=$L$11,5*VLOOKUP(F59,$M$8:$N$13,2,FALSE)*VLOOKUP(G59,$O$8:$P$11,2,FALSE),IF(H59=$L$8,IF(#REF!>1,25*#REF!*VLOOKUP(F59,$M$8:$N$13,2,FALSE)*VLOOKUP(G59,$O$8:$P$11,2,FALSE),25*VLOOKUP(F59,$M$8:$N$13,2,FALSE)*VLOOKUP(G59,$O$8:$P$11,2,FALSE))))))))","v":0}]
[52,null,null,null,null,null,null,null,{"$f":"IF(ISBLANK(D60),0,IF(D60=$S$8,0,IF(H60=$L$9,20*VLOOKUP(F60,$M$8:$N$13,2,FALSE)*VLOOKUP(G60,$O$8:$P$11,2,FALSE),IF(H60=$L$10,15*VLOOKUP(F60,$M$8:$N$13,2,FALSE)*VLOOKUP(G60,$O$8:$P$11,2,FALSE),IF(H60=$L$11,5*VLOOKUP(F60,$M$8:$N$13,2,FALSE)*VLOOKUP(G60,$O$8:$P$11,2,FALSE),IF(H60=$L$8,IF(#REF!>1,25*#REF!*VLOOKUP(F60,$M$8:$N$13,2,FALSE)*VLOOKUP(G60,$O$8:$P$11,2,FALSE),25*VLOOKUP(F60,$M$8:$N$13,2,FALSE)*VLOOKUP(G60,$O$8:$P$11,2,FALSE))))))))","v":0}]
[53,null,null,null,null,null,null,null,{"$f":"IF(ISBLANK(D61),0,IF(D61=$S$8,0,IF(H61=$L$9,20*VLOOKUP(F61,$M$8:$N$13,2,FALSE)*VLOOKUP(G61,$O$8:$P$11,2,FALSE),IF(H61=$L$10,15*VLOOKUP(F61,$M$8:$N$13,2,FALSE)*VLOOKUP(G61,$O$8:$P$11,2,FALSE),IF(H61=$L$11,5*VLOOKUP(F61,$M$8:$N$13,2,FALSE)*VLOOKUP(G61,$O$8:$P$11,2,FALSE),IF(H61=$L$8,IF(#REF!>1,25*#REF!*VLOOKUP(F61,$M$8:$N$13,2,FALSE)*VLOOKUP(G61,$O$8:$P$11,2,FALSE),25*VLOOKUP(F61,$M$8:$N$13,2,FALSE)*VLOOKUP(G61,$O$8:$P$11,2,FALSE))))))))","v":0}]
[54,null,null,null,null,null,null,null,{"$f":"IF(ISBLANK(D62),0,IF(D62=$S$8,0,IF(H62=$L$9,20*VLOOKUP(F62,$M$8:$N$13,2,FALSE)*VLOOKUP(G62,$O$8:$P$11,2,FALSE),IF(H62=$L$10,15*VLOOKUP(F62,$M$8:$N$13,2,FALSE)*VLOOKUP(G62,$O$8:$P$11,2,FALSE),IF(H62=$L$11,5*VLOOKUP(F62,$M$8:$N$13,2,FALSE)*VLOOKUP(G62,$O$8:$P$11,2,FALSE),IF(H62=$L$8,IF(#REF!>1,25*#REF!*VLOOKUP(F62,$M$8:$N$13,2,FALSE)*VLOOKUP(G62,$O$8:$P$11,2,FALSE),25*VLOOKUP(F62,$M$8:$N$13,2,FALSE)*VLOOKUP(G62,$O$8:$P$11,2,FALSE))))))))","v":0}]
[55,null,null,null,null,null,null,null,{"$f":"IF(ISBLANK(D63),0,IF(D63=$S$8,0,IF(H63=$L$9,20*VLOOKUP(F63,$M$8:$N$13,2,FALSE)*VLOOKUP(G63,$O$8:$P$11,2,FALSE),IF(H63=$L$10,15*VLOOKUP(F63,$M$8:$N$13,2,FALSE)*VLOOKUP(G63,$O$8:$P$11,2,FALSE),IF(H63=$L$11,5*VLOOKUP(F63,$M$8:$N$13,2,FALSE)*VLOOKUP(G63,$O$8:$P$11,2,FALSE),IF(H63=$L$8,IF(#REF!>1,25*#REF!*VLOOKUP(F63,$M$8:$N$13,2,FALSE)*VLOOKUP(G63,$O$8:$P$11,2,FALSE),25*VLOOKUP(F63,$M$8:$N$13,2,FALSE)*VLOOKUP(G63,$O$8:$P$11,2,FALSE))))))))","v":0}]
[56,null,null,null,null,null,null,null,{"$f":"IF(ISBLANK(D64),0,IF(D64=$S$8,0,IF(H64=$L$9,20*VLOOKUP(F64,$M$8:$N$13,2,FALSE)*VLOOKUP(G64,$O$8:$P$11,2,FALSE),IF(H64=$L$10,15*VLOOKUP(F64,$M$8:$N$13,2,FALSE)*VLOOKUP(G64,$O$8:$P$11,2,FALSE),IF(H64=$L$11,5*VLOOKUP(F64,$M$8:$N$13,2,FALSE)*VLOOKUP(G64,$O$8:$P$11,2,FALSE),IF(H64=$L$8,IF(#REF!>1,25*#REF!*VLOOKUP(F64,$M$8:$N$13,2,FALSE)*VLOOKUP(G64,$O$8:$P$11,2,FALSE),25*VLOOKUP(F64,$M$8:$N$13,2,FALSE)*VLOOKUP(G64,$O$8:$P$11,2,FALSE))))))))","v":0}]
[57,null,null,null,null,null,null,null,{"$f":"IF(ISBLANK(D65),0,IF(D65=$S$8,0,IF(H65=$L$9,20*VLOOKUP(F65,$M$8:$N$13,2,FALSE)*VLOOKUP(G65,$O$8:$P$11,2,FALSE),IF(H65=$L$10,15*VLOOKUP(F65,$M$8:$N$13,2,FALSE)*VLOOKUP(G65,$O$8:$P$11,2,FALSE),IF(H65=$L$11,5*VLOOKUP(F65,$M$8:$N$13,2,FALSE)*VLOOKUP(G65,$O$8:$P$11,2,FALSE),IF(H65=$L$8,IF(#REF!>1,25*#REF!*VLOOKUP(F65,$M$8:$N$13,2,FALSE)*VLOOKUP(G65,$O$8:$P$11,2,FALSE),25*VLOOKUP(F65,$M$8:$N$13,2,FALSE)*VLOOKUP(G65,$O$8:$P$11,2,FALSE))))))))","v":0}]
[58,null,null,null,null,null,null,null,{"$f":"IF(ISBLANK(D66),0,IF(D66=$S$8,0,IF(H66=$L$9,20*VLOOKUP(F66,$M$8:$N$13,2,FALSE)*VLOOKUP(G66,$O$8:$P$11,2,FALSE),IF(H66=$L$10,15*VLOOKUP(F66,$M$8:$N$13,2,FALSE)*VLOOKUP(G66,$O$8:$P$11,2,FALSE),IF(H66=$L$11,5*VLOOKUP(F66,$M$8:$N$13,2,FALSE)*VLOOKUP(G66,$O$8:$P$11,2,FALSE),IF(H66=$L$8,IF(#REF!>1,25*#REF!*VLOOKUP(F66,$M$8:$N$13,2,FALSE)*VLOOKUP(G66,$O$8:$P$11,2,FALSE),25*VLOOKUP(F66,$M$8:$N$13,2,FALSE)*VLOOKUP(G66,$O$8:$P$11,2,FALSE))))))))","v":0}]
[59,null,null,null,null,null,null,null,{"$f":"IF(ISBLANK(D67),0,IF(D67=$S$8,0,IF(H67=$L$9,20*VLOOKUP(F67,$M$8:$N$13,2,FALSE)*VLOOKUP(G67,$O$8:$P$11,2,FALSE),IF(H67=$L$10,15*VLOOKUP(F67,$M$8:$N$13,2,FALSE)*VLOOKUP(G67,$O$8:$P$11,2,FALSE),IF(H67=$L$11,5*VLOOKUP(F67,$M$8:$N$13,2,FALSE)*VLOOKUP(G67,$O$8:$P$11,2,FALSE),IF(H67=$L$8,IF(#REF!>1,25*#REF!*VLOOKUP(F67,$M$8:$N$13,2,FALSE)*VLOOKUP(G67,$O$8:$P$11,2,FALSE),25*VLOOKUP(F67,$M$8:$N$13,2,FALSE)*VLOOKUP(G67,$O$8:$P$11,2,FALSE))))))))","v":0}]
[60,null,null,null,null,null,null,null,{"$f":"IF(ISBLANK(D68),0,IF(D68=$S$8,0,IF(H68=$L$9,20*VLOOKUP(F68,$M$8:$N$13,2,FALSE)*VLOOKUP(G68,$O$8:$P$11,2,FALSE),IF(H68=$L$10,15*VLOOKUP(F68,$M$8:$N$13,2,FALSE)*VLOOKUP(G68,$O$8:$P$11,2,FALSE),IF(H68=$L$11,5*VLOOKUP(F68,$M$8:$N$13,2,FALSE)*VLOOKUP(G68,$O$8:$P$11,2,FALSE),IF(H68=$L$8,IF(#REF!>1,25*#REF!*VLOOKUP(F68,$M$8:$N$13,2,FALSE)*VLOOKUP(G68,$O$8:$P$11,2,FALSE),25*VLOOKUP(F68,$M$8:$N$13,2,FALSE)*VLOOKUP(G68,$O$8:$P$11,2,FALSE))))))))","v":0}]
[61,null,null,null,null,null,null,null,{"$f":"IF(ISBLANK(D69),0,IF(D69=$S$8,0,IF(H69=$L$9,20*VLOOKUP(F69,$M$8:$N$13,2,FALSE)*VLOOKUP(G69,$O$8:$P$11,2,FALSE),IF(H69=$L$10,15*VLOOKUP(F69,$M$8:$N$13,2,FALSE)*VLOOKUP(G69,$O$8:$P$11,2,FALSE),IF(H69=$L$11,5*VLOOKUP(F69,$M$8:$N$13,2,FALSE)*VLOOKUP(G69,$O$8:$P$11,2,FALSE),IF(H69=$L$8,IF(#REF!>1,25*#REF!*VLOOKUP(F69,$M$8:$N$13,2,FALSE)*VLOOKUP(G69,$O$8:$P$11,2,FALSE),25*VLOOKUP(F69,$M$8:$N$13,2,FALSE)*VLOOKUP(G69,$O$8:$P$11,2,FALSE))))))))","v":0}]
[62,null,null,null,null,null,null,null,{"$f":"IF(ISBLANK(D70),0,IF(D70=$S$8,0,IF(H70=$L$9,20*VLOOKUP(F70,$M$8:$N$13,2,FALSE)*VLOOKUP(G70,$O$8:$P$11,2,FALSE),IF(H70=$L$10,15*VLOOKUP(F70,$M$8:$N$13,2,FALSE)*VLOOKUP(G70,$O$8:$P$11,2,FALSE),IF(H70=$L$11,5*VLOOKUP(F70,$M$8:$N$13,2,FALSE)*VLOOKUP(G70,$O$8:$P$11,2,FALSE),IF(H70=$L$8,IF(#REF!>1,25*#REF!*VLOOKUP(F70,$M$8:$N$13,2,FALSE)*VLOOKUP(G70,$O$8:$P$11,2,FALSE),25*VLOOKUP(F70,$M$8:$N$13,2,FALSE)*VLOOKUP(G70,$O$8:$P$11,2,FALSE))))))))","v":0}]
[63,null,null,null,null,null,null,null,{"$f":"IF(ISBLANK(D71),0,IF(D71=$S$8,0,IF(H71=$L$9,20*VLOOKUP(F71,$M$8:$N$13,2,FALSE)*VLOOKUP(G71,$O$8:$P$11,2,FALSE),IF(H71=$L$10,15*VLOOKUP(F71,$M$8:$N$13,2,FALSE)*VLOOKUP(G71,$O$8:$P$11,2,FALSE),IF(H71=$L$11,5*VLOOKUP(F71,$M$8:$N$13,2,FALSE)*VLOOKUP(G71,$O$8:$P$11,2,FALSE),IF(H71=$L$8,IF(#REF!>1,25*#REF!*VLOOKUP(F71,$M$8:$N$13,2,FALSE)*VLOOKUP(G71,$O$8:$P$11,2,FALSE),25*VLOOKUP(F71,$M$8:$N$13,2,FALSE)*VLOOKUP(G71,$O$8:$P$11,2,FALSE))))))))","v":0}]
[64,null,null,null,null,null,null,null,{"$f":"IF(ISBLANK(D72),0,IF(D72=$S$8,0,IF(H72=$L$9,20*VLOOKUP(F72,$M$8:$N$13,2,FALSE)*VLOOKUP(G72,$O$8:$P$11,2,FALSE),IF(H72=$L$10,15*VLOOKUP(F72,$M$8:$N$13,2,FALSE)*VLOOKUP(G72,$O$8:$P$11,2,FALSE),IF(H72=$L$11,5*VLOOKUP(F72,$M$8:$N$13,2,FALSE)*VLOOKUP(G72,$O$8:$P$11,2,FALSE),IF(H72=$L$8,IF(#REF!>1,25*#REF!*VLOOKUP(F72,$M$8:$N$13,2,FALSE)*VLOOKUP(G72,$O$8:$P$11,2,FALSE),25*VLOOKUP(F72,$M$8:$N$13,2,FALSE)*VLOOKUP(G72,$O$8:$P$11,2,FALSE))))))))","v":0}]
[65,null,null,null,null,null,null,null,{"$f":"IF(ISBLANK(D73),0,IF(D73=$S$8,0,IF(H73=$L$9,20*VLOOKUP(F73,$M$8:$N$13,2,FALSE)*VLOOKUP(G73,$O$8:$P$11,2,FALSE),IF(H73=$L$10,15*VLOOKUP(F73,$M$8:$N$13,2,FALSE)*VLOOKUP(G73,$O$8:$P$11,2,FALSE),IF(H73=$L$11,5*VLOOKUP(F73,$M$8:$N$13,2,FALSE)*VLOOKUP(G73,$O$8:$P$11,2,FALSE),IF(H73=$L$8,IF(#REF!>1,25*#REF!*VLOOKUP(F73,$M$8:$N$13,2,FALSE)*VLOOKUP(G73,$O$8:$P$11,2,FALSE),25*VLOOKUP(F73,$M$8:$N$13,2,FALSE)*VLOOKUP(G73,$O$8:$P$11,2,FALSE))))))))","v":0}]
[66,null,null,null,null,null,null,null,{"$f":"IF(ISBLANK(D74),0,IF(D74=$S$8,0,IF(H74=$L$9,20*VLOOKUP(F74,$M$8:$N$13,2,FALSE)*VLOOKUP(G74,$O$8:$P$11,2,FALSE),IF(H74=$L$10,15*VLOOKUP(F74,$M$8:$N$13,2,FALSE)*VLOOKUP(G74,$O$8:$P$11,2,FALSE),IF(H74=$L$11,5*VLOOKUP(F74,$M$8:$N$13,2,FALSE)*VLOOKUP(G74,$O$8:$P$11,2,FALSE),IF(H74=$L$8,IF(#REF!>1,25*#REF!*VLOOKUP(F74,$M$8:$N$13,2,FALSE)*VLOOKUP(G74,$O$8:$P$11,2,FALSE),25*VLOOKUP(F74,$M$8:$N$13,2,FALSE)*VLOOKUP(G74,$O$8:$P$11,2,FALSE))))))))","v":0}]
[67,null,null,null,null,null,null,null,{"$f":"IF(ISBLANK(D75),0,IF(D75=$S$8,0,IF(H75=$L$9,20*VLOOKUP(F75,$M$8:$N$13,2,FALSE)*VLOOKUP(G75,$O$8:$P$11,2,FALSE),IF(H75=$L$10,15*VLOOKUP(F75,$M$8:$N$13,2,FALSE)*VLOOKUP(G75,$O$8:$P$11,2,FALSE),IF(H75=$L$11,5*VLOOKUP(F75,$M$8:$N$13,2,FALSE)*VLOOKUP(G75,$O$8:$P$11,2,FALSE),IF(H75=$L$8,IF(#REF!>1,25*#REF!*VLOOKUP(F75,$M$8:$N$13,2,FALSE)*VLOOKUP(G75,$O$8:$P$11,2,FALSE),25*VLOOKUP(F75,$M$8:$N$13,2,FALSE)*VLOOKUP(G75,$O$8:$P$11,2,FALSE))))))))","v":0}]
[68,null,null,null,null,null,null,null,{"$f":"IF(ISBLANK(D76),0,IF(D76=$S$8,0,IF(H76=$L$9,20*VLOOKUP(F76,$M$8:$N$13,2,FALSE)*VLOOKUP(G76,$O$8:$P$11,2,FALSE),IF(H76=$L$10,15*VLOOKUP(F76,$M$8:$N$13,2,FALSE)*VLOOKUP(G76,$O$8:$P$11,2,FALSE),IF(H76=$L$11,5*VLOOKUP(F76,$M$8:$N$13,2,FALSE)*VLOOKUP(G76,$O$8:$P$11,2,FALSE),IF(H76=$L$8,IF(#REF!>1,25*#REF!*VLOOKUP(F76,$M$8:$N$13,2,FALSE)*VLOOKUP(G76,$O$8:$P$11,2,FALSE),25*VLOOKUP(F76,$M$8:$N$13,2,FALSE)*VLOOKUP(G76,$O$8:$P$11,2,FALSE))))))))","v":0}]
[69,null,null,null,null,null,null,null,{"$f":"IF(ISBLANK(D77),0,IF(D77=$S$8,0,IF(H77=$L$9,20*VLOOKUP(F77,$M$8:$N$13,2,FALSE)*VLOOKUP(G77,$O$8:$P$11,2,FALSE),IF(H77=$L$10,15*VLOOKUP(F77,$M$8:$N$13,2,FALSE)*VLOOKUP(G77,$O$8:$P$11,2,FALSE),IF(H77=$L$11,5*VLOOKUP(F77,$M$8:$N$13,2,FALSE)*VLOOKUP(G77,$O$8:$P$11,2,FALSE),IF(H77=$L$8,IF(#REF!>1,25*#REF!*VLOOKUP(F77,$M$8:$N$13,2,FALSE)*VLOOKUP(G77,$O$8:$P$11,2,FALSE),25*VLOOKUP(F77,$M$8:$N$13,2,FALSE)*VLOOKUP(G77,$O$8:$P$11,2,FALSE))))))))","v":0}]
[70,null,null,null,null,null,null,null,{"$f":"IF(ISBLANK(D78),0,IF(D78=$S$8,0,IF(H78=$L$9,20*VLOOKUP(F78,$M$8:$N$13,2,FALSE)*VLOOKUP(G78,$O$8:$P$11,2,FALSE),IF(H78=$L$10,15*VLOOKUP(F78,$M$8:$N$13,2,FALSE)*VLOOKUP(G78,$O$8:$P$11,2,FALSE),IF(H78=$L$11,5*VLOOKUP(F78,$M$8:$N$13,2,FALSE)*VLOOKUP(G78,$O$8:$P$11,2,FALSE),IF(H78=$L$8,IF(#REF!>1,25*#REF!*VLOOKUP(F78,$M$8:$N$13,2,FALSE)*VLOOKUP(G78,$O$8:$P$11,2,FALSE),25*VLOOKUP(F78,$M$8:$N$13,2,FALSE)*VLOOKUP(G78,$O$8:$P$11,2,FALSE))))))))","v":0}]
[71,null,null,null,null,null,null,null,{"$f":"IF(ISBLANK(D79),0,IF(D79=$S$8,0,IF(H79=$L$9,20*VLOOKUP(F79,$M$8:$N$13,2,FALSE)*VLOOKUP(G79,$O$8:$P$11,2,FALSE),IF(H79=$L$10,15*VLOOKUP(F79,$M$8:$N$13,2,FALSE)*VLOOKUP(G79,$O$8:$P$11,2,FALSE),IF(H79=$L$11,5*VLOOKUP(F79,$M$8:$N$13,2,FALSE)*VLOOKUP(G79,$O$8:$P$11,2,FALSE),IF(H79=$L$8,IF(#REF!>1,25*#REF!*VLOOKUP(F79,$M$8:$N$13,2,FALSE)*VLOOKUP(G79,$O$8:$P$11,2,FALSE),25*VLOOKUP(F79,$M$8:$N$13,2,FALSE)*VLOOKUP(G79,$O$8:$P$11,2,FALSE))))))))","v":0}]
[72,null,null,null,null,null,null,null,{"$f":"IF(ISBLANK(D80),0,IF(D80=$S$8,0,IF(H80=$L$9,20*VLOOKUP(F80,$M$8:$N$13,2,FALSE)*VLOOKUP(G80,$O$8:$P$11,2,FALSE),IF(H80=$L$10,15*VLOOKUP(F80,$M$8:$N$13,2,FALSE)*VLOOKUP(G80,$O$8:$P$11,2,FALSE),IF(H80=$L$11,5*VLOOKUP(F80,$M$8:$N$13,2,FALSE)*VLOOKUP(G80,$O$8:$P$11,2,FALSE),IF(H80=$L$8,IF(#REF!>1,25*#REF!*VLOOKUP(F80,$M$8:$N$13,2,FALSE)*VLOOKUP(G80,$O$8:$P$11,2,FALSE),25*VLOOKUP(F80,$M$8:$N$13,2,FALSE)*VLOOKUP(G80,$O$8:$P$11,2,FALSE))))))))","v":0}]
[73,null,null,null,null,null,null,null,{"$f":"IF(ISBLANK(D81),0,IF(D81=$S$8,0,IF(H81=$L$9,20*VLOOKUP(F81,$M$8:$N$13,2,FALSE)*VLOOKUP(G81,$O$8:$P$11,2,FALSE),IF(H81=$L$10,15*VLOOKUP(F81,$M$8:$N$13,2,FALSE)*VLOOKUP(G81,$O$8:$P$11,2,FALSE),IF(H81=$L$11,5*VLOOKUP(F81,$M$8:$N$13,2,FALSE)*VLOOKUP(G81,$O$8:$P$11,2,FALSE),IF(H81=$L$8,IF(#REF!>1,25*#REF!*VLOOKUP(F81,$M$8:$N$13,2,FALSE)*VLOOKUP(G81,$O$8:$P$11,2,FALSE),25*VLOOKUP(F81,$M$8:$N$13,2,FALSE)*VLOOKUP(G81,$O$8:$P$11,2,FALSE))))))))","v":0}]
[74,null,null,null,null,null,null,null,{"$f":"IF(ISBLANK(D82),0,IF(D82=$S$8,0,IF(H82=$L$9,20*VLOOKUP(F82,$M$8:$N$13,2,FALSE)*VLOOKUP(G82,$O$8:$P$11,2,FALSE),IF(H82=$L$10,15*VLOOKUP(F82,$M$8:$N$13,2,FALSE)*VLOOKUP(G82,$O$8:$P$11,2,FALSE),IF(H82=$L$11,5*VLOOKUP(F82,$M$8:$N$13,2,FALSE)*VLOOKUP(G82,$O$8:$P$11,2,FALSE),IF(H82=$L$8,IF(#REF!>1,25*#REF!*VLOOKUP(F82,$M$8:$N$13,2,FALSE)*VLOOKUP(G82,$O$8:$P$11,2,FALSE),25*VLOOKUP(F82,$M$8:$N$13,2,FALSE)*VLOOKUP(G82,$O$8:$P$11,2,FALSE))))))))","v":0}]
[75,null,null,null,null,null,null,null,{"$f":"IF(ISBLANK(D83),0,IF(D83=$S$8,0,IF(H83=$L$9,20*VLOOKUP(F83,$M$8:$N$13,2,FALSE)*VLOOKUP(G83,$O$8:$P$11,2,FALSE),IF(H83=$L$10,15*VLOOKUP(F83,$M$8:$N$13,2,FALSE)*VLOOKUP(G83,$O$8:$P$11,2,FALSE),IF(H83=$L$11,5*VLOOKUP(F83,$M$8:$N$13,2,FALSE)*VLOOKUP(G83,$O$8:$P$11,2,FALSE),IF(H83=$L$8,IF(#REF!>1,25*#REF!*VLOOKUP(F83,$M$8:$N$13,2,FALSE)*VLOOKUP(G83,$O$8:$P$11,2,FALSE),25*VLOOKUP(F83,$M$8:$N$13,2,FALSE)*VLOOKUP(G83,$O$8:$P$11,2,FALSE))))))))","v":0}]
[76,null,null,null,null,null,null,null,{"$f":"IF(ISBLANK(D84),0,IF(D84=$S$8,0,IF(H84=$L$9,20*VLOOKUP(F84,$M$8:$N$13,2,FALSE)*VLOOKUP(G84,$O$8:$P$11,2,FALSE),IF(H84=$L$10,15*VLOOKUP(F84,$M$8:$N$13,2,FALSE)*VLOOKUP(G84,$O$8:$P$11,2,FALSE),IF(H84=$L$11,5*VLOOKUP(F84,$M$8:$N$13,2,FALSE)*VLOOKUP(G84,$O$8:$P$11,2,FALSE),IF(H84=$L$8,IF(#REF!>1,25*#REF!*VLOOKUP(F84,$M$8:$N$13,2,FALSE)*VLOOKUP(G84,$O$8:$P$11,2,FALSE),25*VLOOKUP(F84,$M$8:$N$13,2,FALSE)*VLOOKUP(G84,$O$8:$P$11,2,FALSE))))))))","v":0}]
[77,null,null,null,null,null,null,null,{"$f":"IF(ISBLANK(D85),0,IF(D85=$S$8,0,IF(H85=$L$9,20*VLOOKUP(F85,$M$8:$N$13,2,FALSE)*VLOOKUP(G85,$O$8:$P$11,2,FALSE),IF(H85=$L$10,15*VLOOKUP(F85,$M$8:$N$13,2,FALSE)*VLOOKUP(G85,$O$8:$P$11,2,FALSE),IF(H85=$L$11,5*VLOOKUP(F85,$M$8:$N$13,2,FALSE)*VLOOKUP(G85,$O$8:$P$11,2,FALSE),IF(H85=$L$8,IF(#REF!>1,25*#REF!*VLOOKUP(F85,$M$8:$N$13,2,FALSE)*VLOOKUP(G85,$O$8:$P$11,2,FALSE),25*VLOOKUP(F85,$M$8:$N$13,2,FALSE)*VLOOKUP(G85,$O$8:$P$11,2,FALSE))))))))","v":0}]
[78,null,null,null,null,null,null,null,{"$f":"IF(ISBLANK(D86),0,IF(D86=$S$8,0,IF(H86=$L$9,20*VLOOKUP(F86,$M$8:$N$13,2,FALSE)*VLOOKUP(G86,$O$8:$P$11,2,FALSE),IF(H86=$L$10,15*VLOOKUP(F86,$M$8:$N$13,2,FALSE)*VLOOKUP(G86,$O$8:$P$11,2,FALSE),IF(H86=$L$11,5*VLOOKUP(F86,$M$8:$N$13,2,FALSE)*VLOOKUP(G86,$O$8:$P$11,2,FALSE),IF(H86=$L$8,IF(#REF!>1,25*#REF!*VLOOKUP(F86,$M$8:$N$13,2,FALSE)*VLOOKUP(G86,$O$8:$P$11,2,FALSE),25*VLOOKUP(F86,$M$8:$N$13,2,FALSE)*VLOOKUP(G86,$O$8:$P$11,2,FALSE))))))))","v":0}]
[79,null,null,null,null,null,null,null,{"$f":"IF(ISBLANK(D87),0,IF(D87=$S$8,0,IF(H87=$L$9,20*VLOOKUP(F87,$M$8:$N$13,2,FALSE)*VLOOKUP(G87,$O$8:$P$11,2,FALSE),IF(H87=$L$10,15*VLOOKUP(F87,$M$8:$N$13,2,FALSE)*VLOOKUP(G87,$O$8:$P$11,2,FALSE),IF(H87=$L$11,5*VLOOKUP(F87,$M$8:$N$13,2,FALSE)*VLOOKUP(G87,$O$8:$P$11,2,FALSE),IF(H87=$L$8,IF(#REF!>1,25*#REF!*VLOOKUP(F87,$M$8:$N$13,2,FALSE)*VLOOKUP(G87,$O$8:$P$11,2,FALSE),25*VLOOKUP(F87,$M$8:$N$13,2,FALSE)*VLOOKUP(G87,$O$8:$P$11,2,FALSE))))))))","v":0}]
[80,null,null,null,null,null,null,null,{"$f":"IF(ISBLANK(D88),0,IF(D88=$S$8,0,IF(H88=$L$9,20*VLOOKUP(F88,$M$8:$N$13,2,FALSE)*VLOOKUP(G88,$O$8:$P$11,2,FALSE),IF(H88=$L$10,15*VLOOKUP(F88,$M$8:$N$13,2,FALSE)*VLOOKUP(G88,$O$8:$P$11,2,FALSE),IF(H88=$L$11,5*VLOOKUP(F88,$M$8:$N$13,2,FALSE)*VLOOKUP(G88,$O$8:$P$11,2,FALSE),IF(H88=$L$8,IF(#REF!>1,25*#REF!*VLOOKUP(F88,$M$8:$N$13,2,FALSE)*VLOOKUP(G88,$O$8:$P$11,2,FALSE),25*VLOOKUP(F88,$M$8:$N$13,2,FALSE)*VLOOKUP(G88,$O$8:$P$11,2,FALSE))))))))","v":0}]
[81,null,null,null,null,null,null,null,{"$f":"IF(ISBLANK(D89),0,IF(D89=$S$8,0,IF(H89=$L$9,20*VLOOKUP(F89,$M$8:$N$13,2,FALSE)*VLOOKUP(G89,$O$8:$P$11,2,FALSE),IF(H89=$L$10,15*VLOOKUP(F89,$M$8:$N$13,2,FALSE)*VLOOKUP(G89,$O$8:$P$11,2,FALSE),IF(H89=$L$11,5*VLOOKUP(F89,$M$8:$N$13,2,FALSE)*VLOOKUP(G89,$O$8:$P$11,2,FALSE),IF(H89=$L$8,IF(#REF!>1,25*#REF!*VLOOKUP(F89,$M$8:$N$13,2,FALSE)*VLOOKUP(G89,$O$8:$P$11,2,FALSE),25*VLOOKUP(F89,$M$8:$N$13,2,FALSE)*VLOOKUP(G89,$O$8:$P$11,2,FALSE))))))))","v":0}]
[82,null,null,null,null,null,null,null,{"$f":"IF(ISBLANK(D90),0,IF(D90=$S$8,0,IF(H90=$L$9,20*VLOOKUP(F90,$M$8:$N$13,2,FALSE)*VLOOKUP(G90,$O$8:$P$11,2,FALSE),IF(H90=$L$10,15*VLOOKUP(F90,$M$8:$N$13,2,FALSE)*VLOOKUP(G90,$O$8:$P$11,2,FALSE),IF(H90=$L$11,5*VLOOKUP(F90,$M$8:$N$13,2,FALSE)*VLOOKUP(G90,$O$8:$P$11,2,FALSE),IF(H90=$L$8,IF(#REF!>1,25*#REF!*VLOOKUP(F90,$M$8:$N$13,2,FALSE)*VLOOKUP(G90,$O$8:$P$11,2,FALSE),25*VLOOKUP(F90,$M$8:$N$13,2,FALSE)*VLOOKUP(G90,$O$8:$P$11,2,FALSE))))))))","v":0}]
[83,null,null,null,null,null,null,null,{"$f":"IF(ISBLANK(D91),0,IF(D91=$S$8,0,IF(H91=$L$9,20*VLOOKUP(F91,$M$8:$N$13,2,FALSE)*VLOOKUP(G91,$O$8:$P$11,2,FALSE),IF(H91=$L$10,15*VLOOKUP(F91,$M$8:$N$13,2,FALSE)*VLOOKUP(G91,$O$8:$P$11,2,FALSE),IF(H91=$L$11,5*VLOOKUP(F91,$M$8:$N$13,2,FALSE)*VLOOKUP(G91,$O$8:$P$11,2,FALSE),IF(H91=$L$8,IF(#REF!>1,25*#REF!*VLOOKUP(F91,$M$8:$N$13,2,FALSE)*VLOOKUP(G91,$O$8:$P$11,2,FALSE),25*VLOOKUP(F91,$M$8:$N$13,2,FALSE)*VLOOKUP(G91,$O$8:$P$11,2,FALSE))))))))","v":0}]
[84,null,null,null,null,null,null,null,{"$f":"IF(ISBLANK(D92),0,IF(D92=$S$8,0,IF(H92=$L$9,20*VLOOKUP(F92,$M$8:$N$13,2,FALSE)*VLOOKUP(G92,$O$8:$P$11,2,FALSE),IF(H92=$L$10,15*VLOOKUP(F92,$M$8:$N$13,2,FALSE)*VLOOKUP(G92,$O$8:$P$11,2,FALSE),IF(H92=$L$11,5*VLOOKUP(F92,$M$8:$N$13,2,FALSE)*VLOOKUP(G92,$O$8:$P$11,2,FALSE),IF(H92=$L$8,IF(#REF!>1,25*#REF!*VLOOKUP(F92,$M$8:$N$13,2,FALSE)*VLOOKUP(G92,$O$8:$P$11,2,FALSE),25*VLOOKUP(F92,$M$8:$N$13,2,FALSE)*VLOOKUP(G92,$O$8:$P$11,2,FALSE))))))))","v":0}]
[85,null,null,null,null,null,null,null,{"$f":"IF(ISBLANK(D93),0,IF(D93=$S$8,0,IF(H93=$L$9,20*VLOOKUP(F93,$M$8:$N$13,2,FALSE)*VLOOKUP(G93,$O$8:$P$11,2,FALSE),IF(H93=$L$10,15*VLOOKUP(F93,$M$8:$N$13,2,FALSE)*VLOOKUP(G93,$O$8:$P$11,2,FALSE),IF(H93=$L$11,5*VLOOKUP(F93,$M$8:$N$13,2,FALSE)*VLOOKUP(G93,$O$8:$P$11,2,FALSE),IF(H93=$L$8,IF(#REF!>1,25*#REF!*VLOOKUP(F93,$M$8:$N$13,2,FALSE)*VLOOKUP(G93,$O$8:$P$11,2,FALSE),25*VLOOKUP(F93,$M$8:$N$13,2,FALSE)*VLOOKUP(G93,$O$8:$P$11,2,FALSE))))))))","v":0}]
[86,null,null,null,null,null,null,null,{"$f":"IF(ISBLANK(D94),0,IF(D94=$S$8,0,IF(H94=$L$9,20*VLOOKUP(F94,$M$8:$N$13,2,FALSE)*VLOOKUP(G94,$O$8:$P$11,2,FALSE),IF(H94=$L$10,15*VLOOKUP(F94,$M$8:$N$13,2,FALSE)*VLOOKUP(G94,$O$8:$P$11,2,FALSE),IF(H94=$L$11,5*VLOOKUP(F94,$M$8:$N$13,2,FALSE)*VLOOKUP(G94,$O$8:$P$11,2,FALSE),IF(H94=$L$8,IF(#REF!>1,25*#REF!*VLOOKUP(F94,$M$8:$N$13,2,FALSE)*VLOOKUP(G94,$O$8:$P$11,2,FALSE),25*VLOOKUP(F94,$M$8:$N$13,2,FALSE)*VLOOKUP(G94,$O$8:$P$11,2,FALSE))))))))","v":0}]
[87,null,null,null,null,null,null,null,{"$f":"IF(ISBLANK(D95),0,IF(D95=$S$8,0,IF(H95=$L$9,20*VLOOKUP(F95,$M$8:$N$13,2,FALSE)*VLOOKUP(G95,$O$8:$P$11,2,FALSE),IF(H95=$L$10,15*VLOOKUP(F95,$M$8:$N$13,2,FALSE)*VLOOKUP(G95,$O$8:$P$11,2,FALSE),IF(H95=$L$11,5*VLOOKUP(F95,$M$8:$N$13,2,FALSE)*VLOOKUP(G95,$O$8:$P$11,2,FALSE),IF(H95=$L$8,IF(#REF!>1,25*#REF!*VLOOKUP(F95,$M$8:$N$13,2,FALSE)*VLOOKUP(G95,$O$8:$P$11,2,FALSE),25*VLOOKUP(F95,$M$8:$N$13,2,FALSE)*VLOOKUP(G95,$O$8:$P$11,2,FALSE))))))))","v":0}]
[88,null,null,null,null,null,null,null,{"$f":"IF(ISBLANK(D96),0,IF(D96=$S$8,0,IF(H96=$L$9,20*VLOOKUP(F96,$M$8:$N$13,2,FALSE)*VLOOKUP(G96,$O$8:$P$11,2,FALSE),IF(H96=$L$10,15*VLOOKUP(F96,$M$8:$N$13,2,FALSE)*VLOOKUP(G96,$O$8:$P$11,2,FALSE),IF(H96=$L$11,5*VLOOKUP(F96,$M$8:$N$13,2,FALSE)*VLOOKUP(G96,$O$8:$P$11,2,FALSE),IF(H96=$L$8,IF(#REF!>1,25*#REF!*VLOOKUP(F96,$M$8:$N$13,2,FALSE)*VLOOKUP(G96,$O$8:$P$11,2,FALSE),25*VLOOKUP(F96,$M$8:$N$13,2,FALSE)*VLOOKUP(G96,$O$8:$P$11,2,FALSE))))))))","v":0}]
[89,null,null,null,null,null,null,null,{"$f":"IF(ISBLANK(D97),0,IF(D97=$S$8,0,IF(H97=$L$9,20*VLOOKUP(F97,$M$8:$N$13,2,FALSE)*VLOOKUP(G97,$O$8:$P$11,2,FALSE),IF(H97=$L$10,15*VLOOKUP(F97,$M$8:$N$13,2,FALSE)*VLOOKUP(G97,$O$8:$P$11,2,FALSE),IF(H97=$L$11,5*VLOOKUP(F97,$M$8:$N$13,2,FALSE)*VLOOKUP(G97,$O$8:$P$11,2,FALSE),IF(H97=$L$8,IF(#REF!>1,25*#REF!*VLOOKUP(F97,$M$8:$N$13,2,FALSE)*VLOOKUP(G97,$O$8:$P$11,2,FALSE),25*VLOOKUP(F97,$M$8:$N$13,2,FALSE)*VLOOKUP(G97,$O$8:$P$11,2,FALSE))))))))","v":0}]
[90,null,null,null,null,null,null,null,{"$f":"IF(ISBLANK(D98),0,IF(D98=$S$8,0,IF(H98=$L$9,20*VLOOKUP(F98,$M$8:$N$13,2,FALSE)*VLOOKUP(G98,$O$8:$P$11,2,FALSE),IF(H98=$L$10,15*VLOOKUP(F98,$M$8:$N$13,2,FALSE)*VLOOKUP(G98,$O$8:$P$11,2,FALSE),IF(H98=$L$11,5*VLOOKUP(F98,$M$8:$N$13,2,FALSE)*VLOOKUP(G98,$O$8:$P$11,2,FALSE),IF(H98=$L$8,IF(#REF!>1,25*#REF!*VLOOKUP(F98,$M$8:$N$13,2,FALSE)*VLOOKUP(G98,$O$8:$P$11,2,FALSE),25*VLOOKUP(F98,$M$8:$N$13,2,FALSE)*VLOOKUP(G98,$O$8:$P$11,2,FALSE))))))))","v":0}]
[91,null,null,null,null,null,null,null,{"$f":"IF(ISBLANK(D99),0,IF(D99=$S$8,0,IF(H99=$L$9,20*VLOOKUP(F99,$M$8:$N$13,2,FALSE)*VLOOKUP(G99,$O$8:$P$11,2,FALSE),IF(H99=$L$10,15*VLOOKUP(F99,$M$8:$N$13,2,FALSE)*VLOOKUP(G99,$O$8:$P$11,2,FALSE),IF(H99=$L$11,5*VLOOKUP(F99,$M$8:$N$13,2,FALSE)*VLOOKUP(G99,$O$8:$P$11,2,FALSE),IF(H99=$L$8,IF(#REF!>1,25*#REF!*VLOOKUP(F99,$M$8:$N$13,2,FALSE)*VLOOKUP(G99,$O$8:$P$11,2,FALSE),25*VLOOKUP(F99,$M$8:$N$13,2,FALSE)*VLOOKUP(G99,$O$8:$P$11,2,FALSE))))))))","v":0}]
[92,null,null,null,null,null,null,null,{"$f":"IF(ISBLANK(D100),0,IF(D100=$S$8,0,IF(H100=$L$9,20*VLOOKUP(F100,$M$8:$N$13,2,FALSE)*VLOOKUP(G100,$O$8:$P$11,2,FALSE),IF(H100=$L$10,15*VLOOKUP(F100,$M$8:$N$13,2,FALSE)*VLOOKUP(G100,$O$8:$P$11,2,FALSE),IF(H100=$L$11,5*VLOOKUP(F100,$M$8:$N$13,2,FALSE)*VLOOKUP(G100,$O$8:$P$11,2,FALSE),IF(H100=$L$8,IF(#REF!>1,25*#REF!*VLOOKUP(F100,$M$8:$N$13,2,FALSE)*VLOOKUP(G100,$O$8:$P$11,2,FALSE),25*VLOOKUP(F100,$M$8:$N$13,2,FALSE)*VLOOKUP(G100,$O$8:$P$11,2,FALSE))))))))","v":0}]
[93,null,null,null,null,null,null,null,{"$f":"IF(ISBLANK(D101),0,IF(D101=$S$8,0,IF(H101=$L$9,20*VLOOKUP(F101,$M$8:$N$13,2,FALSE)*VLOOKUP(G101,$O$8:$P$11,2,FALSE),IF(H101=$L$10,15*VLOOKUP(F101,$M$8:$N$13,2,FALSE)*VLOOKUP(G101,$O$8:$P$11,2,FALSE),IF(H101=$L$11,5*VLOOKUP(F101,$M$8:$N$13,2,FALSE)*VLOOKUP(G101,$O$8:$P$11,2,FALSE),IF(H101=$L$8,IF(#REF!>1,25*#REF!*VLOOKUP(F101,$M$8:$N$13,2,FALSE)*VLOOKUP(G101,$O$8:$P$11,2,FALSE),25*VLOOKUP(F101,$M$8:$N$13,2,FALSE)*VLOOKUP(G101,$O$8:$P$11,2,FALSE))))))))","v":0}]
[94,null,null,null,null,null,null,null,{"$f":"IF(ISBLANK(D102),0,IF(D102=$S$8,0,IF(H102=$L$9,20*VLOOKUP(F102,$M$8:$N$13,2,FALSE)*VLOOKUP(G102,$O$8:$P$11,2,FALSE),IF(H102=$L$10,15*VLOOKUP(F102,$M$8:$N$13,2,FALSE)*VLOOKUP(G102,$O$8:$P$11,2,FALSE),IF(H102=$L$11,5*VLOOKUP(F102,$M$8:$N$13,2,FALSE)*VLOOKUP(G102,$O$8:$P$11,2,FALSE),IF(H102=$L$8,IF(#REF!>1,25*#REF!*VLOOKUP(F102,$M$8:$N$13,2,FALSE)*VLOOKUP(G102,$O$8:$P$11,2,FALSE),25*VLOOKUP(F102,$M$8:$N$13,2,FALSE)*VLOOKUP(G102,$O$8:$P$11,2,FALSE))))))))","v":0}]
[95,null,null,null,null,null,null,null,{"$f":"IF(ISBLANK(D103),0,IF(D103=$S$8,0,IF(H103=$L$9,20*VLOOKUP(F103,$M$8:$N$13,2,FALSE)*VLOOKUP(G103,$O$8:$P$11,2,FALSE),IF(H103=$L$10,15*VLOOKUP(F103,$M$8:$N$13,2,FALSE)*VLOOKUP(G103,$O$8:$P$11,2,FALSE),IF(H103=$L$11,5*VLOOKUP(F103,$M$8:$N$13,2,FALSE)*VLOOKUP(G103,$O$8:$P$11,2,FALSE),IF(H103=$L$8,IF(#REF!>1,25*#REF!*VLOOKUP(F103,$M$8:$N$13,2,FALSE)*VLOOKUP(G103,$O$8:$P$11,2,FALSE),25*VLOOKUP(F103,$M$8:$N$13,2,FALSE)*VLOOKUP(G103,$O$8:$P$11,2,FALSE))))))))","v":0}]
[96,null,null,null,null,null,null,null,{"$f":"IF(ISBLANK(D104),0,IF(D104=$S$8,0,IF(H104=$L$9,20*VLOOKUP(F104,$M$8:$N$13,2,FALSE)*VLOOKUP(G104,$O$8:$P$11,2,FALSE),IF(H104=$L$10,15*VLOOKUP(F104,$M$8:$N$13,2,FALSE)*VLOOKUP(G104,$O$8:$P$11,2,FALSE),IF(H104=$L$11,5*VLOOKUP(F104,$M$8:$N$13,2,FALSE)*VLOOKUP(G104,$O$8:$P$11,2,FALSE),IF(H104=$L$8,IF(#REF!>1,25*#REF!*VLOOKUP(F104,$M$8:$N$13,2,FALSE)*VLOOKUP(G104,$O$8:$P$11,2,FALSE),25*VLOOKUP(F104,$M$8:$N$13,2,FALSE)*VLOOKUP(G104,$O$8:$P$11,2,FALSE))))))))","v":0}]
[97,null,null,null,null,null,null,null,{"$f":"IF(ISBLANK(D105),0,IF(D105=$S$8,0,IF(H105=$L$9,20*VLOOKUP(F105,$M$8:$N$13,2,FALSE)*VLOOKUP(G105,$O$8:$P$11,2,FALSE),IF(H105=$L$10,15*VLOOKUP(F105,$M$8:$N$13,2,FALSE)*VLOOKUP(G105,$O$8:$P$11,2,FALSE),IF(H105=$L$11,5*VLOOKUP(F105,$M$8:$N$13,2,FALSE)*VLOOKUP(G105,$O$8:$P$11,2,FALSE),IF(H105=$L$8,IF(#REF!>1,25*#REF!*VLOOKUP(F105,$M$8:$N$13,2,FALSE)*VLOOKUP(G105,$O$8:$P$11,2,FALSE),25*VLOOKUP(F105,$M$8:$N$13,2,FALSE)*VLOOKUP(G105,$O$8:$P$11,2,FALSE))))))))","v":0}]
[98,null,null,null,null,null,null,null,{"$f":"IF(ISBLANK(D106),0,IF(D106=$S$8,0,IF(H106=$L$9,20*VLOOKUP(F106,$M$8:$N$13,2,FALSE)*VLOOKUP(G106,$O$8:$P$11,2,FALSE),IF(H106=$L$10,15*VLOOKUP(F106,$M$8:$N$13,2,FALSE)*VLOOKUP(G106,$O$8:$P$11,2,FALSE),IF(H106=$L$11,5*VLOOKUP(F106,$M$8:$N$13,2,FALSE)*VLOOKUP(G106,$O$8:$P$11,2,FALSE),IF(H106=$L$8,IF(#REF!>1,25*#REF!*VLOOKUP(F106,$M$8:$N$13,2,FALSE)*VLOOKUP(G106,$O$8:$P$11,2,FALSE),25*VLOOKUP(F106,$M$8:$N$13,2,FALSE)*VLOOKUP(G106,$O$8:$P$11,2,FALSE))))))))","v":0}]
[99,null,null,null,null,null,null,null,{"$f":"IF(ISBLANK(D107),0,IF(D107=$S$8,0,IF(H107=$L$9,20*VLOOKUP(F107,$M$8:$N$13,2,FALSE)*VLOOKUP(G107,$O$8:$P$11,2,FALSE),IF(H107=$L$10,15*VLOOKUP(F107,$M$8:$N$13,2,FALSE)*VLOOKUP(G107,$O$8:$P$11,2,FALSE),IF(H107=$L$11,5*VLOOKUP(F107,$M$8:$N$13,2,FALSE)*VLOOKUP(G107,$O$8:$P$11,2,FALSE),IF(H107=$L$8,IF(#REF!>1,25*#REF!*VLOOKUP(F107,$M$8:$N$13,2,FALSE)*VLOOKUP(G107,$O$8:$P$11,2,FALSE),25*VLOOKUP(F107,$M$8:$N$13,2,FALSE)*VLOOKUP(G107,$O$8:$P$11,2,FALSE))))))))","v":0}]
[100,null,null,null,null,null,null,null,{"$f":"IF(ISBLANK(D108),0,IF(D108=$S$8,0,IF(H108=$L$9,20*VLOOKUP(F108,$M$8:$N$13,2,FALSE)*VLOOKUP(G108,$O$8:$P$11,2,FALSE),IF(H108=$L$10,15*VLOOKUP(F108,$M$8:$N$13,2,FALSE)*VLOOKUP(G108,$O$8:$P$11,2,FALSE),IF(H108=$L$11,5*VLOOKUP(F108,$M$8:$N$13,2,FALSE)*VLOOKUP(G108,$O$8:$P$11,2,FALSE),IF(H108=$L$8,IF(#REF!>1,25*#REF!*VLOOKUP(F108,$M$8:$N$13,2,FALSE)*VLOOKUP(G108,$O$8:$P$11,2,FALSE),25*VLOOKUP(F108,$M$8:$N$13,2,FALSE)*VLOOKUP(G108,$O$8:$P$11,2,FALSE))))))))","v":0}]
[101,null,null,null,null,null,null,null,{"$f":"IF(ISBLANK(D109),0,IF(D109=$S$8,0,IF(H109=$L$9,20*VLOOKUP(F109,$M$8:$N$13,2,FALSE)*VLOOKUP(G109,$O$8:$P$11,2,FALSE),IF(H109=$L$10,15*VLOOKUP(F109,$M$8:$N$13,2,FALSE)*VLOOKUP(G109,$O$8:$P$11,2,FALSE),IF(H109=$L$11,5*VLOOKUP(F109,$M$8:$N$13,2,FALSE)*VLOOKUP(G109,$O$8:$P$11,2,FALSE),IF(H109=$L$8,IF(#REF!>1,25*#REF!*VLOOKUP(F109,$M$8:$N$13,2,FALSE)*VLOOKUP(G109,$O$8:$P$11,2,FALSE),25*VLOOKUP(F109,$M$8:$N$13,2,FALSE)*VLOOKUP(G109,$O$8:$P$11,2,FALSE))))))))","v":0}]
[102,null,null,null,null,null,null,null,{"$f":"IF(ISBLANK(D110),0,IF(D110=$S$8,0,IF(H110=$L$9,20*VLOOKUP(F110,$M$8:$N$13,2,FALSE)*VLOOKUP(G110,$O$8:$P$11,2,FALSE),IF(H110=$L$10,15*VLOOKUP(F110,$M$8:$N$13,2,FALSE)*VLOOKUP(G110,$O$8:$P$11,2,FALSE),IF(H110=$L$11,5*VLOOKUP(F110,$M$8:$N$13,2,FALSE)*VLOOKUP(G110,$O$8:$P$11,2,FALSE),IF(H110=$L$8,IF(#REF!>1,25*#REF!*VLOOKUP(F110,$M$8:$N$13,2,FALSE)*VLOOKUP(G110,$O$8:$P$11,2,FALSE),25*VLOOKUP(F110,$M$8:$N$13,2,FALSE)*VLOOKUP(G110,$O$8:$P$11,2,FALSE))))))))","v":0}]
[103,null,null,null,null,null,null,null,{"$f":"IF(ISBLANK(D111),0,IF(D111=$S$8,0,IF(H111=$L$9,20*VLOOKUP(F111,$M$8:$N$13,2,FALSE)*VLOOKUP(G111,$O$8:$P$11,2,FALSE),IF(H111=$L$10,15*VLOOKUP(F111,$M$8:$N$13,2,FALSE)*VLOOKUP(G111,$O$8:$P$11,2,FALSE),IF(H111=$L$11,5*VLOOKUP(F111,$M$8:$N$13,2,FALSE)*VLOOKUP(G111,$O$8:$P$11,2,FALSE),IF(H111=$L$8,IF(#REF!>1,25*#REF!*VLOOKUP(F111,$M$8:$N$13,2,FALSE)*VLOOKUP(G111,$O$8:$P$11,2,FALSE),25*VLOOKUP(F111,$M$8:$N$13,2,FALSE)*VLOOKUP(G111,$O$8:$P$11,2,FALSE))))))))","v":0}]
[104,null,null,null,null,null,null,null,{"$f":"IF(ISBLANK(D112),0,IF(D112=$S$8,0,IF(H112=$L$9,20*VLOOKUP(F112,$M$8:$N$13,2,FALSE)*VLOOKUP(G112,$O$8:$P$11,2,FALSE),IF(H112=$L$10,15*VLOOKUP(F112,$M$8:$N$13,2,FALSE)*VLOOKUP(G112,$O$8:$P$11,2,FALSE),IF(H112=$L$11,5*VLOOKUP(F112,$M$8:$N$13,2,FALSE)*VLOOKUP(G112,$O$8:$P$11,2,FALSE),IF(H112=$L$8,IF(#REF!>1,25*#REF!*VLOOKUP(F112,$M$8:$N$13,2,FALSE)*VLOOKUP(G112,$O$8:$P$11,2,FALSE),25*VLOOKUP(F112,$M$8:$N$13,2,FALSE)*VLOOKUP(G112,$O$8:$P$11,2,FALSE))))))))","v":0}]
[105,null,null,null,null,null,null,null,{"$f":"IF(ISBLANK(D113),0,IF(D113=$S$8,0,IF(H113=$L$9,20*VLOOKUP(F113,$M$8:$N$13,2,FALSE)*VLOOKUP(G113,$O$8:$P$11,2,FALSE),IF(H113=$L$10,15*VLOOKUP(F113,$M$8:$N$13,2,FALSE)*VLOOKUP(G113,$O$8:$P$11,2,FALSE),IF(H113=$L$11,5*VLOOKUP(F113,$M$8:$N$13,2,FALSE)*VLOOKUP(G113,$O$8:$P$11,2,FALSE),IF(H113=$L$8,IF(#REF!>1,25*#REF!*VLOOKUP(F113,$M$8:$N$13,2,FALSE)*VLOOKUP(G113,$O$8:$P$11,2,FALSE),25*VLOOKUP(F113,$M$8:$N$13,2,FALSE)*VLOOKUP(G113,$O$8:$P$11,2,FALSE))))))))","v":0}]
[106,null,null,null,null,null,null,null,{"$f":"IF(ISBLANK(D114),0,IF(D114=$S$8,0,IF(H114=$L$9,20*VLOOKUP(F114,$M$8:$N$13,2,FALSE)*VLOOKUP(G114,$O$8:$P$11,2,FALSE),IF(H114=$L$10,15*VLOOKUP(F114,$M$8:$N$13,2,FALSE)*VLOOKUP(G114,$O$8:$P$11,2,FALSE),IF(H114=$L$11,5*VLOOKUP(F114,$M$8:$N$13,2,FALSE)*VLOOKUP(G114,$O$8:$P$11,2,FALSE),IF(H114=$L$8,IF(#REF!>1,25*#REF!*VLOOKUP(F114,$M$8:$N$13,2,FALSE)*VLOOKUP(G114,$O$8:$P$11,2,FALSE),25*VLOOKUP(F114,$M$8:$N$13,2,FALSE)*VLOOKUP(G114,$O$8:$P$11,2,FALSE))))))))","v":0}]
[107,null,null,null,null,null,null,null,{"$f":"IF(ISBLANK(D115),0,IF(D115=$S$8,0,IF(H115=$L$9,20*VLOOKUP(F115,$M$8:$N$13,2,FALSE)*VLOOKUP(G115,$O$8:$P$11,2,FALSE),IF(H115=$L$10,15*VLOOKUP(F115,$M$8:$N$13,2,FALSE)*VLOOKUP(G115,$O$8:$P$11,2,FALSE),IF(H115=$L$11,5*VLOOKUP(F115,$M$8:$N$13,2,FALSE)*VLOOKUP(G115,$O$8:$P$11,2,FALSE),IF(H115=$L$8,IF(#REF!>1,25*#REF!*VLOOKUP(F115,$M$8:$N$13,2,FALSE)*VLOOKUP(G115,$O$8:$P$11,2,FALSE),25*VLOOKUP(F115,$M$8:$N$13,2,FALSE)*VLOOKUP(G115,$O$8:$P$11,2,FALSE))))))))","v":0}]
[108,null,null,null,null,null,null,null,{"$f":"IF(ISBLANK(D116),0,IF(D116=$S$8,0,IF(H116=$L$9,20*VLOOKUP(F116,$M$8:$N$13,2,FALSE)*VLOOKUP(G116,$O$8:$P$11,2,FALSE),IF(H116=$L$10,15*VLOOKUP(F116,$M$8:$N$13,2,FALSE)*VLOOKUP(G116,$O$8:$P$11,2,FALSE),IF(H116=$L$11,5*VLOOKUP(F116,$M$8:$N$13,2,FALSE)*VLOOKUP(G116,$O$8:$P$11,2,FALSE),IF(H116=$L$8,IF(#REF!>1,25*#REF!*VLOOKUP(F116,$M$8:$N$13,2,FALSE)*VLOOKUP(G116,$O$8:$P$11,2,FALSE),25*VLOOKUP(F116,$M$8:$N$13,2,FALSE)*VLOOKUP(G116,$O$8:$P$11,2,FALSE))))))))","v":0}]
[109,null,null,null,null,null,null,null,{"$f":"IF(ISBLANK(D117),0,IF(D117=$S$8,0,IF(H117=$L$9,20*VLOOKUP(F117,$M$8:$N$13,2,FALSE)*VLOOKUP(G117,$O$8:$P$11,2,FALSE),IF(H117=$L$10,15*VLOOKUP(F117,$M$8:$N$13,2,FALSE)*VLOOKUP(G117,$O$8:$P$11,2,FALSE),IF(H117=$L$11,5*VLOOKUP(F117,$M$8:$N$13,2,FALSE)*VLOOKUP(G117,$O$8:$P$11,2,FALSE),IF(H117=$L$8,IF(#REF!>1,25*#REF!*VLOOKUP(F117,$M$8:$N$13,2,FALSE)*VLOOKUP(G117,$O$8:$P$11,2,FALSE),25*VLOOKUP(F117,$M$8:$N$13,2,FALSE)*VLOOKUP(G117,$O$8:$P$11,2,FALSE))))))))","v":0}]
[110,null,null,null,null,null,null,null,{"$f":"IF(ISBLANK(D118),0,IF(D118=$S$8,0,IF(H118=$L$9,20*VLOOKUP(F118,$M$8:$N$13,2,FALSE)*VLOOKUP(G118,$O$8:$P$11,2,FALSE),IF(H118=$L$10,15*VLOOKUP(F118,$M$8:$N$13,2,FALSE)*VLOOKUP(G118,$O$8:$P$11,2,FALSE),IF(H118=$L$11,5*VLOOKUP(F118,$M$8:$N$13,2,FALSE)*VLOOKUP(G118,$O$8:$P$11,2,FALSE),IF(H118=$L$8,IF(#REF!>1,25*#REF!*VLOOKUP(F118,$M$8:$N$13,2,FALSE)*VLOOKUP(G118,$O$8:$P$11,2,FALSE),25*VLOOKUP(F118,$M$8:$N$13,2,FALSE)*VLOOKUP(G118,$O$8:$P$11,2,FALSE))))))))","v":0}]
[111,null,null,null,null,null,null,null,{"$f":"IF(ISBLANK(D119),0,IF(D119=$S$8,0,IF(H119=$L$9,20*VLOOKUP(F119,$M$8:$N$13,2,FALSE)*VLOOKUP(G119,$O$8:$P$11,2,FALSE),IF(H119=$L$10,15*VLOOKUP(F119,$M$8:$N$13,2,FALSE)*VLOOKUP(G119,$O$8:$P$11,2,FALSE),IF(H119=$L$11,5*VLOOKUP(F119,$M$8:$N$13,2,FALSE)*VLOOKUP(G119,$O$8:$P$11,2,FALSE),IF(H119=$L$8,IF(#REF!>1,25*#REF!*VLOOKUP(F119,$M$8:$N$13,2,FALSE)*VLOOKUP(G119,$O$8:$P$11,2,FALSE),25*VLOOKUP(F119,$M$8:$N$13,2,FALSE)*VLOOKUP(G119,$O$8:$P$11,2,FALSE))))))))","v":0}]
[112,null,null,null,null,null,null,null,{"$f":"IF(ISBLANK(D120),0,IF(D120=$S$8,0,IF(H120=$L$9,20*VLOOKUP(F120,$M$8:$N$13,2,FALSE)*VLOOKUP(G120,$O$8:$P$11,2,FALSE),IF(H120=$L$10,15*VLOOKUP(F120,$M$8:$N$13,2,FALSE)*VLOOKUP(G120,$O$8:$P$11,2,FALSE),IF(H120=$L$11,5*VLOOKUP(F120,$M$8:$N$13,2,FALSE)*VLOOKUP(G120,$O$8:$P$11,2,FALSE),IF(H120=$L$8,IF(#REF!>1,25*#REF!*VLOOKUP(F120,$M$8:$N$13,2,FALSE)*VLOOKUP(G120,$O$8:$P$11,2,FALSE),25*VLOOKUP(F120,$M$8:$N$13,2,FALSE)*VLOOKUP(G120,$O$8:$P$11,2,FALSE))))))))","v":0}]
[113,null,null,null,null,null,null,null,{"$f":"IF(ISBLANK(D121),0,IF(D121=$S$8,0,IF(H121=$L$9,20*VLOOKUP(F121,$M$8:$N$13,2,FALSE)*VLOOKUP(G121,$O$8:$P$11,2,FALSE),IF(H121=$L$10,15*VLOOKUP(F121,$M$8:$N$13,2,FALSE)*VLOOKUP(G121,$O$8:$P$11,2,FALSE),IF(H121=$L$11,5*VLOOKUP(F121,$M$8:$N$13,2,FALSE)*VLOOKUP(G121,$O$8:$P$11,2,FALSE),IF(H121=$L$8,IF(#REF!>1,25*#REF!*VLOOKUP(F121,$M$8:$N$13,2,FALSE)*VLOOKUP(G121,$O$8:$P$11,2,FALSE),25*VLOOKUP(F121,$M$8:$N$13,2,FALSE)*VLOOKUP(G121,$O$8:$P$11,2,FALSE))))))))","v":0}]
[114,null,null,null,null,null,null,null,{"$f":"IF(ISBLANK(D122),0,IF(D122=$S$8,0,IF(H122=$L$9,20*VLOOKUP(F122,$M$8:$N$13,2,FALSE)*VLOOKUP(G122,$O$8:$P$11,2,FALSE),IF(H122=$L$10,15*VLOOKUP(F122,$M$8:$N$13,2,FALSE)*VLOOKUP(G122,$O$8:$P$11,2,FALSE),IF(H122=$L$11,5*VLOOKUP(F122,$M$8:$N$13,2,FALSE)*VLOOKUP(G122,$O$8:$P$11,2,FALSE),IF(H122=$L$8,IF(#REF!>1,25*#REF!*VLOOKUP(F122,$M$8:$N$13,2,FALSE)*VLOOKUP(G122,$O$8:$P$11,2,FALSE),25*VLOOKUP(F122,$M$8:$N$13,2,FALSE)*VLOOKUP(G122,$O$8:$P$11,2,FALSE))))))))","v":0}]
[115,null,null,null,null,null,null,null,{"$f":"IF(ISBLANK(D123),0,IF(D123=$S$8,0,IF(H123=$L$9,20*VLOOKUP(F123,$M$8:$N$13,2,FALSE)*VLOOKUP(G123,$O$8:$P$11,2,FALSE),IF(H123=$L$10,15*VLOOKUP(F123,$M$8:$N$13,2,FALSE)*VLOOKUP(G123,$O$8:$P$11,2,FALSE),IF(H123=$L$11,5*VLOOKUP(F123,$M$8:$N$13,2,FALSE)*VLOOKUP(G123,$O$8:$P$11,2,FALSE),IF(H123=$L$8,IF(#REF!>1,25*#REF!*VLOOKUP(F123,$M$8:$N$13,2,FALSE)*VLOOKUP(G123,$O$8:$P$11,2,FALSE),25*VLOOKUP(F123,$M$8:$N$13,2,FALSE)*VLOOKUP(G123,$O$8:$P$11,2,FALSE))))))))","v":0}]
[116,null,null,null,null,null,null,null,{"$f":"IF(ISBLANK(D124),0,IF(D124=$S$8,0,IF(H124=$L$9,20*VLOOKUP(F124,$M$8:$N$13,2,FALSE)*VLOOKUP(G124,$O$8:$P$11,2,FALSE),IF(H124=$L$10,15*VLOOKUP(F124,$M$8:$N$13,2,FALSE)*VLOOKUP(G124,$O$8:$P$11,2,FALSE),IF(H124=$L$11,5*VLOOKUP(F124,$M$8:$N$13,2,FALSE)*VLOOKUP(G124,$O$8:$P$11,2,FALSE),IF(H124=$L$8,IF(#REF!>1,25*#REF!*VLOOKUP(F124,$M$8:$N$13,2,FALSE)*VLOOKUP(G124,$O$8:$P$11,2,FALSE),25*VLOOKUP(F124,$M$8:$N$13,2,FALSE)*VLOOKUP(G124,$O$8:$P$11,2,FALSE))))))))","v":0}]
[117,null,null,null,null,null,null,null,{"$f":"IF(ISBLANK(D125),0,IF(D125=$S$8,0,IF(H125=$L$9,20*VLOOKUP(F125,$M$8:$N$13,2,FALSE)*VLOOKUP(G125,$O$8:$P$11,2,FALSE),IF(H125=$L$10,15*VLOOKUP(F125,$M$8:$N$13,2,FALSE)*VLOOKUP(G125,$O$8:$P$11,2,FALSE),IF(H125=$L$11,5*VLOOKUP(F125,$M$8:$N$13,2,FALSE)*VLOOKUP(G125,$O$8:$P$11,2,FALSE),IF(H125=$L$8,IF(#REF!>1,25*#REF!*VLOOKUP(F125,$M$8:$N$13,2,FALSE)*VLOOKUP(G125,$O$8:$P$11,2,FALSE),25*VLOOKUP(F125,$M$8:$N$13,2,FALSE)*VLOOKUP(G125,$O$8:$P$11,2,FALSE))))))))","v":0}]
[118,null,null,null,null,null,null,null,{"$f":"IF(ISBLANK(D126),0,IF(D126=$S$8,0,IF(H126=$L$9,20*VLOOKUP(F126,$M$8:$N$13,2,FALSE)*VLOOKUP(G126,$O$8:$P$11,2,FALSE),IF(H126=$L$10,15*VLOOKUP(F126,$M$8:$N$13,2,FALSE)*VLOOKUP(G126,$O$8:$P$11,2,FALSE),IF(H126=$L$11,5*VLOOKUP(F126,$M$8:$N$13,2,FALSE)*VLOOKUP(G126,$O$8:$P$11,2,FALSE),IF(H126=$L$8,IF(#REF!>1,25*#REF!*VLOOKUP(F126,$M$8:$N$13,2,FALSE)*VLOOKUP(G126,$O$8:$P$11,2,FALSE),25*VLOOKUP(F126,$M$8:$N$13,2,FALSE)*VLOOKUP(G126,$O$8:$P$11,2,FALSE))))))))","v":0}]
[119,null,null,null,null,null,null,null,{"$f":"IF(ISBLANK(D127),0,IF(D127=$S$8,0,IF(H127=$L$9,20*VLOOKUP(F127,$M$8:$N$13,2,FALSE)*VLOOKUP(G127,$O$8:$P$11,2,FALSE),IF(H127=$L$10,15*VLOOKUP(F127,$M$8:$N$13,2,FALSE)*VLOOKUP(G127,$O$8:$P$11,2,FALSE),IF(H127=$L$11,5*VLOOKUP(F127,$M$8:$N$13,2,FALSE)*VLOOKUP(G127,$O$8:$P$11,2,FALSE),IF(H127=$L$8,IF(#REF!>1,25*#REF!*VLOOKUP(F127,$M$8:$N$13,2,FALSE)*VLOOKUP(G127,$O$8:$P$11,2,FALSE),25*VLOOKUP(F127,$M$8:$N$13,2,FALSE)*VLOOKUP(G127,$O$8:$P$11,2,FALSE))))))))","v":0}]
[120,null,null,null,null,null,null,null,{"$f":"IF(ISBLANK(D128),0,IF(D128=$S$8,0,IF(H128=$L$9,20*VLOOKUP(F128,$M$8:$N$13,2,FALSE)*VLOOKUP(G128,$O$8:$P$11,2,FALSE),IF(H128=$L$10,15*VLOOKUP(F128,$M$8:$N$13,2,FALSE)*VLOOKUP(G128,$O$8:$P$11,2,FALSE),IF(H128=$L$11,5*VLOOKUP(F128,$M$8:$N$13,2,FALSE)*VLOOKUP(G128,$O$8:$P$11,2,FALSE),IF(H128=$L$8,IF(#REF!>1,25*#REF!*VLOOKUP(F128,$M$8:$N$13,2,FALSE)*VLOOKUP(G128,$O$8:$P$11,2,FALSE),25*VLOOKUP(F128,$M$8:$N$13,2,FALSE)*VLOOKUP(G128,$O$8:$P$11,2,FALSE))))))))","v":0}]
[121,null,null,null,null,null,null,null,{"$f":"IF(ISBLANK(D129),0,IF(D129=$S$8,0,IF(H129=$L$9,20*VLOOKUP(F129,$M$8:$N$13,2,FALSE)*VLOOKUP(G129,$O$8:$P$11,2,FALSE),IF(H129=$L$10,15*VLOOKUP(F129,$M$8:$N$13,2,FALSE)*VLOOKUP(G129,$O$8:$P$11,2,FALSE),IF(H129=$L$11,5*VLOOKUP(F129,$M$8:$N$13,2,FALSE)*VLOOKUP(G129,$O$8:$P$11,2,FALSE),IF(H129=$L$8,IF(#REF!>1,25*#REF!*VLOOKUP(F129,$M$8:$N$13,2,FALSE)*VLOOKUP(G129,$O$8:$P$11,2,FALSE),25*VLOOKUP(F129,$M$8:$N$13,2,FALSE)*VLOOKUP(G129,$O$8:$P$11,2,FALSE))))))))","v":0}]
[122,null,null,null,null,null,null,null,{"$f":"IF(ISBLANK(D130),0,IF(D130=$S$8,0,IF(H130=$L$9,20*VLOOKUP(F130,$M$8:$N$13,2,FALSE)*VLOOKUP(G130,$O$8:$P$11,2,FALSE),IF(H130=$L$10,15*VLOOKUP(F130,$M$8:$N$13,2,FALSE)*VLOOKUP(G130,$O$8:$P$11,2,FALSE),IF(H130=$L$11,5*VLOOKUP(F130,$M$8:$N$13,2,FALSE)*VLOOKUP(G130,$O$8:$P$11,2,FALSE),IF(H130=$L$8,IF(#REF!>1,25*#REF!*VLOOKUP(F130,$M$8:$N$13,2,FALSE)*VLOOKUP(G130,$O$8:$P$11,2,FALSE),25*VLOOKUP(F130,$M$8:$N$13,2,FALSE)*VLOOKUP(G130,$O$8:$P$11,2,FALSE))))))))","v":0}]
[123,null,null,null,null,null,null,null,{"$f":"IF(ISBLANK(D131),0,IF(D131=$S$8,0,IF(H131=$L$9,20*VLOOKUP(F131,$M$8:$N$13,2,FALSE)*VLOOKUP(G131,$O$8:$P$11,2,FALSE),IF(H131=$L$10,15*VLOOKUP(F131,$M$8:$N$13,2,FALSE)*VLOOKUP(G131,$O$8:$P$11,2,FALSE),IF(H131=$L$11,5*VLOOKUP(F131,$M$8:$N$13,2,FALSE)*VLOOKUP(G131,$O$8:$P$11,2,FALSE),IF(H131=$L$8,IF(#REF!>1,25*#REF!*VLOOKUP(F131,$M$8:$N$13,2,FALSE)*VLOOKUP(G131,$O$8:$P$11,2,FALSE),25*VLOOKUP(F131,$M$8:$N$13,2,FALSE)*VLOOKUP(G131,$O$8:$P$11,2,FALSE))))))))","v":0}]
[124,null,null,null,null,null,null,null,{"$f":"IF(ISBLANK(D132),0,IF(D132=$S$8,0,IF(H132=$L$9,20*VLOOKUP(F132,$M$8:$N$13,2,FALSE)*VLOOKUP(G132,$O$8:$P$11,2,FALSE),IF(H132=$L$10,15*VLOOKUP(F132,$M$8:$N$13,2,FALSE)*VLOOKUP(G132,$O$8:$P$11,2,FALSE),IF(H132=$L$11,5*VLOOKUP(F132,$M$8:$N$13,2,FALSE)*VLOOKUP(G132,$O$8:$P$11,2,FALSE),IF(H132=$L$8,IF(#REF!>1,25*#REF!*VLOOKUP(F132,$M$8:$N$13,2,FALSE)*VLOOKUP(G132,$O$8:$P$11,2,FALSE),25*VLOOKUP(F132,$M$8:$N$13,2,FALSE)*VLOOKUP(G132,$O$8:$P$11,2,FALSE))))))))","v":0}]
[125,null,null,null,null,null,null,null,{"$f":"IF(ISBLANK(D133),0,IF(D133=$S$8,0,IF(H133=$L$9,20*VLOOKUP(F133,$M$8:$N$13,2,FALSE)*VLOOKUP(G133,$O$8:$P$11,2,FALSE),IF(H133=$L$10,15*VLOOKUP(F133,$M$8:$N$13,2,FALSE)*VLOOKUP(G133,$O$8:$P$11,2,FALSE),IF(H133=$L$11,5*VLOOKUP(F133,$M$8:$N$13,2,FALSE)*VLOOKUP(G133,$O$8:$P$11,2,FALSE),IF(H133=$L$8,IF(#REF!>1,25*#REF!*VLOOKUP(F133,$M$8:$N$13,2,FALSE)*VLOOKUP(G133,$O$8:$P$11,2,FALSE),25*VLOOKUP(F133,$M$8:$N$13,2,FALSE)*VLOOKUP(G133,$O$8:$P$11,2,FALSE))))))))","v":0}]
[126,null,null,null,null,null,null,null,{"$f":"IF(ISBLANK(D134),0,IF(D134=$S$8,0,IF(H134=$L$9,20*VLOOKUP(F134,$M$8:$N$13,2,FALSE)*VLOOKUP(G134,$O$8:$P$11,2,FALSE),IF(H134=$L$10,15*VLOOKUP(F134,$M$8:$N$13,2,FALSE)*VLOOKUP(G134,$O$8:$P$11,2,FALSE),IF(H134=$L$11,5*VLOOKUP(F134,$M$8:$N$13,2,FALSE)*VLOOKUP(G134,$O$8:$P$11,2,FALSE),IF(H134=$L$8,IF(#REF!>1,25*#REF!*VLOOKUP(F134,$M$8:$N$13,2,FALSE)*VLOOKUP(G134,$O$8:$P$11,2,FALSE),25*VLOOKUP(F134,$M$8:$N$13,2,FALSE)*VLOOKUP(G134,$O$8:$P$11,2,FALSE))))))))","v":0}]
[127,null,null,null,null,null,null,null,{"$f":"IF(ISBLANK(D135),0,IF(D135=$S$8,0,IF(H135=$L$9,20*VLOOKUP(F135,$M$8:$N$13,2,FALSE)*VLOOKUP(G135,$O$8:$P$11,2,FALSE),IF(H135=$L$10,15*VLOOKUP(F135,$M$8:$N$13,2,FALSE)*VLOOKUP(G135,$O$8:$P$11,2,FALSE),IF(H135=$L$11,5*VLOOKUP(F135,$M$8:$N$13,2,FALSE)*VLOOKUP(G135,$O$8:$P$11,2,FALSE),IF(H135=$L$8,IF(#REF!>1,25*#REF!*VLOOKUP(F135,$M$8:$N$13,2,FALSE)*VLOOKUP(G135,$O$8:$P$11,2,FALSE),25*VLOOKUP(F135,$M$8:$N$13,2,FALSE)*VLOOKUP(G135,$O$8:$P$11,2,FALSE))))))))","v":0}]
[128,null,null,null,null,null,null,null,{"$f":"IF(ISBLANK(D136),0,IF(D136=$S$8,0,IF(H136=$L$9,20*VLOOKUP(F136,$M$8:$N$13,2,FALSE)*VLOOKUP(G136,$O$8:$P$11,2,FALSE),IF(H136=$L$10,15*VLOOKUP(F136,$M$8:$N$13,2,FALSE)*VLOOKUP(G136,$O$8:$P$11,2,FALSE),IF(H136=$L$11,5*VLOOKUP(F136,$M$8:$N$13,2,FALSE)*VLOOKUP(G136,$O$8:$P$11,2,FALSE),IF(H136=$L$8,IF(#REF!>1,25*#REF!*VLOOKUP(F136,$M$8:$N$13,2,FALSE)*VLOOKUP(G136,$O$8:$P$11,2,FALSE),25*VLOOKUP(F136,$M$8:$N$13,2,FALSE)*VLOOKUP(G136,$O$8:$P$11,2,FALSE))))))))","v":0}]
[129,null,null,null,null,null,null,null,{"$f":"IF(ISBLANK(D137),0,IF(D137=$S$8,0,IF(H137=$L$9,20*VLOOKUP(F137,$M$8:$N$13,2,FALSE)*VLOOKUP(G137,$O$8:$P$11,2,FALSE),IF(H137=$L$10,15*VLOOKUP(F137,$M$8:$N$13,2,FALSE)*VLOOKUP(G137,$O$8:$P$11,2,FALSE),IF(H137=$L$11,5*VLOOKUP(F137,$M$8:$N$13,2,FALSE)*VLOOKUP(G137,$O$8:$P$11,2,FALSE),IF(H137=$L$8,IF(#REF!>1,25*#REF!*VLOOKUP(F137,$M$8:$N$13,2,FALSE)*VLOOKUP(G137,$O$8:$P$11,2,FALSE),25*VLOOKUP(F137,$M$8:$N$13,2,FALSE)*VLOOKUP(G137,$O$8:$P$11,2,FALSE))))))))","v":0}]
[130,null,null,null,null,null,null,null,{"$f":"IF(ISBLANK(D138),0,IF(D138=$S$8,0,IF(H138=$L$9,20*VLOOKUP(F138,$M$8:$N$13,2,FALSE)*VLOOKUP(G138,$O$8:$P$11,2,FALSE),IF(H138=$L$10,15*VLOOKUP(F138,$M$8:$N$13,2,FALSE)*VLOOKUP(G138,$O$8:$P$11,2,FALSE),IF(H138=$L$11,5*VLOOKUP(F138,$M$8:$N$13,2,FALSE)*VLOOKUP(G138,$O$8:$P$11,2,FALSE),IF(H138=$L$8,IF(#REF!>1,25*#REF!*VLOOKUP(F138,$M$8:$N$13,2,FALSE)*VLOOKUP(G138,$O$8:$P$11,2,FALSE),25*VLOOKUP(F138,$M$8:$N$13,2,FALSE)*VLOOKUP(G138,$O$8:$P$11,2,FALSE))))))))","v":0}]
[131,null,null,null,null,null,null,null,{"$f":"IF(ISBLANK(D139),0,IF(D139=$S$8,0,IF(H139=$L$9,20*VLOOKUP(F139,$M$8:$N$13,2,FALSE)*VLOOKUP(G139,$O$8:$P$11,2,FALSE),IF(H139=$L$10,15*VLOOKUP(F139,$M$8:$N$13,2,FALSE)*VLOOKUP(G139,$O$8:$P$11,2,FALSE),IF(H139=$L$11,5*VLOOKUP(F139,$M$8:$N$13,2,FALSE)*VLOOKUP(G139,$O$8:$P$11,2,FALSE),IF(H139=$L$8,IF(#REF!>1,25*#REF!*VLOOKUP(F139,$M$8:$N$13,2,FALSE)*VLOOKUP(G139,$O$8:$P$11,2,FALSE),25*VLOOKUP(F139,$M$8:$N$13,2,FALSE)*VLOOKUP(G139,$O$8:$P$11,2,FALSE))))))))","v":0}]
[132,null,null,null,null,null,null,null,{"$f":"IF(ISBLANK(D140),0,IF(D140=$S$8,0,IF(H140=$L$9,20*VLOOKUP(F140,$M$8:$N$13,2,FALSE)*VLOOKUP(G140,$O$8:$P$11,2,FALSE),IF(H140=$L$10,15*VLOOKUP(F140,$M$8:$N$13,2,FALSE)*VLOOKUP(G140,$O$8:$P$11,2,FALSE),IF(H140=$L$11,5*VLOOKUP(F140,$M$8:$N$13,2,FALSE)*VLOOKUP(G140,$O$8:$P$11,2,FALSE),IF(H140=$L$8,IF(#REF!>1,25*#REF!*VLOOKUP(F140,$M$8:$N$13,2,FALSE)*VLOOKUP(G140,$O$8:$P$11,2,FALSE),25*VLOOKUP(F140,$M$8:$N$13,2,FALSE)*VLOOKUP(G140,$O$8:$P$11,2,FALSE))))))))","v":0}]
[133,null,null,null,null,null,null,null,{"$f":"IF(ISBLANK(D141),0,IF(D141=$S$8,0,IF(H141=$L$9,20*VLOOKUP(F141,$M$8:$N$13,2,FALSE)*VLOOKUP(G141,$O$8:$P$11,2,FALSE),IF(H141=$L$10,15*VLOOKUP(F141,$M$8:$N$13,2,FALSE)*VLOOKUP(G141,$O$8:$P$11,2,FALSE),IF(H141=$L$11,5*VLOOKUP(F141,$M$8:$N$13,2,FALSE)*VLOOKUP(G141,$O$8:$P$11,2,FALSE),IF(H141=$L$8,IF(#REF!>1,25*#REF!*VLOOKUP(F141,$M$8:$N$13,2,FALSE)*VLOOKUP(G141,$O$8:$P$11,2,FALSE),25*VLOOKUP(F141,$M$8:$N$13,2,FALSE)*VLOOKUP(G141,$O$8:$P$11,2,FALSE))))))))","v":0}]
[134,null,null,null,null,null,null,null,{"$f":"IF(ISBLANK(D142),0,IF(D142=$S$8,0,IF(H142=$L$9,20*VLOOKUP(F142,$M$8:$N$13,2,FALSE)*VLOOKUP(G142,$O$8:$P$11,2,FALSE),IF(H142=$L$10,15*VLOOKUP(F142,$M$8:$N$13,2,FALSE)*VLOOKUP(G142,$O$8:$P$11,2,FALSE),IF(H142=$L$11,5*VLOOKUP(F142,$M$8:$N$13,2,FALSE)*VLOOKUP(G142,$O$8:$P$11,2,FALSE),IF(H142=$L$8,IF(#REF!>1,25*#REF!*VLOOKUP(F142,$M$8:$N$13,2,FALSE)*VLOOKUP(G142,$O$8:$P$11,2,FALSE),25*VLOOKUP(F142,$M$8:$N$13,2,FALSE)*VLOOKUP(G142,$O$8:$P$11,2,FALSE))))))))","v":0}]
[135,null,null,null,null,null,null,null,{"$f":"IF(ISBLANK(D143),0,IF(D143=$S$8,0,IF(H143=$L$9,20*VLOOKUP(F143,$M$8:$N$13,2,FALSE)*VLOOKUP(G143,$O$8:$P$11,2,FALSE),IF(H143=$L$10,15*VLOOKUP(F143,$M$8:$N$13,2,FALSE)*VLOOKUP(G143,$O$8:$P$11,2,FALSE),IF(H143=$L$11,5*VLOOKUP(F143,$M$8:$N$13,2,FALSE)*VLOOKUP(G143,$O$8:$P$11,2,FALSE),IF(H143=$L$8,IF(#REF!>1,25*#REF!*VLOOKUP(F143,$M$8:$N$13,2,FALSE)*VLOOKUP(G143,$O$8:$P$11,2,FALSE),25*VLOOKUP(F143,$M$8:$N$13,2,FALSE)*VLOOKUP(G143,$O$8:$P$11,2,FALSE))))))))","v":0}]
[136,null,null,null,null,null,null,null,{"$f":"IF(ISBLANK(D144),0,IF(D144=$S$8,0,IF(H144=$L$9,20*VLOOKUP(F144,$M$8:$N$13,2,FALSE)*VLOOKUP(G144,$O$8:$P$11,2,FALSE),IF(H144=$L$10,15*VLOOKUP(F144,$M$8:$N$13,2,FALSE)*VLOOKUP(G144,$O$8:$P$11,2,FALSE),IF(H144=$L$11,5*VLOOKUP(F144,$M$8:$N$13,2,FALSE)*VLOOKUP(G144,$O$8:$P$11,2,FALSE),IF(H144=$L$8,IF(#REF!>1,25*#REF!*VLOOKUP(F144,$M$8:$N$13,2,FALSE)*VLOOKUP(G144,$O$8:$P$11,2,FALSE),25*VLOOKUP(F144,$M$8:$N$13,2,FALSE)*VLOOKUP(G144,$O$8:$P$11,2,FALSE))))))))","v":0}]
[137,null,null,null,null,null,null,null,{"$f":"IF(ISBLANK(D145),0,IF(D145=$S$8,0,IF(H145=$L$9,20*VLOOKUP(F145,$M$8:$N$13,2,FALSE)*VLOOKUP(G145,$O$8:$P$11,2,FALSE),IF(H145=$L$10,15*VLOOKUP(F145,$M$8:$N$13,2,FALSE)*VLOOKUP(G145,$O$8:$P$11,2,FALSE),IF(H145=$L$11,5*VLOOKUP(F145,$M$8:$N$13,2,FALSE)*VLOOKUP(G145,$O$8:$P$11,2,FALSE),IF(H145=$L$8,IF(#REF!>1,25*#REF!*VLOOKUP(F145,$M$8:$N$13,2,FALSE)*VLOOKUP(G145,$O$8:$P$11,2,FALSE),25*VLOOKUP(F145,$M$8:$N$13,2,FALSE)*VLOOKUP(G145,$O$8:$P$11,2,FALSE))))))))","v":0}]
[138,null,null,null,null,null,null,null,{"$f":"IF(ISBLANK(D146),0,IF(D146=$S$8,0,IF(H146=$L$9,20*VLOOKUP(F146,$M$8:$N$13,2,FALSE)*VLOOKUP(G146,$O$8:$P$11,2,FALSE),IF(H146=$L$10,15*VLOOKUP(F146,$M$8:$N$13,2,FALSE)*VLOOKUP(G146,$O$8:$P$11,2,FALSE),IF(H146=$L$11,5*VLOOKUP(F146,$M$8:$N$13,2,FALSE)*VLOOKUP(G146,$O$8:$P$11,2,FALSE),IF(H146=$L$8,IF(#REF!>1,25*#REF!*VLOOKUP(F146,$M$8:$N$13,2,FALSE)*VLOOKUP(G146,$O$8:$P$11,2,FALSE),25*VLOOKUP(F146,$M$8:$N$13,2,FALSE)*VLOOKUP(G146,$O$8:$P$11,2,FALSE))))))))","v":0}]
[139,null,null,null,null,null,null,null,{"$f":"IF(ISBLANK(D147),0,IF(D147=$S$8,0,IF(H147=$L$9,20*VLOOKUP(F147,$M$8:$N$13,2,FALSE)*VLOOKUP(G147,$O$8:$P$11,2,FALSE),IF(H147=$L$10,15*VLOOKUP(F147,$M$8:$N$13,2,FALSE)*VLOOKUP(G147,$O$8:$P$11,2,FALSE),IF(H147=$L$11,5*VLOOKUP(F147,$M$8:$N$13,2,FALSE)*VLOOKUP(G147,$O$8:$P$11,2,FALSE),IF(H147=$L$8,IF(#REF!>1,25*#REF!*VLOOKUP(F147,$M$8:$N$13,2,FALSE)*VLOOKUP(G147,$O$8:$P$11,2,FALSE),25*VLOOKUP(F147,$M$8:$N$13,2,FALSE)*VLOOKUP(G147,$O$8:$P$11,2,FALSE))))))))","v":0}]
[140,null,null,null,null,null,null,null,{"$f":"IF(ISBLANK(D148),0,IF(D148=$S$8,0,IF(H148=$L$9,20*VLOOKUP(F148,$M$8:$N$13,2,FALSE)*VLOOKUP(G148,$O$8:$P$11,2,FALSE),IF(H148=$L$10,15*VLOOKUP(F148,$M$8:$N$13,2,FALSE)*VLOOKUP(G148,$O$8:$P$11,2,FALSE),IF(H148=$L$11,5*VLOOKUP(F148,$M$8:$N$13,2,FALSE)*VLOOKUP(G148,$O$8:$P$11,2,FALSE),IF(H148=$L$8,IF(#REF!>1,25*#REF!*VLOOKUP(F148,$M$8:$N$13,2,FALSE)*VLOOKUP(G148,$O$8:$P$11,2,FALSE),25*VLOOKUP(F148,$M$8:$N$13,2,FALSE)*VLOOKUP(G148,$O$8:$P$11,2,FALSE))))))))","v":0}]
[141,null,null,null,null,null,null,null,{"$f":"IF(ISBLANK(D149),0,IF(D149=$S$8,0,IF(H149=$L$9,20*VLOOKUP(F149,$M$8:$N$13,2,FALSE)*VLOOKUP(G149,$O$8:$P$11,2,FALSE),IF(H149=$L$10,15*VLOOKUP(F149,$M$8:$N$13,2,FALSE)*VLOOKUP(G149,$O$8:$P$11,2,FALSE),IF(H149=$L$11,5*VLOOKUP(F149,$M$8:$N$13,2,FALSE)*VLOOKUP(G149,$O$8:$P$11,2,FALSE),IF(H149=$L$8,IF(#REF!>1,25*#REF!*VLOOKUP(F149,$M$8:$N$13,2,FALSE)*VLOOKUP(G149,$O$8:$P$11,2,FALSE),25*VLOOKUP(F149,$M$8:$N$13,2,FALSE)*VLOOKUP(G149,$O$8:$P$11,2,FALSE))))))))","v":0}]
[142,null,null,null,null,null,null,null,{"$f":"IF(ISBLANK(D150),0,IF(D150=$S$8,0,IF(H150=$L$9,20*VLOOKUP(F150,$M$8:$N$13,2,FALSE)*VLOOKUP(G150,$O$8:$P$11,2,FALSE),IF(H150=$L$10,15*VLOOKUP(F150,$M$8:$N$13,2,FALSE)*VLOOKUP(G150,$O$8:$P$11,2,FALSE),IF(H150=$L$11,5*VLOOKUP(F150,$M$8:$N$13,2,FALSE)*VLOOKUP(G150,$O$8:$P$11,2,FALSE),IF(H150=$L$8,IF(#REF!>1,25*#REF!*VLOOKUP(F150,$M$8:$N$13,2,FALSE)*VLOOKUP(G150,$O$8:$P$11,2,FALSE),25*VLOOKUP(F150,$M$8:$N$13,2,FALSE)*VLOOKUP(G150,$O$8:$P$11,2,FALSE))))))))","v":0}]
[143,null,null,null,null,null,null,null,{"$f":"IF(ISBLANK(D151),0,IF(D151=$S$8,0,IF(H151=$L$9,20*VLOOKUP(F151,$M$8:$N$13,2,FALSE)*VLOOKUP(G151,$O$8:$P$11,2,FALSE),IF(H151=$L$10,15*VLOOKUP(F151,$M$8:$N$13,2,FALSE)*VLOOKUP(G151,$O$8:$P$11,2,FALSE),IF(H151=$L$11,5*VLOOKUP(F151,$M$8:$N$13,2,FALSE)*VLOOKUP(G151,$O$8:$P$11,2,FALSE),IF(H151=$L$8,IF(#REF!>1,25*#REF!*VLOOKUP(F151,$M$8:$N$13,2,FALSE)*VLOOKUP(G151,$O$8:$P$11,2,FALSE),25*VLOOKUP(F151,$M$8:$N$13,2,FALSE)*VLOOKUP(G151,$O$8:$P$11,2,FALSE))))))))","v":0}]
[144,null,null,null,null,null,null,null,{"$f":"IF(ISBLANK(D152),0,IF(D152=$S$8,0,IF(H152=$L$9,20*VLOOKUP(F152,$M$8:$N$13,2,FALSE)*VLOOKUP(G152,$O$8:$P$11,2,FALSE),IF(H152=$L$10,15*VLOOKUP(F152,$M$8:$N$13,2,FALSE)*VLOOKUP(G152,$O$8:$P$11,2,FALSE),IF(H152=$L$11,5*VLOOKUP(F152,$M$8:$N$13,2,FALSE)*VLOOKUP(G152,$O$8:$P$11,2,FALSE),IF(H152=$L$8,IF(#REF!>1,25*#REF!*VLOOKUP(F152,$M$8:$N$13,2,FALSE)*VLOOKUP(G152,$O$8:$P$11,2,FALSE),25*VLOOKUP(F152,$M$8:$N$13,2,FALSE)*VLOOKUP(G152,$O$8:$P$11,2,FALSE))))))))","v":0}]
[145,null,null,null,null,null,null,null,{"$f":"IF(ISBLANK(D153),0,IF(D153=$S$8,0,IF(H153=$L$9,20*VLOOKUP(F153,$M$8:$N$13,2,FALSE)*VLOOKUP(G153,$O$8:$P$11,2,FALSE),IF(H153=$L$10,15*VLOOKUP(F153,$M$8:$N$13,2,FALSE)*VLOOKUP(G153,$O$8:$P$11,2,FALSE),IF(H153=$L$11,5*VLOOKUP(F153,$M$8:$N$13,2,FALSE)*VLOOKUP(G153,$O$8:$P$11,2,FALSE),IF(H153=$L$8,IF(#REF!>1,25*#REF!*VLOOKUP(F153,$M$8:$N$13,2,FALSE)*VLOOKUP(G153,$O$8:$P$11,2,FALSE),25*VLOOKUP(F153,$M$8:$N$13,2,FALSE)*VLOOKUP(G153,$O$8:$P$11,2,FALSE))))))))","v":0}]
[146,null,null,null,null,null,null,null,{"$f":"IF(ISBLANK(D154),0,IF(D154=$S$8,0,IF(H154=$L$9,20*VLOOKUP(F154,$M$8:$N$13,2,FALSE)*VLOOKUP(G154,$O$8:$P$11,2,FALSE),IF(H154=$L$10,15*VLOOKUP(F154,$M$8:$N$13,2,FALSE)*VLOOKUP(G154,$O$8:$P$11,2,FALSE),IF(H154=$L$11,5*VLOOKUP(F154,$M$8:$N$13,2,FALSE)*VLOOKUP(G154,$O$8:$P$11,2,FALSE),IF(H154=$L$8,IF(#REF!>1,25*#REF!*VLOOKUP(F154,$M$8:$N$13,2,FALSE)*VLOOKUP(G154,$O$8:$P$11,2,FALSE),25*VLOOKUP(F154,$M$8:$N$13,2,FALSE)*VLOOKUP(G154,$O$8:$P$11,2,FALSE))))))))","v":0}]
[147,null,null,null,null,null,null,null,{"$f":"IF(ISBLANK(D155),0,IF(D155=$S$8,0,IF(H155=$L$9,20*VLOOKUP(F155,$M$8:$N$13,2,FALSE)*VLOOKUP(G155,$O$8:$P$11,2,FALSE),IF(H155=$L$10,15*VLOOKUP(F155,$M$8:$N$13,2,FALSE)*VLOOKUP(G155,$O$8:$P$11,2,FALSE),IF(H155=$L$11,5*VLOOKUP(F155,$M$8:$N$13,2,FALSE)*VLOOKUP(G155,$O$8:$P$11,2,FALSE),IF(H155=$L$8,IF(#REF!>1,25*#REF!*VLOOKUP(F155,$M$8:$N$13,2,FALSE)*VLOOKUP(G155,$O$8:$P$11,2,FALSE),25*VLOOKUP(F155,$M$8:$N$13,2,FALSE)*VLOOKUP(G155,$O$8:$P$11,2,FALSE))))))))","v":0}]
[148,null,null,null,null,null,null,null,{"$f":"IF(ISBLANK(D156),0,IF(D156=$S$8,0,IF(H156=$L$9,20*VLOOKUP(F156,$M$8:$N$13,2,FALSE)*VLOOKUP(G156,$O$8:$P$11,2,FALSE),IF(H156=$L$10,15*VLOOKUP(F156,$M$8:$N$13,2,FALSE)*VLOOKUP(G156,$O$8:$P$11,2,FALSE),IF(H156=$L$11,5*VLOOKUP(F156,$M$8:$N$13,2,FALSE)*VLOOKUP(G156,$O$8:$P$11,2,FALSE),IF(H156=$L$8,IF(#REF!>1,25*#REF!*VLOOKUP(F156,$M$8:$N$13,2,FALSE)*VLOOKUP(G156,$O$8:$P$11,2,FALSE),25*VLOOKUP(F156,$M$8:$N$13,2,FALSE)*VLOOKUP(G156,$O$8:$P$11,2,FALSE))))))))","v":0}]
[149,null,null,null,null,null,null,null,{"$f":"IF(ISBLANK(D157),0,IF(D157=$S$8,0,IF(H157=$L$9,20*VLOOKUP(F157,$M$8:$N$13,2,FALSE)*VLOOKUP(G157,$O$8:$P$11,2,FALSE),IF(H157=$L$10,15*VLOOKUP(F157,$M$8:$N$13,2,FALSE)*VLOOKUP(G157,$O$8:$P$11,2,FALSE),IF(H157=$L$11,5*VLOOKUP(F157,$M$8:$N$13,2,FALSE)*VLOOKUP(G157,$O$8:$P$11,2,FALSE),IF(H157=$L$8,IF(#REF!>1,25*#REF!*VLOOKUP(F157,$M$8:$N$13,2,FALSE)*VLOOKUP(G157,$O$8:$P$11,2,FALSE),25*VLOOKUP(F157,$M$8:$N$13,2,FALSE)*VLOOKUP(G157,$O$8:$P$11,2,FALSE))))))))","v":0}]
[150,null,null,null,null,null,null,null,{"$f":"IF(ISBLANK(D158),0,IF(D158=$S$8,0,IF(H158=$L$9,20*VLOOKUP(F158,$M$8:$N$13,2,FALSE)*VLOOKUP(G158,$O$8:$P$11,2,FALSE),IF(H158=$L$10,15*VLOOKUP(F158,$M$8:$N$13,2,FALSE)*VLOOKUP(G158,$O$8:$P$11,2,FALSE),IF(H158=$L$11,5*VLOOKUP(F158,$M$8:$N$13,2,FALSE)*VLOOKUP(G158,$O$8:$P$11,2,FALSE),IF(H158=$L$8,IF(#REF!>1,25*#REF!*VLOOKUP(F158,$M$8:$N$13,2,FALSE)*VLOOKUP(G158,$O$8:$P$11,2,FALSE),25*VLOOKUP(F158,$M$8:$N$13,2,FALSE)*VLOOKUP(G158,$O$8:$P$11,2,FALSE))))))))","v":0}]
[151,null,null,null,null,null,null,null,{"$f":"IF(ISBLANK(D159),0,IF(D159=$S$8,0,IF(H159=$L$9,20*VLOOKUP(F159,$M$8:$N$13,2,FALSE)*VLOOKUP(G159,$O$8:$P$11,2,FALSE),IF(H159=$L$10,15*VLOOKUP(F159,$M$8:$N$13,2,FALSE)*VLOOKUP(G159,$O$8:$P$11,2,FALSE),IF(H159=$L$11,5*VLOOKUP(F159,$M$8:$N$13,2,FALSE)*VLOOKUP(G159,$O$8:$P$11,2,FALSE),IF(H159=$L$8,IF(#REF!>1,25*#REF!*VLOOKUP(F159,$M$8:$N$13,2,FALSE)*VLOOKUP(G159,$O$8:$P$11,2,FALSE),25*VLOOKUP(F159,$M$8:$N$13,2,FALSE)*VLOOKUP(G159,$O$8:$P$11,2,FALSE))))))))","v":0}]
[152,null,null,null,null,null,null,null,{"$f":"IF(ISBLANK(D160),0,IF(D160=$S$8,0,IF(H160=$L$9,20*VLOOKUP(F160,$M$8:$N$13,2,FALSE)*VLOOKUP(G160,$O$8:$P$11,2,FALSE),IF(H160=$L$10,15*VLOOKUP(F160,$M$8:$N$13,2,FALSE)*VLOOKUP(G160,$O$8:$P$11,2,FALSE),IF(H160=$L$11,5*VLOOKUP(F160,$M$8:$N$13,2,FALSE)*VLOOKUP(G160,$O$8:$P$11,2,FALSE),IF(H160=$L$8,IF(#REF!>1,25*#REF!*VLOOKUP(F160,$M$8:$N$13,2,FALSE)*VLOOKUP(G160,$O$8:$P$11,2,FALSE),25*VLOOKUP(F160,$M$8:$N$13,2,FALSE)*VLOOKUP(G160,$O$8:$P$11,2,FALSE))))))))","v":0}]
[153,null,null,null,null,null,null,null,{"$f":"IF(ISBLANK(D161),0,IF(D161=$S$8,0,IF(H161=$L$9,20*VLOOKUP(F161,$M$8:$N$13,2,FALSE)*VLOOKUP(G161,$O$8:$P$11,2,FALSE),IF(H161=$L$10,15*VLOOKUP(F161,$M$8:$N$13,2,FALSE)*VLOOKUP(G161,$O$8:$P$11,2,FALSE),IF(H161=$L$11,5*VLOOKUP(F161,$M$8:$N$13,2,FALSE)*VLOOKUP(G161,$O$8:$P$11,2,FALSE),IF(H161=$L$8,IF(#REF!>1,25*#REF!*VLOOKUP(F161,$M$8:$N$13,2,FALSE)*VLOOKUP(G161,$O$8:$P$11,2,FALSE),25*VLOOKUP(F161,$M$8:$N$13,2,FALSE)*VLOOKUP(G161,$O$8:$P$11,2,FALSE))))))))","v":0}]
[154,null,null,null,null,null,null,null,{"$f":"IF(ISBLANK(D162),0,IF(D162=$S$8,0,IF(H162=$L$9,20*VLOOKUP(F162,$M$8:$N$13,2,FALSE)*VLOOKUP(G162,$O$8:$P$11,2,FALSE),IF(H162=$L$10,15*VLOOKUP(F162,$M$8:$N$13,2,FALSE)*VLOOKUP(G162,$O$8:$P$11,2,FALSE),IF(H162=$L$11,5*VLOOKUP(F162,$M$8:$N$13,2,FALSE)*VLOOKUP(G162,$O$8:$P$11,2,FALSE),IF(H162=$L$8,IF(#REF!>1,25*#REF!*VLOOKUP(F162,$M$8:$N$13,2,FALSE)*VLOOKUP(G162,$O$8:$P$11,2,FALSE),25*VLOOKUP(F162,$M$8:$N$13,2,FALSE)*VLOOKUP(G162,$O$8:$P$11,2,FALSE))))))))","v":0}]
[155,null,null,null,null,null,null,null,{"$f":"IF(ISBLANK(D163),0,IF(D163=$S$8,0,IF(H163=$L$9,20*VLOOKUP(F163,$M$8:$N$13,2,FALSE)*VLOOKUP(G163,$O$8:$P$11,2,FALSE),IF(H163=$L$10,15*VLOOKUP(F163,$M$8:$N$13,2,FALSE)*VLOOKUP(G163,$O$8:$P$11,2,FALSE),IF(H163=$L$11,5*VLOOKUP(F163,$M$8:$N$13,2,FALSE)*VLOOKUP(G163,$O$8:$P$11,2,FALSE),IF(H163=$L$8,IF(#REF!>1,25*#REF!*VLOOKUP(F163,$M$8:$N$13,2,FALSE)*VLOOKUP(G163,$O$8:$P$11,2,FALSE),25*VLOOKUP(F163,$M$8:$N$13,2,FALSE)*VLOOKUP(G163,$O$8:$P$11,2,FALSE))))))))","v":0}]
[156,null,null,null,null,null,null,null,{"$f":"IF(ISBLANK(D164),0,IF(D164=$S$8,0,IF(H164=$L$9,20*VLOOKUP(F164,$M$8:$N$13,2,FALSE)*VLOOKUP(G164,$O$8:$P$11,2,FALSE),IF(H164=$L$10,15*VLOOKUP(F164,$M$8:$N$13,2,FALSE)*VLOOKUP(G164,$O$8:$P$11,2,FALSE),IF(H164=$L$11,5*VLOOKUP(F164,$M$8:$N$13,2,FALSE)*VLOOKUP(G164,$O$8:$P$11,2,FALSE),IF(H164=$L$8,IF(#REF!>1,25*#REF!*VLOOKUP(F164,$M$8:$N$13,2,FALSE)*VLOOKUP(G164,$O$8:$P$11,2,FALSE),25*VLOOKUP(F164,$M$8:$N$13,2,FALSE)*VLOOKUP(G164,$O$8:$P$11,2,FALSE))))))))","v":0}]
[157,null,null,null,null,null,null,null,{"$f":"IF(ISBLANK(D165),0,IF(D165=$S$8,0,IF(H165=$L$9,20*VLOOKUP(F165,$M$8:$N$13,2,FALSE)*VLOOKUP(G165,$O$8:$P$11,2,FALSE),IF(H165=$L$10,15*VLOOKUP(F165,$M$8:$N$13,2,FALSE)*VLOOKUP(G165,$O$8:$P$11,2,FALSE),IF(H165=$L$11,5*VLOOKUP(F165,$M$8:$N$13,2,FALSE)*VLOOKUP(G165,$O$8:$P$11,2,FALSE),IF(H165=$L$8,IF(#REF!>1,25*#REF!*VLOOKUP(F165,$M$8:$N$13,2,FALSE)*VLOOKUP(G165,$O$8:$P$11,2,FALSE),25*VLOOKUP(F165,$M$8:$N$13,2,FALSE)*VLOOKUP(G165,$O$8:$P$11,2,FALSE))))))))","v":0}]
[158,null,null,null,null,null,null,null,{"$f":"IF(ISBLANK(D166),0,IF(D166=$S$8,0,IF(H166=$L$9,20*VLOOKUP(F166,$M$8:$N$13,2,FALSE)*VLOOKUP(G166,$O$8:$P$11,2,FALSE),IF(H166=$L$10,15*VLOOKUP(F166,$M$8:$N$13,2,FALSE)*VLOOKUP(G166,$O$8:$P$11,2,FALSE),IF(H166=$L$11,5*VLOOKUP(F166,$M$8:$N$13,2,FALSE)*VLOOKUP(G166,$O$8:$P$11,2,FALSE),IF(H166=$L$8,IF(#REF!>1,25*#REF!*VLOOKUP(F166,$M$8:$N$13,2,FALSE)*VLOOKUP(G166,$O$8:$P$11,2,FALSE),25*VLOOKUP(F166,$M$8:$N$13,2,FALSE)*VLOOKUP(G166,$O$8:$P$11,2,FALSE))))))))","v":0}]
[159,null,null,null,null,null,null,null,{"$f":"IF(ISBLANK(D167),0,IF(D167=$S$8,0,IF(H167=$L$9,20*VLOOKUP(F167,$M$8:$N$13,2,FALSE)*VLOOKUP(G167,$O$8:$P$11,2,FALSE),IF(H167=$L$10,15*VLOOKUP(F167,$M$8:$N$13,2,FALSE)*VLOOKUP(G167,$O$8:$P$11,2,FALSE),IF(H167=$L$11,5*VLOOKUP(F167,$M$8:$N$13,2,FALSE)*VLOOKUP(G167,$O$8:$P$11,2,FALSE),IF(H167=$L$8,IF(#REF!>1,25*#REF!*VLOOKUP(F167,$M$8:$N$13,2,FALSE)*VLOOKUP(G167,$O$8:$P$11,2,FALSE),25*VLOOKUP(F167,$M$8:$N$13,2,FALSE)*VLOOKUP(G167,$O$8:$P$11,2,FALSE))))))))","v":0}]
[160,null,null,null,null,null,null,null,{"$f":"IF(ISBLANK(D168),0,IF(D168=$S$8,0,IF(H168=$L$9,20*VLOOKUP(F168,$M$8:$N$13,2,FALSE)*VLOOKUP(G168,$O$8:$P$11,2,FALSE),IF(H168=$L$10,15*VLOOKUP(F168,$M$8:$N$13,2,FALSE)*VLOOKUP(G168,$O$8:$P$11,2,FALSE),IF(H168=$L$11,5*VLOOKUP(F168,$M$8:$N$13,2,FALSE)*VLOOKUP(G168,$O$8:$P$11,2,FALSE),IF(H168=$L$8,IF(#REF!>1,25*#REF!*VLOOKUP(F168,$M$8:$N$13,2,FALSE)*VLOOKUP(G168,$O$8:$P$11,2,FALSE),25*VLOOKUP(F168,$M$8:$N$13,2,FALSE)*VLOOKUP(G168,$O$8:$P$11,2,FALSE))))))))","v":0}]
[161,null,null,null,null,null,null,null,{"$f":"IF(ISBLANK(D169),0,IF(D169=$S$8,0,IF(H169=$L$9,20*VLOOKUP(F169,$M$8:$N$13,2,FALSE)*VLOOKUP(G169,$O$8:$P$11,2,FALSE),IF(H169=$L$10,15*VLOOKUP(F169,$M$8:$N$13,2,FALSE)*VLOOKUP(G169,$O$8:$P$11,2,FALSE),IF(H169=$L$11,5*VLOOKUP(F169,$M$8:$N$13,2,FALSE)*VLOOKUP(G169,$O$8:$P$11,2,FALSE),IF(H169=$L$8,IF(#REF!>1,25*#REF!*VLOOKUP(F169,$M$8:$N$13,2,FALSE)*VLOOKUP(G169,$O$8:$P$11,2,FALSE),25*VLOOKUP(F169,$M$8:$N$13,2,FALSE)*VLOOKUP(G169,$O$8:$P$11,2,FALSE))))))))","v":0}]
[162,null,null,null,null,null,null,null,{"$f":"IF(ISBLANK(D170),0,IF(D170=$S$8,0,IF(H170=$L$9,20*VLOOKUP(F170,$M$8:$N$13,2,FALSE)*VLOOKUP(G170,$O$8:$P$11,2,FALSE),IF(H170=$L$10,15*VLOOKUP(F170,$M$8:$N$13,2,FALSE)*VLOOKUP(G170,$O$8:$P$11,2,FALSE),IF(H170=$L$11,5*VLOOKUP(F170,$M$8:$N$13,2,FALSE)*VLOOKUP(G170,$O$8:$P$11,2,FALSE),IF(H170=$L$8,IF(#REF!>1,25*#REF!*VLOOKUP(F170,$M$8:$N$13,2,FALSE)*VLOOKUP(G170,$O$8:$P$11,2,FALSE),25*VLOOKUP(F170,$M$8:$N$13,2,FALSE)*VLOOKUP(G170,$O$8:$P$11,2,FALSE))))))))","v":0}]
[163,null,null,null,null,null,null,null,{"$f":"IF(ISBLANK(D171),0,IF(D171=$S$8,0,IF(H171=$L$9,20*VLOOKUP(F171,$M$8:$N$13,2,FALSE)*VLOOKUP(G171,$O$8:$P$11,2,FALSE),IF(H171=$L$10,15*VLOOKUP(F171,$M$8:$N$13,2,FALSE)*VLOOKUP(G171,$O$8:$P$11,2,FALSE),IF(H171=$L$11,5*VLOOKUP(F171,$M$8:$N$13,2,FALSE)*VLOOKUP(G171,$O$8:$P$11,2,FALSE),IF(H171=$L$8,IF(#REF!>1,25*#REF!*VLOOKUP(F171,$M$8:$N$13,2,FALSE)*VLOOKUP(G171,$O$8:$P$11,2,FALSE),25*VLOOKUP(F171,$M$8:$N$13,2,FALSE)*VLOOKUP(G171,$O$8:$P$11,2,FALSE))))))))","v":0}]
[164,null,null,null,null,null,null,null,{"$f":"IF(ISBLANK(D172),0,IF(D172=$S$8,0,IF(H172=$L$9,20*VLOOKUP(F172,$M$8:$N$13,2,FALSE)*VLOOKUP(G172,$O$8:$P$11,2,FALSE),IF(H172=$L$10,15*VLOOKUP(F172,$M$8:$N$13,2,FALSE)*VLOOKUP(G172,$O$8:$P$11,2,FALSE),IF(H172=$L$11,5*VLOOKUP(F172,$M$8:$N$13,2,FALSE)*VLOOKUP(G172,$O$8:$P$11,2,FALSE),IF(H172=$L$8,IF(#REF!>1,25*#REF!*VLOOKUP(F172,$M$8:$N$13,2,FALSE)*VLOOKUP(G172,$O$8:$P$11,2,FALSE),25*VLOOKUP(F172,$M$8:$N$13,2,FALSE)*VLOOKUP(G172,$O$8:$P$11,2,FALSE))))))))","v":0}]
[165,null,null,null,null,null,null,null,{"$f":"IF(ISBLANK(D173),0,IF(D173=$S$8,0,IF(H173=$L$9,20*VLOOKUP(F173,$M$8:$N$13,2,FALSE)*VLOOKUP(G173,$O$8:$P$11,2,FALSE),IF(H173=$L$10,15*VLOOKUP(F173,$M$8:$N$13,2,FALSE)*VLOOKUP(G173,$O$8:$P$11,2,FALSE),IF(H173=$L$11,5*VLOOKUP(F173,$M$8:$N$13,2,FALSE)*VLOOKUP(G173,$O$8:$P$11,2,FALSE),IF(H173=$L$8,IF(#REF!>1,25*#REF!*VLOOKUP(F173,$M$8:$N$13,2,FALSE)*VLOOKUP(G173,$O$8:$P$11,2,FALSE),25*VLOOKUP(F173,$M$8:$N$13,2,FALSE)*VLOOKUP(G173,$O$8:$P$11,2,FALSE))))))))","v":0}]
[166,null,null,null,null,null,null,null,{"$f":"IF(ISBLANK(D174),0,IF(D174=$S$8,0,IF(H174=$L$9,20*VLOOKUP(F174,$M$8:$N$13,2,FALSE)*VLOOKUP(G174,$O$8:$P$11,2,FALSE),IF(H174=$L$10,15*VLOOKUP(F174,$M$8:$N$13,2,FALSE)*VLOOKUP(G174,$O$8:$P$11,2,FALSE),IF(H174=$L$11,5*VLOOKUP(F174,$M$8:$N$13,2,FALSE)*VLOOKUP(G174,$O$8:$P$11,2,FALSE),IF(H174=$L$8,IF(#REF!>1,25*#REF!*VLOOKUP(F174,$M$8:$N$13,2,FALSE)*VLOOKUP(G174,$O$8:$P$11,2,FALSE),25*VLOOKUP(F174,$M$8:$N$13,2,FALSE)*VLOOKUP(G174,$O$8:$P$11,2,FALSE))))))))","v":0}]
[167,null,null,null,null,null,null,null,{"$f":"IF(ISBLANK(D175),0,IF(D175=$S$8,0,IF(H175=$L$9,20*VLOOKUP(F175,$M$8:$N$13,2,FALSE)*VLOOKUP(G175,$O$8:$P$11,2,FALSE),IF(H175=$L$10,15*VLOOKUP(F175,$M$8:$N$13,2,FALSE)*VLOOKUP(G175,$O$8:$P$11,2,FALSE),IF(H175=$L$11,5*VLOOKUP(F175,$M$8:$N$13,2,FALSE)*VLOOKUP(G175,$O$8:$P$11,2,FALSE),IF(H175=$L$8,IF(#REF!>1,25*#REF!*VLOOKUP(F175,$M$8:$N$13,2,FALSE)*VLOOKUP(G175,$O$8:$P$11,2,FALSE),25*VLOOKUP(F175,$M$8:$N$13,2,FALSE)*VLOOKUP(G175,$O$8:$P$11,2,FALSE))))))))","v":0}]
[168,null,null,null,null,null,null,null,{"$f":"IF(ISBLANK(D176),0,IF(D176=$S$8,0,IF(H176=$L$9,20*VLOOKUP(F176,$M$8:$N$13,2,FALSE)*VLOOKUP(G176,$O$8:$P$11,2,FALSE),IF(H176=$L$10,15*VLOOKUP(F176,$M$8:$N$13,2,FALSE)*VLOOKUP(G176,$O$8:$P$11,2,FALSE),IF(H176=$L$11,5*VLOOKUP(F176,$M$8:$N$13,2,FALSE)*VLOOKUP(G176,$O$8:$P$11,2,FALSE),IF(H176=$L$8,IF(#REF!>1,25*#REF!*VLOOKUP(F176,$M$8:$N$13,2,FALSE)*VLOOKUP(G176,$O$8:$P$11,2,FALSE),25*VLOOKUP(F176,$M$8:$N$13,2,FALSE)*VLOOKUP(G176,$O$8:$P$11,2,FALSE))))))))","v":0}]
[169,null,null,null,null,null,null,null,{"$f":"IF(ISBLANK(D177),0,IF(D177=$S$8,0,IF(H177=$L$9,20*VLOOKUP(F177,$M$8:$N$13,2,FALSE)*VLOOKUP(G177,$O$8:$P$11,2,FALSE),IF(H177=$L$10,15*VLOOKUP(F177,$M$8:$N$13,2,FALSE)*VLOOKUP(G177,$O$8:$P$11,2,FALSE),IF(H177=$L$11,5*VLOOKUP(F177,$M$8:$N$13,2,FALSE)*VLOOKUP(G177,$O$8:$P$11,2,FALSE),IF(H177=$L$8,IF(#REF!>1,25*#REF!*VLOOKUP(F177,$M$8:$N$13,2,FALSE)*VLOOKUP(G177,$O$8:$P$11,2,FALSE),25*VLOOKUP(F177,$M$8:$N$13,2,FALSE)*VLOOKUP(G177,$O$8:$P$11,2,FALSE))))))))","v":0}]
[170,null,null,null,null,null,null,null,{"$f":"IF(ISBLANK(D178),0,IF(D178=$S$8,0,IF(H178=$L$9,20*VLOOKUP(F178,$M$8:$N$13,2,FALSE)*VLOOKUP(G178,$O$8:$P$11,2,FALSE),IF(H178=$L$10,15*VLOOKUP(F178,$M$8:$N$13,2,FALSE)*VLOOKUP(G178,$O$8:$P$11,2,FALSE),IF(H178=$L$11,5*VLOOKUP(F178,$M$8:$N$13,2,FALSE)*VLOOKUP(G178,$O$8:$P$11,2,FALSE),IF(H178=$L$8,IF(#REF!>1,25*#REF!*VLOOKUP(F178,$M$8:$N$13,2,FALSE)*VLOOKUP(G178,$O$8:$P$11,2,FALSE),25*VLOOKUP(F178,$M$8:$N$13,2,FALSE)*VLOOKUP(G178,$O$8:$P$11,2,FALSE))))))))","v":0}]
[171,null,null,null,null,null,null,null,{"$f":"IF(ISBLANK(D179),0,IF(D179=$S$8,0,IF(H179=$L$9,20*VLOOKUP(F179,$M$8:$N$13,2,FALSE)*VLOOKUP(G179,$O$8:$P$11,2,FALSE),IF(H179=$L$10,15*VLOOKUP(F179,$M$8:$N$13,2,FALSE)*VLOOKUP(G179,$O$8:$P$11,2,FALSE),IF(H179=$L$11,5*VLOOKUP(F179,$M$8:$N$13,2,FALSE)*VLOOKUP(G179,$O$8:$P$11,2,FALSE),IF(H179=$L$8,IF(#REF!>1,25*#REF!*VLOOKUP(F179,$M$8:$N$13,2,FALSE)*VLOOKUP(G179,$O$8:$P$11,2,FALSE),25*VLOOKUP(F179,$M$8:$N$13,2,FALSE)*VLOOKUP(G179,$O$8:$P$11,2,FALSE))))))))","v":0}]
[172,null,null,null,null,null,null,null,{"$f":"IF(ISBLANK(D180),0,IF(D180=$S$8,0,IF(H180=$L$9,20*VLOOKUP(F180,$M$8:$N$13,2,FALSE)*VLOOKUP(G180,$O$8:$P$11,2,FALSE),IF(H180=$L$10,15*VLOOKUP(F180,$M$8:$N$13,2,FALSE)*VLOOKUP(G180,$O$8:$P$11,2,FALSE),IF(H180=$L$11,5*VLOOKUP(F180,$M$8:$N$13,2,FALSE)*VLOOKUP(G180,$O$8:$P$11,2,FALSE),IF(H180=$L$8,IF(#REF!>1,25*#REF!*VLOOKUP(F180,$M$8:$N$13,2,FALSE)*VLOOKUP(G180,$O$8:$P$11,2,FALSE),25*VLOOKUP(F180,$M$8:$N$13,2,FALSE)*VLOOKUP(G180,$O$8:$P$11,2,FALSE))))))))","v":0}]
[173,null,null,null,null,null,null,null,{"$f":"IF(ISBLANK(D181),0,IF(D181=$S$8,0,IF(H181=$L$9,20*VLOOKUP(F181,$M$8:$N$13,2,FALSE)*VLOOKUP(G181,$O$8:$P$11,2,FALSE),IF(H181=$L$10,15*VLOOKUP(F181,$M$8:$N$13,2,FALSE)*VLOOKUP(G181,$O$8:$P$11,2,FALSE),IF(H181=$L$11,5*VLOOKUP(F181,$M$8:$N$13,2,FALSE)*VLOOKUP(G181,$O$8:$P$11,2,FALSE),IF(H181=$L$8,IF(#REF!>1,25*#REF!*VLOOKUP(F181,$M$8:$N$13,2,FALSE)*VLOOKUP(G181,$O$8:$P$11,2,FALSE),25*VLOOKUP(F181,$M$8:$N$13,2,FALSE)*VLOOKUP(G181,$O$8:$P$11,2,FALSE))))))))","v":0}]
[174,null,null,null,null,null,null,null,{"$f":"IF(ISBLANK(D182),0,IF(D182=$S$8,0,IF(H182=$L$9,20*VLOOKUP(F182,$M$8:$N$13,2,FALSE)*VLOOKUP(G182,$O$8:$P$11,2,FALSE),IF(H182=$L$10,15*VLOOKUP(F182,$M$8:$N$13,2,FALSE)*VLOOKUP(G182,$O$8:$P$11,2,FALSE),IF(H182=$L$11,5*VLOOKUP(F182,$M$8:$N$13,2,FALSE)*VLOOKUP(G182,$O$8:$P$11,2,FALSE),IF(H182=$L$8,IF(#REF!>1,25*#REF!*VLOOKUP(F182,$M$8:$N$13,2,FALSE)*VLOOKUP(G182,$O$8:$P$11,2,FALSE),25*VLOOKUP(F182,$M$8:$N$13,2,FALSE)*VLOOKUP(G182,$O$8:$P$11,2,FALSE))))))))","v":0}]
[175,null,null,null,null,null,null,null,{"$f":"IF(ISBLANK(D183),0,IF(D183=$S$8,0,IF(H183=$L$9,20*VLOOKUP(F183,$M$8:$N$13,2,FALSE)*VLOOKUP(G183,$O$8:$P$11,2,FALSE),IF(H183=$L$10,15*VLOOKUP(F183,$M$8:$N$13,2,FALSE)*VLOOKUP(G183,$O$8:$P$11,2,FALSE),IF(H183=$L$11,5*VLOOKUP(F183,$M$8:$N$13,2,FALSE)*VLOOKUP(G183,$O$8:$P$11,2,FALSE),IF(H183=$L$8,IF(#REF!>1,25*#REF!*VLOOKUP(F183,$M$8:$N$13,2,FALSE)*VLOOKUP(G183,$O$8:$P$11,2,FALSE),25*VLOOKUP(F183,$M$8:$N$13,2,FALSE)*VLOOKUP(G183,$O$8:$P$11,2,FALSE))))))))","v":0}]
[176,null,null,null,null,null,null,null,{"$f":"IF(ISBLANK(D184),0,IF(D184=$S$8,0,IF(H184=$L$9,20*VLOOKUP(F184,$M$8:$N$13,2,FALSE)*VLOOKUP(G184,$O$8:$P$11,2,FALSE),IF(H184=$L$10,15*VLOOKUP(F184,$M$8:$N$13,2,FALSE)*VLOOKUP(G184,$O$8:$P$11,2,FALSE),IF(H184=$L$11,5*VLOOKUP(F184,$M$8:$N$13,2,FALSE)*VLOOKUP(G184,$O$8:$P$11,2,FALSE),IF(H184=$L$8,IF(#REF!>1,25*#REF!*VLOOKUP(F184,$M$8:$N$13,2,FALSE)*VLOOKUP(G184,$O$8:$P$11,2,FALSE),25*VLOOKUP(F184,$M$8:$N$13,2,FALSE)*VLOOKUP(G184,$O$8:$P$11,2,FALSE))))))))","v":0}]
[177,null,null,null,null,null,null,null,{"$f":"IF(ISBLANK(D185),0,IF(D185=$S$8,0,IF(H185=$L$9,20*VLOOKUP(F185,$M$8:$N$13,2,FALSE)*VLOOKUP(G185,$O$8:$P$11,2,FALSE),IF(H185=$L$10,15*VLOOKUP(F185,$M$8:$N$13,2,FALSE)*VLOOKUP(G185,$O$8:$P$11,2,FALSE),IF(H185=$L$11,5*VLOOKUP(F185,$M$8:$N$13,2,FALSE)*VLOOKUP(G185,$O$8:$P$11,2,FALSE),IF(H185=$L$8,IF(#REF!>1,25*#REF!*VLOOKUP(F185,$M$8:$N$13,2,FALSE)*VLOOKUP(G185,$O$8:$P$11,2,FALSE),25*VLOOKUP(F185,$M$8:$N$13,2,FALSE)*VLOOKUP(G185,$O$8:$P$11,2,FALSE))))))))","v":0}]
[178,null,null,null,null,null,null,null,{"$f":"IF(ISBLANK(D186),0,IF(D186=$S$8,0,IF(H186=$L$9,20*VLOOKUP(F186,$M$8:$N$13,2,FALSE)*VLOOKUP(G186,$O$8:$P$11,2,FALSE),IF(H186=$L$10,15*VLOOKUP(F186,$M$8:$N$13,2,FALSE)*VLOOKUP(G186,$O$8:$P$11,2,FALSE),IF(H186=$L$11,5*VLOOKUP(F186,$M$8:$N$13,2,FALSE)*VLOOKUP(G186,$O$8:$P$11,2,FALSE),IF(H186=$L$8,IF(#REF!>1,25*#REF!*VLOOKUP(F186,$M$8:$N$13,2,FALSE)*VLOOKUP(G186,$O$8:$P$11,2,FALSE),25*VLOOKUP(F186,$M$8:$N$13,2,FALSE)*VLOOKUP(G186,$O$8:$P$11,2,FALSE))))))))","v":0}]
[179,null,null,null,null,null,null,null,{"$f":"IF(ISBLANK(D187),0,IF(D187=$S$8,0,IF(H187=$L$9,20*VLOOKUP(F187,$M$8:$N$13,2,FALSE)*VLOOKUP(G187,$O$8:$P$11,2,FALSE),IF(H187=$L$10,15*VLOOKUP(F187,$M$8:$N$13,2,FALSE)*VLOOKUP(G187,$O$8:$P$11,2,FALSE),IF(H187=$L$11,5*VLOOKUP(F187,$M$8:$N$13,2,FALSE)*VLOOKUP(G187,$O$8:$P$11,2,FALSE),IF(H187=$L$8,IF(#REF!>1,25*#REF!*VLOOKUP(F187,$M$8:$N$13,2,FALSE)*VLOOKUP(G187,$O$8:$P$11,2,FALSE),25*VLOOKUP(F187,$M$8:$N$13,2,FALSE)*VLOOKUP(G187,$O$8:$P$11,2,FALSE))))))))","v":0}]
[180,null,null,null,null,null,null,null,{"$f":"IF(ISBLANK(D188),0,IF(D188=$S$8,0,IF(H188=$L$9,20*VLOOKUP(F188,$M$8:$N$13,2,FALSE)*VLOOKUP(G188,$O$8:$P$11,2,FALSE),IF(H188=$L$10,15*VLOOKUP(F188,$M$8:$N$13,2,FALSE)*VLOOKUP(G188,$O$8:$P$11,2,FALSE),IF(H188=$L$11,5*VLOOKUP(F188,$M$8:$N$13,2,FALSE)*VLOOKUP(G188,$O$8:$P$11,2,FALSE),IF(H188=$L$8,IF(#REF!>1,25*#REF!*VLOOKUP(F188,$M$8:$N$13,2,FALSE)*VLOOKUP(G188,$O$8:$P$11,2,FALSE),25*VLOOKUP(F188,$M$8:$N$13,2,FALSE)*VLOOKUP(G188,$O$8:$P$11,2,FALSE))))))))","v":0}]
[181,null,null,null,null,null,null,null,{"$f":"IF(ISBLANK(D189),0,IF(D189=$S$8,0,IF(H189=$L$9,20*VLOOKUP(F189,$M$8:$N$13,2,FALSE)*VLOOKUP(G189,$O$8:$P$11,2,FALSE),IF(H189=$L$10,15*VLOOKUP(F189,$M$8:$N$13,2,FALSE)*VLOOKUP(G189,$O$8:$P$11,2,FALSE),IF(H189=$L$11,5*VLOOKUP(F189,$M$8:$N$13,2,FALSE)*VLOOKUP(G189,$O$8:$P$11,2,FALSE),IF(H189=$L$8,IF(#REF!>1,25*#REF!*VLOOKUP(F189,$M$8:$N$13,2,FALSE)*VLOOKUP(G189,$O$8:$P$11,2,FALSE),25*VLOOKUP(F189,$M$8:$N$13,2,FALSE)*VLOOKUP(G189,$O$8:$P$11,2,FALSE))))))))","v":0}]
[182,null,null,null,null,null,null,null,{"$f":"IF(ISBLANK(D190),0,IF(D190=$S$8,0,IF(H190=$L$9,20*VLOOKUP(F190,$M$8:$N$13,2,FALSE)*VLOOKUP(G190,$O$8:$P$11,2,FALSE),IF(H190=$L$10,15*VLOOKUP(F190,$M$8:$N$13,2,FALSE)*VLOOKUP(G190,$O$8:$P$11,2,FALSE),IF(H190=$L$11,5*VLOOKUP(F190,$M$8:$N$13,2,FALSE)*VLOOKUP(G190,$O$8:$P$11,2,FALSE),IF(H190=$L$8,IF(#REF!>1,25*#REF!*VLOOKUP(F190,$M$8:$N$13,2,FALSE)*VLOOKUP(G190,$O$8:$P$11,2,FALSE),25*VLOOKUP(F190,$M$8:$N$13,2,FALSE)*VLOOKUP(G190,$O$8:$P$11,2,FALSE))))))))","v":0}]
[183,null,null,null,null,null,null,null,{"$f":"IF(ISBLANK(D191),0,IF(D191=$S$8,0,IF(H191=$L$9,20*VLOOKUP(F191,$M$8:$N$13,2,FALSE)*VLOOKUP(G191,$O$8:$P$11,2,FALSE),IF(H191=$L$10,15*VLOOKUP(F191,$M$8:$N$13,2,FALSE)*VLOOKUP(G191,$O$8:$P$11,2,FALSE),IF(H191=$L$11,5*VLOOKUP(F191,$M$8:$N$13,2,FALSE)*VLOOKUP(G191,$O$8:$P$11,2,FALSE),IF(H191=$L$8,IF(#REF!>1,25*#REF!*VLOOKUP(F191,$M$8:$N$13,2,FALSE)*VLOOKUP(G191,$O$8:$P$11,2,FALSE),25*VLOOKUP(F191,$M$8:$N$13,2,FALSE)*VLOOKUP(G191,$O$8:$P$11,2,FALSE))))))))","v":0}]
[184,null,null,null,null,null,null,null,{"$f":"IF(ISBLANK(D192),0,IF(D192=$S$8,0,IF(H192=$L$9,20*VLOOKUP(F192,$M$8:$N$13,2,FALSE)*VLOOKUP(G192,$O$8:$P$11,2,FALSE),IF(H192=$L$10,15*VLOOKUP(F192,$M$8:$N$13,2,FALSE)*VLOOKUP(G192,$O$8:$P$11,2,FALSE),IF(H192=$L$11,5*VLOOKUP(F192,$M$8:$N$13,2,FALSE)*VLOOKUP(G192,$O$8:$P$11,2,FALSE),IF(H192=$L$8,IF(#REF!>1,25*#REF!*VLOOKUP(F192,$M$8:$N$13,2,FALSE)*VLOOKUP(G192,$O$8:$P$11,2,FALSE),25*VLOOKUP(F192,$M$8:$N$13,2,FALSE)*VLOOKUP(G192,$O$8:$P$11,2,FALSE))))))))","v":0}]
[185,null,null,null,null,null,null,null,{"$f":"IF(ISBLANK(D193),0,IF(D193=$S$8,0,IF(H193=$L$9,20*VLOOKUP(F193,$M$8:$N$13,2,FALSE)*VLOOKUP(G193,$O$8:$P$11,2,FALSE),IF(H193=$L$10,15*VLOOKUP(F193,$M$8:$N$13,2,FALSE)*VLOOKUP(G193,$O$8:$P$11,2,FALSE),IF(H193=$L$11,5*VLOOKUP(F193,$M$8:$N$13,2,FALSE)*VLOOKUP(G193,$O$8:$P$11,2,FALSE),IF(H193=$L$8,IF(#REF!>1,25*#REF!*VLOOKUP(F193,$M$8:$N$13,2,FALSE)*VLOOKUP(G193,$O$8:$P$11,2,FALSE),25*VLOOKUP(F193,$M$8:$N$13,2,FALSE)*VLOOKUP(G193,$O$8:$P$11,2,FALSE))))))))","v":0}]
[186,null,null,null,null,null,null,null,{"$f":"IF(ISBLANK(D194),0,IF(D194=$S$8,0,IF(H194=$L$9,20*VLOOKUP(F194,$M$8:$N$13,2,FALSE)*VLOOKUP(G194,$O$8:$P$11,2,FALSE),IF(H194=$L$10,15*VLOOKUP(F194,$M$8:$N$13,2,FALSE)*VLOOKUP(G194,$O$8:$P$11,2,FALSE),IF(H194=$L$11,5*VLOOKUP(F194,$M$8:$N$13,2,FALSE)*VLOOKUP(G194,$O$8:$P$11,2,FALSE),IF(H194=$L$8,IF(#REF!>1,25*#REF!*VLOOKUP(F194,$M$8:$N$13,2,FALSE)*VLOOKUP(G194,$O$8:$P$11,2,FALSE),25*VLOOKUP(F194,$M$8:$N$13,2,FALSE)*VLOOKUP(G194,$O$8:$P$11,2,FALSE))))))))","v":0}]
[187,null,null,null,null,null,null,null,{"$f":"IF(ISBLANK(D195),0,IF(D195=$S$8,0,IF(H195=$L$9,20*VLOOKUP(F195,$M$8:$N$13,2,FALSE)*VLOOKUP(G195,$O$8:$P$11,2,FALSE),IF(H195=$L$10,15*VLOOKUP(F195,$M$8:$N$13,2,FALSE)*VLOOKUP(G195,$O$8:$P$11,2,FALSE),IF(H195=$L$11,5*VLOOKUP(F195,$M$8:$N$13,2,FALSE)*VLOOKUP(G195,$O$8:$P$11,2,FALSE),IF(H195=$L$8,IF(#REF!>1,25*#REF!*VLOOKUP(F195,$M$8:$N$13,2,FALSE)*VLOOKUP(G195,$O$8:$P$11,2,FALSE),25*VLOOKUP(F195,$M$8:$N$13,2,FALSE)*VLOOKUP(G195,$O$8:$P$11,2,FALSE))))))))","v":0}]
[188,null,null,null,null,null,null,null,{"$f":"IF(ISBLANK(D196),0,IF(D196=$S$8,0,IF(H196=$L$9,20*VLOOKUP(F196,$M$8:$N$13,2,FALSE)*VLOOKUP(G196,$O$8:$P$11,2,FALSE),IF(H196=$L$10,15*VLOOKUP(F196,$M$8:$N$13,2,FALSE)*VLOOKUP(G196,$O$8:$P$11,2,FALSE),IF(H196=$L$11,5*VLOOKUP(F196,$M$8:$N$13,2,FALSE)*VLOOKUP(G196,$O$8:$P$11,2,FALSE),IF(H196=$L$8,IF(#REF!>1,25*#REF!*VLOOKUP(F196,$M$8:$N$13,2,FALSE)*VLOOKUP(G196,$O$8:$P$11,2,FALSE),25*VLOOKUP(F196,$M$8:$N$13,2,FALSE)*VLOOKUP(G196,$O$8:$P$11,2,FALSE))))))))","v":0}]
[189,null,null,null,null,null,null,null,{"$f":"IF(ISBLANK(D197),0,IF(D197=$S$8,0,IF(H197=$L$9,20*VLOOKUP(F197,$M$8:$N$13,2,FALSE)*VLOOKUP(G197,$O$8:$P$11,2,FALSE),IF(H197=$L$10,15*VLOOKUP(F197,$M$8:$N$13,2,FALSE)*VLOOKUP(G197,$O$8:$P$11,2,FALSE),IF(H197=$L$11,5*VLOOKUP(F197,$M$8:$N$13,2,FALSE)*VLOOKUP(G197,$O$8:$P$11,2,FALSE),IF(H197=$L$8,IF(#REF!>1,25*#REF!*VLOOKUP(F197,$M$8:$N$13,2,FALSE)*VLOOKUP(G197,$O$8:$P$11,2,FALSE),25*VLOOKUP(F197,$M$8:$N$13,2,FALSE)*VLOOKUP(G197,$O$8:$P$11,2,FALSE))))))))","v":0}]
[190,null,null,null,null,null,null,null,{"$f":"IF(ISBLANK(D198),0,IF(D198=$S$8,0,IF(H198=$L$9,20*VLOOKUP(F198,$M$8:$N$13,2,FALSE)*VLOOKUP(G198,$O$8:$P$11,2,FALSE),IF(H198=$L$10,15*VLOOKUP(F198,$M$8:$N$13,2,FALSE)*VLOOKUP(G198,$O$8:$P$11,2,FALSE),IF(H198=$L$11,5*VLOOKUP(F198,$M$8:$N$13,2,FALSE)*VLOOKUP(G198,$O$8:$P$11,2,FALSE),IF(H198=$L$8,IF(#REF!>1,25*#REF!*VLOOKUP(F198,$M$8:$N$13,2,FALSE)*VLOOKUP(G198,$O$8:$P$11,2,FALSE),25*VLOOKUP(F198,$M$8:$N$13,2,FALSE)*VLOOKUP(G198,$O$8:$P$11,2,FALSE))))))))","v":0}]
[191,null,null,null,null,null,null,null,{"$f":"IF(ISBLANK(D199),0,IF(D199=$S$8,0,IF(H199=$L$9,20*VLOOKUP(F199,$M$8:$N$13,2,FALSE)*VLOOKUP(G199,$O$8:$P$11,2,FALSE),IF(H199=$L$10,15*VLOOKUP(F199,$M$8:$N$13,2,FALSE)*VLOOKUP(G199,$O$8:$P$11,2,FALSE),IF(H199=$L$11,5*VLOOKUP(F199,$M$8:$N$13,2,FALSE)*VLOOKUP(G199,$O$8:$P$11,2,FALSE),IF(H199=$L$8,IF(#REF!>1,25*#REF!*VLOOKUP(F199,$M$8:$N$13,2,FALSE)*VLOOKUP(G199,$O$8:$P$11,2,FALSE),25*VLOOKUP(F199,$M$8:$N$13,2,FALSE)*VLOOKUP(G199,$O$8:$P$11,2,FALSE))))))))","v":0}]
[192,null,null,null,null,null,null,null,{"$f":"IF(ISBLANK(D200),0,IF(D200=$S$8,0,IF(H200=$L$9,20*VLOOKUP(F200,$M$8:$N$13,2,FALSE)*VLOOKUP(G200,$O$8:$P$11,2,FALSE),IF(H200=$L$10,15*VLOOKUP(F200,$M$8:$N$13,2,FALSE)*VLOOKUP(G200,$O$8:$P$11,2,FALSE),IF(H200=$L$11,5*VLOOKUP(F200,$M$8:$N$13,2,FALSE)*VLOOKUP(G200,$O$8:$P$11,2,FALSE),IF(H200=$L$8,IF(#REF!>1,25*#REF!*VLOOKUP(F200,$M$8:$N$13,2,FALSE)*VLOOKUP(G200,$O$8:$P$11,2,FALSE),25*VLOOKUP(F200,$M$8:$N$13,2,FALSE)*VLOOKUP(G200,$O$8:$P$11,2,FALSE))))))))","v":0}]
[193,null,null,null,null,null,null,null,{"$f":"IF(ISBLANK(D201),0,IF(D201=$S$8,0,IF(H201=$L$9,20*VLOOKUP(F201,$M$8:$N$13,2,FALSE)*VLOOKUP(G201,$O$8:$P$11,2,FALSE),IF(H201=$L$10,15*VLOOKUP(F201,$M$8:$N$13,2,FALSE)*VLOOKUP(G201,$O$8:$P$11,2,FALSE),IF(H201=$L$11,5*VLOOKUP(F201,$M$8:$N$13,2,FALSE)*VLOOKUP(G201,$O$8:$P$11,2,FALSE),IF(H201=$L$8,IF(#REF!>1,25*#REF!*VLOOKUP(F201,$M$8:$N$13,2,FALSE)*VLOOKUP(G201,$O$8:$P$11,2,FALSE),25*VLOOKUP(F201,$M$8:$N$13,2,FALSE)*VLOOKUP(G201,$O$8:$P$11,2,FALSE))))))))","v":0}]
[194,null,null,null,null,null,null,null,{"$f":"IF(ISBLANK(D202),0,IF(D202=$S$8,0,IF(H202=$L$9,20*VLOOKUP(F202,$M$8:$N$13,2,FALSE)*VLOOKUP(G202,$O$8:$P$11,2,FALSE),IF(H202=$L$10,15*VLOOKUP(F202,$M$8:$N$13,2,FALSE)*VLOOKUP(G202,$O$8:$P$11,2,FALSE),IF(H202=$L$11,5*VLOOKUP(F202,$M$8:$N$13,2,FALSE)*VLOOKUP(G202,$O$8:$P$11,2,FALSE),IF(H202=$L$8,IF(#REF!>1,25*#REF!*VLOOKUP(F202,$M$8:$N$13,2,FALSE)*VLOOKUP(G202,$O$8:$P$11,2,FALSE),25*VLOOKUP(F202,$M$8:$N$13,2,FALSE)*VLOOKUP(G202,$O$8:$P$11,2,FALSE))))))))","v":0}]
[195,null,null,null,null,null,null,null,{"$f":"IF(ISBLANK(D203),0,IF(D203=$S$8,0,IF(H203=$L$9,20*VLOOKUP(F203,$M$8:$N$13,2,FALSE)*VLOOKUP(G203,$O$8:$P$11,2,FALSE),IF(H203=$L$10,15*VLOOKUP(F203,$M$8:$N$13,2,FALSE)*VLOOKUP(G203,$O$8:$P$11,2,FALSE),IF(H203=$L$11,5*VLOOKUP(F203,$M$8:$N$13,2,FALSE)*VLOOKUP(G203,$O$8:$P$11,2,FALSE),IF(H203=$L$8,IF(#REF!>1,25*#REF!*VLOOKUP(F203,$M$8:$N$13,2,FALSE)*VLOOKUP(G203,$O$8:$P$11,2,FALSE),25*VLOOKUP(F203,$M$8:$N$13,2,FALSE)*VLOOKUP(G203,$O$8:$P$11,2,FALSE))))))))","v":0}]
[196,null,null,null,null,null,null,null,{"$f":"IF(ISBLANK(D204),0,IF(D204=$S$8,0,IF(H204=$L$9,20*VLOOKUP(F204,$M$8:$N$13,2,FALSE)*VLOOKUP(G204,$O$8:$P$11,2,FALSE),IF(H204=$L$10,15*VLOOKUP(F204,$M$8:$N$13,2,FALSE)*VLOOKUP(G204,$O$8:$P$11,2,FALSE),IF(H204=$L$11,5*VLOOKUP(F204,$M$8:$N$13,2,FALSE)*VLOOKUP(G204,$O$8:$P$11,2,FALSE),IF(H204=$L$8,IF(#REF!>1,25*#REF!*VLOOKUP(F204,$M$8:$N$13,2,FALSE)*VLOOKUP(G204,$O$8:$P$11,2,FALSE),25*VLOOKUP(F204,$M$8:$N$13,2,FALSE)*VLOOKUP(G204,$O$8:$P$11,2,FALSE))))))))","v":0}]
[197,null,null,null,null,null,null,null,{"$f":"IF(ISBLANK(D205),0,IF(D205=$S$8,0,IF(H205=$L$9,20*VLOOKUP(F205,$M$8:$N$13,2,FALSE)*VLOOKUP(G205,$O$8:$P$11,2,FALSE),IF(H205=$L$10,15*VLOOKUP(F205,$M$8:$N$13,2,FALSE)*VLOOKUP(G205,$O$8:$P$11,2,FALSE),IF(H205=$L$11,5*VLOOKUP(F205,$M$8:$N$13,2,FALSE)*VLOOKUP(G205,$O$8:$P$11,2,FALSE),IF(H205=$L$8,IF(#REF!>1,25*#REF!*VLOOKUP(F205,$M$8:$N$13,2,FALSE)*VLOOKUP(G205,$O$8:$P$11,2,FALSE),25*VLOOKUP(F205,$M$8:$N$13,2,FALSE)*VLOOKUP(G205,$O$8:$P$11,2,FALSE))))))))","v":0}]
[198,null,null,null,null,null,null,null,{"$f":"IF(ISBLANK(D206),0,IF(D206=$S$8,0,IF(H206=$L$9,20*VLOOKUP(F206,$M$8:$N$13,2,FALSE)*VLOOKUP(G206,$O$8:$P$11,2,FALSE),IF(H206=$L$10,15*VLOOKUP(F206,$M$8:$N$13,2,FALSE)*VLOOKUP(G206,$O$8:$P$11,2,FALSE),IF(H206=$L$11,5*VLOOKUP(F206,$M$8:$N$13,2,FALSE)*VLOOKUP(G206,$O$8:$P$11,2,FALSE),IF(H206=$L$8,IF(#REF!>1,25*#REF!*VLOOKUP(F206,$M$8:$N$13,2,FALSE)*VLOOKUP(G206,$O$8:$P$11,2,FALSE),25*VLOOKUP(F206,$M$8:$N$13,2,FALSE)*VLOOKUP(G206,$O$8:$P$11,2,FALSE))))))))","v":0}]
[199,null,null,null,null,null,null,null,{"$f":"IF(ISBLANK(D207),0,IF(D207=$S$8,0,IF(H207=$L$9,20*VLOOKUP(F207,$M$8:$N$13,2,FALSE)*VLOOKUP(G207,$O$8:$P$11,2,FALSE),IF(H207=$L$10,15*VLOOKUP(F207,$M$8:$N$13,2,FALSE)*VLOOKUP(G207,$O$8:$P$11,2,FALSE),IF(H207=$L$11,5*VLOOKUP(F207,$M$8:$N$13,2,FALSE)*VLOOKUP(G207,$O$8:$P$11,2,FALSE),IF(H207=$L$8,IF(#REF!>1,25*#REF!*VLOOKUP(F207,$M$8:$N$13,2,FALSE)*VLOOKUP(G207,$O$8:$P$11,2,FALSE),25*VLOOKUP(F207,$M$8:$N$13,2,FALSE)*VLOOKUP(G207,$O$8:$P$11,2,FALSE))))))))","v":0}]
[200,null,null,null,null,null,null,null,{"$f":"IF(ISBLANK(D208),0,IF(D208=$S$8,0,IF(H208=$L$9,20*VLOOKUP(F208,$M$8:$N$13,2,FALSE)*VLOOKUP(G208,$O$8:$P$11,2,FALSE),IF(H208=$L$10,15*VLOOKUP(F208,$M$8:$N$13,2,FALSE)*VLOOKUP(G208,$O$8:$P$11,2,FALSE),IF(H208=$L$11,5*VLOOKUP(F208,$M$8:$N$13,2,FALSE)*VLOOKUP(G208,$O$8:$P$11,2,FALSE),IF(H208=$L$8,IF(#REF!>1,25*#REF!*VLOOKUP(F208,$M$8:$N$13,2,FALSE)*VLOOKUP(G208,$O$8:$P$11,2,FALSE),25*VLOOKUP(F208,$M$8:$N$13,2,FALSE)*VLOOKUP(G208,$O$8:$P$11,2,FALSE))))))))","v":0}]

{"sheet":"inovation","index":4,"n_rows":10,"n_cols":15,"rows_kept":10,"cut":false,"hidden":false,"merged":[[2,0,2,9],[3,0,3,9]]}
[]
[]
["جدول شماره 3:  ابداع و اختراع",null,null,null,null,null,null,null,null,null,null,null,"داخلی","بله","دارم"]
["توجه: حتما می بایست مستندات مربوط به مرجع ثبت کننده اختراع را ارسال کنید. به اظهارنامه ها امتیازی تعلق نمی گیرد.",null,null,null,null,null,null,null,null,null,null,null,"خارجی","خیر","ندارم"]
["ردیف","عنوان اختراع","نوع ثبت اختراع","تاریخ ثبت اختراع","محل، شماره ثبت و نشر اختراع","استفاده از نتايج اختراع ایران در جهان","آیا اختراع ثبت شده منجر به تجاری سازی شده است؟","نام همکاران در ثبت اختراع","خلاصه یا چكيده ای از اختراع ثبت شده به زبان فارسی","مستندات"]
[1]
[2]
[3]
[4]
[5]

{"sheet":"book","index":5,"n_rows":32,"n_cols":14,"rows_kept":32,"cut":false,"hidden":false,"merged":[[3,0,3,9]]}
[]
[]
[null,null,null,null,null,null,null,"جدول شماره 4: تالیف و ترجمه کتاب"]
["توجه:  در صورت لزوم با شما از طرف دبیرخانه جشنواره برای ارسال یک نسخه از کتاب تماس گرفته خواهد شد.",null,null,null,null,null,null,null,null,null,null,"ترجمه کل کتاب به تنهایی","دارد و ارسال میشود","تالیف"]
["ردیف","نام كتاب","تالیف است  یا ترجمه ؟","سال انتشار","ناشر","شابک یا فیپا ","تعداد نویسندگان","جایگاه داوطلب در میان نویسندگان","آیا اجازه ناشر یا نویسنده اصلی برای ترجمه کتاب اخذ شده است ؟","سایر توضیحات در صورت نیاز","ترجمه بخشی از کتاب","ندارد","ندارد","ترجمه"]
[1,null,null,null,null,null,null,null,null,null,"سایر موارد",null,null,"گردآوری"]
[2]
[3]
[4]
[5]
[6]
[7]
[8]
[9]
[10]
[11]
[12]
[13]
[14]
[15]
[16]
[17]
[18]
[19]
[20]
[21]
[22]
[23]
[24]
[25]
[26]
[27]

{"sheet":"proposal","index":6,"n_rows":104,"n_cols":16,"rows_kept":104,"cut":false,"hidden":false,"merged":[[1,0,1,9],[2,0,2,9]]}
[]
["جدول شماره 5: طرح های پژوهشی خاتمه یافته"]
["توجه: طرح تحقیقاتی می بایست در 5 سال گذشته به پایان رسیده باشد. منظور از مستندات، تصویر قرارداد یا گواهی طرح تحقیقاتی می باشد.",null,null,null,null,null,null,null,null,null,null,null,null,"مجری","دارم","دانشگاهی"]
["ردیف","عنوان طرح","محل تصویب","محل اجرا","نوع مشارکت","نوع طرح (دانشگاهی، ملی، بین المللی)","مبلغ قرارداد","تاریخ شروع","تاریخ پایان","مستندات",null,null,null,"همکار","ندارم","ملی "]
[1,null,null,null,null,null,null,null,null,null,null,null,null,null,null,"بین المللی"]
[2,null,null,null,null,null,null,null,null,null,null,null,null,null,null,"فناورانه"]
[3]
[4]
[5]
[6]
[7]
[8]
[9]
[10]
[11]
[12]
[13]
[14]
[15]
[16]
[17]
[18]
[19]
[20]
[21]
[22]
[23]
[24]
[25]
[26]
[27]
[28]
[29]
[30]
[31]
[32]
[33]
[34]
[35]
[36]
[37]
[38]
[39]
[40]
[41]
[42]
[43]
[44]
[45]
[46]
[47]
[48]
[49]
[50]
[51]
[52]
[53]
[54]
[55]
[56]
[57]
[58]
[59]
[60]
[61]
[62]
[63]
[64]
[65]
[66]
[67]
[68]
[69]
[70]
[71]
[72]
[73]
[74]
[75]
[76]
[77]
[78]
[79]
[80]
[81]
[82]
[83]
[84]
[85]
[86]
[87]
[88]
[89]
[90]
[91]
[92]
[93]
[94]
[95]
[96]
[97]
[98]
[99]
[100]

{"sheet":"conference","index":7,"n_rows":104,"n_cols":13,"rows_kept":104,"cut":false,"hidden":false,"merged":[[2,0,2,7],[1,2,1,7],[1,0,1,1]]}
[]
[null,null,"جدول شماره 6: شرکت در همایش",null,null,null,null,null,null,null,"پوستر","دانشگاهی","دارم"]
["توجه: منظور از مستندات، پیوست تصویر صفحه ای ازکتابچه خلاصه مقالات همایش و یا گواهی (Certificate) مربوطه است. ",null,null,null,null,null,null,null,null,null,"سخنرانی","ملی","ندارم"]
["رديف","عنوان مقاله در همایش","روش ارائه","عنوان همایش","سطح همایش","زمان برگزاری","مکان برگزاری","مستندات",null,null,null,"بین المللی داخلی"]
[1,null,null,null,null,null,null,null,null,null,null,"بین المللی خارجی"]
[2]
[3]
[4]
[5]
[6]
[7]
[8]
[9]
[10]
[11]
[12]
[13]
[14]
[15]
[16]
[17]
[18]
[19]
[20]
[21]
[22]
[23]
[24]
[25]
[26]
[27]
[28]
[29]
[30]
[31]
[32]
[33]
[34]
[35]
[36]
[37]
[38]
[39]
[40]
[41]
[42]
[43]
[44]
[45]
[46]
[47]
[48]
[49]
[50]
[51]
[52]
[53]
[54]
[55]
[56]
[57]
[58]
[59]
[60]
[61]
[62]
[63]
[64]
[65]
[66]
[67]
[68]
[69]
[70]
[71]
[72]
[73]
[74]
[75]
[76]
[77]
[78]
[79]
[80]
[81]
[82]
[83]
[84]
[85]
[86]
[87]
[88]
[89]
[90]
[91]
[92]
[93]
[94]
[95]
[96]
[97]
[98]
[99]
[100]

{"sheet":"responsibility","index":8,"n_rows":18,"n_cols":11,"rows_kept":18,"cut":false,"hidden":false,"merged":[[7,0,7,6],[6,0,6,6]]}
[]
[]
[]
[]
[]
[]
["مسئولیت در همایش ها و سمینار های علمی"]
["توجه: منظور از مستندات، ابلاغ یا گواهی معتبر است",null,null,null,null,null,null,null,null,"دانشگاهی","دبیر علمی"]
["رديف","عنوان همایش","سطح همایش","نوع مسئولیت","سال برگزاری","مکان برگزاری","مستندات",null,null,"ملی ","دبیر اجرایی"]
[1,null,null,null,null,null,null,null,null,"بین المللی","کمیته علمی"]
[2,null,null,null,null,null,null,null,null,null,"کمیته اجرایی"]
[3]
[4]
[5]
[6]
[7]
[8]
[9]

{"sheet":"journals","index":9,"n_rows":17,"n_cols":9,"rows_kept":17,"cut":false,"hidden":false,"merged":[[5,0,5,4],[6,0,6,4]]}
[]
[]
[]
[]
[]
["مسئولیت در مجلات علمی معتبر"]
[null,null,null,null,null,null,null,"علمی پژوهشی","مدیر مسئول"]
["رديف","عنوان مجله","مسئولیت","محل نمایه","لینک نشان دهنده مسئولیت در سایت مجله",null,null,"ISC","سر دبیر"]
[1,null,null,null,null,null,null,"Pubmed","دبیر تخصصی"]
[2,null,null,null,null,null,null,"Scopus","هیات تحریریه"]
[3,null,null,null,null,null,null,"ISI","مدیر اجرایی"]
[4]
[5]
[6]
[7]
[8]
[9]

{"sheet":"supervisor","index":10,"n_rows":23,"n_cols":9,"rows_kept":23,"cut":false,"hidden":false,"merged":[[4,0,4,4]]}
[]
[]
[]
[]
["مسئولیت در پایان نامه های ارشد و دکتری",null,null,null,null,null,null,null,"استاد راهنما - کارشناسی ارشد"]
["رديف","نام دانشجو","عنوان پایان نامه","مسئولیت و مقطع","سال تصویب پایان نامه",null,null,null,"استاد مشاور - کارشناسی ارشد"]
[1,null,null,null,null,null,null,null,"ارستاد راهنما  - دکتری"]
[2,null,null,null,null,null,null,null,"استاد مشاور - دکتری"]
[3]
[4]
[5]
[6]
[7]
[8]
[9]
[10]
[11]
[12]
[13]
[14]
[15]
[16]
[17]

{"sheet":"karafarini","index":11,"n_rows":24,"n_cols":9,"rows_kept":24,"cut":false,"hidden":false,"merged":[[5,0,5,4]]}
[]
[]
[]
[]
[]
["فعالیتهاي مرتبط با فناوري و کار آفرینی"]
["رديف","نام شرکت/محصول فناورانه","شماره ثبت","مسئولیت","تصویر گواهی",null,null,null,"موسس یا سهام دار شرکت دانش بنیان"]
[1,null,null,null,null,null,null,null,"تولید محصول فناورانه"]
[2,null,null,null,null,null,null,null,"ایده برگزیده استارت آپ"]
[3]
[4]
[5]
[6]
[7]
[8]
[9]
[10]
[11]
[12]
[13]
[14]
[15]
[16]
[17]

{"sheet":"doc","index":12,"n_rows":204,"n_cols":6,"rows_kept":204,"cut":false,"hidden":false,"merged":[[3,0,3,3],[3,5,3,10]]}
[]
[]
[]
["ارسال مستندات: لطفا با توجه به راهنمای موجود در صفحه هر یک ستونهای شیت را به مستندات یک موضوع از فعالیت های خود اختصاص داده و مستندات را پیوست نمایید. توجه بفرمائید که مرحله ی 3 توسط ابزارهای موجود در Text و افزونه ی Object صورت می گیرد و ممکن است شکل آیکون آن در ورژن های مختلف متفاوت باشد.",null,null,null,null,"لطفا تمام مستندات را مطابق با راهنمای رو به رو در سلول های زیر وارد کنید و در سلول بالای هر مستند توضیح  دو کلمه ای بنویسید"]
[null,null,null,null,1]
[null,null,null,null,2]
[null,null,null,null,3]
[null,null,null,null,4]
[null,null,null,null,5]
[null,null,null,null,6]
[null,null,null,null,7]
[null,null,null,null,8]
[null,null,null,null,9]
[null,null,null,null,10]
[null,null,null,null,11]
[null,null,null,null,12]
[null,null,null,null,13]
[null,null,null,null,14]
[null,null,null,null,15]
[null,null,null,null,16]
[null,null,null,null,17]
[null,null,null,null,18]
[null,null,null,null,19]
[null,null,null,null,20]
[null,null,null,null,21]
[null,null,null,null,22]
[null,null,null,null,23]
[null,null,null,null,24]
[null,null,null,null,25]
[null,null,null,null,26]
[null,null,null,null,27]
[null,null,null,null,28]
[null,null,null,null,29]
[null,null,null,null,30]
[null,null,null,null,31]
[null,null,null,null,32]
[null,null,null,null,33]
[null,null,null,null,34]
[null,null,null,null,35]
[null,null,null,null,36]
[null,null,null,null,37]
[null,null,null,null,38]
[null,null,null,null,39]
[null,null,null,null,40]
[null,null,null,null,41]
[null,null,null,null,42]
[null,null,null,null,43]
[null,null,null,null,44]
[null,null,null,null,45]
[null,null,null,null,46]
[null,null,null,null,47]
[null,null,null,null,48]
[null,null,null,null,49]
[null,null,null,null,50]
[null,null,null,null,51]
[null,null,null,null,52]
[null,null,null,null,53]
[null,null,null,null,54]
[null,null,null,null,55]
[null,null,null,null,56]
[null,null,null,null,57]
[null,null,null,null,58]
[null,null,null,null,59]
[null,null,null,null,60]
[null,null,null,null,61]
[null,null,null,null,62]
[null,null,null,null,63]
[null,null,null,null,64]
[null,null,null,null,65]
[null,null,null,null,66]
[null,null,null,null,67]
[null,null,null,null,68]
[null,null,null,null,69]
[null,null,null,null,70]
[null,null,null,null,71]
[null,null,null,null,72]
[null,null,null,null,73]
[null,null,null,null,74]
[null,null,null,null,75]
[null,null,null,null,76]
[null,null,null,null,77]
[null,null,null,null,78]
[null,null,null,null,79]
[null,null,null,null,80]
[null,null,null,null,81]
[null,null,null,null,82]
[null,null,null,null,83]
[null,null,null,null,84]
[null,null,null,null,85]
[null,null,null,null,86]
[null,null,null,null,87]
[null,null,null,null,88]
[null,null,null,null,89]
[null,null,null,null,90]
[null,null,null,null,91]
[null,null,null,null,92]
[null,null,null,null,93]
[null,null,null,null,94]
[null,null,null,null,95]
[null,null,null,null,96]
[null,null,null,null,97]
[null,null,null,null,98]
[null,null,null,null,99]
[null,null,null,null,100]
[null,null,null,null,101]
[null,null,null,null,102]
[null,null,null,null,103]
[null,null,null,null,104]
[null,null,null,null,105]
[null,null,null,null,106]
[null,null,null,null,107]
[null,null,null,null,108]
[null,null,null,null,109]
[null,null,null,null,110]
[null,null,null,null,111]
[null,null,null,null,112]
[null,null,null,null,113]
[null,null,null,null,114]
[null,null,null,null,115]
[null,null,null,null,116]
[null,null,null,null,117]
[null,null,null,null,118]
[null,null,null,null,119]
[null,null,null,null,120]
[null,null,null,null,121]
[null,null,null,null,122]
[null,null,null,null,123]
[null,null,null,null,124]
[null,null,null,null,125]
[null,null,null,null,126]
[null,null,null,null,127]
[null,null,null,null,128]
[null,null,null,null,129]
[null,null,null,null,130]
[null,null,null,null,131]
[null,null,null,null,132]
[null,null,null,null,133]
[null,null,null,null,134]
[null,null,null,null,135]
[null,null,null,null,136]
[null,null,null,null,137]
[null,null,null,null,138]
[null,null,null,null,139]
[null,null,null,null,140]
[null,null,null,null,141]
[null,null,null,null,142]
[null,null,null,null,143]
[null,null,null,null,144]
[null,null,null,null,145]
[null,null,null,null,146]
[null,null,null,null,147]
[null,null,null,null,148]
[null,null,null,null,149]
[null,null,null,null,150]
[null,null,null,null,151]
[null,null,null,null,152]
[null,null,null,null,153]
[null,null,null,null,154]
[null,null,null,null,155]
[null,null,null,null,156]
[null,null,null,null,157]
[null,null,null,null,158]
[null,null,null,null,159]
[null,null,null,null,160]
[null,null,null,null,161]
[null,null,null,null,162]
[null,null,null,null,163]
[null,null,null,null,164]
[null,null,null,null,165]
[null,null,null,null,166]
[null,null,null,null,167]
[null,null,null,null,168]
[null,null,null,null,169]
[null,null,null,null,170]
[null,null,null,null,171]
[null,null,null,null,172]
[null,null,null,null,173]
[null,null,null,null,174]
[null,null,null,null,175]
[null,null,null,null,176]
[null,null,null,null,177]
[null,null,null,null,178]
[null,null,null,null,179]
[null,null,null,null,180]
[null,null,null,null,181]
[null,null,null,null,182]
[null,null,null,null,183]
[null,null,null,null,184]
[null,null,null,null,185]
[null,null,null,null,186]
[null,null,null,null,187]
[null,null,null,null,188]
[null,null,null,null,189]
[null,null,null,null,190]
[null,null,null,null,191]
[null,null,null,null,192]
[null,null,null,null,193]
[null,null,null,null,194]
[null,null,null,null,195]
[null,null,null,null,196]
[null,null,null,null,197]
[null,null,null,null,198]
[null,null,null,null,199]
[null,null,null,null,200]

{"sheet":"maghale","index":13,"n_rows":83,"n_cols":9,"rows_kept":83,"cut":false,"hidden":false,"merged":[]}
[null,"نمایه","نوع","نوع و نمایه","جایگاه","کل","جمع"]
["مقاله 1",{"$f":"IF(Article!H9=Article!$L$8,7,IF(Article!H9=Article!$L$9,5,IF(Article!H9=Article!$L$10,3,IF(Article!H9=Article!$L$11,3,IF(Article!H9=Article!$L$12,2)))))","v":false},{"$f":"IF(Article!F9=Article!$M$8,1,IF(Article!F9=Article!$M$9,0.5,IF(Article!F9=Article!$M$10,0.33,IF(Article!F9=Article!$M$11,0.25))))","v":false},{"$f":"B2*C2","v":0},{"$f":"IF(Article!G9=Article!$O$8,1,IF(Article!G9=Article!$O$9,0.8,IF(Article!G9=Article!$O$10,0.75,IF(Article!G9=Article!$O$11,0.65,IF(Article!G9=Article!$O$12,0.55,IF(Article!G9=Article!$O$12,0.45))))))","v":false},null,{"$f":"D2*E2","v":0},null,{"$f":"IF(G83<=35,G83,IF(G83>35,35))","v":0}]
["مقاله 2",{"$f":"IF(Article!H10=Article!$L$8,7,IF(Article!H10=Article!$L$9,5,IF(Article!H10=Article!$L$10,3,IF(Article!H10=Article!$L$11,3,IF(Article!H10=Article!$L$12,2)))))","v":false},{"$f":"IF(Article!F10=Article!$M$8,1,IF(Article!F10=Article!$M$9,0.5,IF(Article!F10=Article!$M$10,0.33,IF(Article!F10=Article!$M$11,0.25))))","v":false},{"$f":"B3*C3","v":0},{"$f":"IF(Article!G10=Article!$O$8,1,IF(Article!G10=Article!$O$9,0.8,IF(Article!G10=Article!$O$10,0.75,IF(Article!G10=Article!$O$11,0.65,IF(Article!G10=Article!$O$12,0.55,IF(Article!G10=Article!$O$12,0.45))))))","v":false},null,{"$f":"D3*E3","v":0}]
["مقاله 3",{"$f":"IF(Article!H11=Article!$L$8,7,IF(Article!H11=Article!$L$9,5,IF(Article!H11=Article!$L$10,3,IF(Article!H11=Article!$L$11,3,IF(Article!H11=Article!$L$12,2)))))","v":false},{"$f":"IF(Article!F11=Article!$M$8,1,IF(Article!F11=Article!$M$9,0.5,IF(Article!F11=Article!$M$10,0.33,IF(Article!F11=Article!$M$11,0.25))))","v":false},0,{"$f":"IF(Article!G11=Article!$O$8,1,IF(Article!G11=Article!$O$9,0.8,IF(Article!G11=Article!$O$10,0.75,IF(Article!G11=Article!$O$11,0.65,IF(Article!G11=Article!$O$12,0.55,IF(Article!G11=Article!$O$12,0.45))))))","v":false},null,0]
["مقاله 4",{"$f":"IF(Article!H12=Article!$L$8,7,IF(Article!H12=Article!$L$9,5,IF(Article!H12=Article!$L$10,3,IF(Article!H12=Article!$L$11,3,IF(Article!H12=Article!$L$12,2)))))","v":false},{"$f":"IF(Article!F12=Article!$M$8,1,IF(Article!F12=Article!$M$9,0.5,IF(Article!F12=Article!$M$10,0.33,IF(Article!F12=Article!$M$11,0.25))))","v":false},0,{"$f":"IF(Article!G12=Article!$O$8,1,IF(Article!G12=Article!$O$9,0.8,IF(Article!G12=Article!$O$10,0.75,IF(Article!G12=Article!$O$11,0.65,IF(Article!G12=Article!$O$12,0.55,IF(Article!G12=Article!$O$12,0.45))))))","v":false},null,0]
["مقاله 5",{"$f":"IF(Article!H13=Article!$L$8,7,IF(Article!H13=Article!$L$9,5,IF(Article!H13=Article!$L$10,3,IF(Article!H13=Article!$L$11,3,IF(Article!H13=Article!$L$12,2)))))","v":false},{"$f":"IF(Article!F13=Article!$M$8,1,IF(Article!F13=Article!$M$9,0.5,IF(Article!F13=Article!$M$10,0.33,IF(Article!F13=Article!$M$11,0.25))))","v":false},0,{"$f":"IF(Article!G13=Article!$O$8,1,IF(Article!G13=Article!$O$9,0.8,IF(Article!G13=Article!$O$10,0.75,IF(Article!G13=Article!$O$11,0.65,IF(Article!G13=Article!$O$12,0.55,IF(Article!G13=Article!$O$12,0.45))))))","v":false},null,0]
["مقاله 6",{"$f":"IF(Article!H14=Article!$L$8,7,IF(Article!H14=Article!$L$9,5,IF(Article!H14=Article!$L$10,3,IF(Article!H14=Article!$L$11,3,IF(Article!H14=Article!$L$12,2)))))","v":false},{"$f":"IF(Article!F14=Article!$M$8,1,IF(Article!F14=Article!$M$9,0.5,IF(Article!F14=Article!$M$10,0.33,IF(Article!F14=Article!$M$11,0.25))))","v":false},0,{"$f":"IF(Article!G14=Article!$O$8,1,IF(Article!G14=Article!$O$9,0.8,IF(Article!G14=Article!$O$10,0.75,IF(Article!G14=Article!$O$11,0.65,IF(Article!G14=Article!$O$12,0.55,IF(Article!G14=Article!$O$12,0.45))))))","v":false},null,0]
["مقاله 7",{"$f":"IF(Article!H15=Article!$L$8,7,IF(Article!H15=Article!$L$9,5,IF(Article!H15=Article!$L$10,3,IF(Article!H15=Article!$L$11,3,IF(Article!H15=Article!$L$12,2)))))","v":false},{"$f":"IF(Article!F15=Article!$M$8,1,IF(Article!F15=Article!$M$9,0.5,IF(Article!F15=Article!$M$10,0.33,IF(Article!F15=Article!$M$11,0.25))))","v":false},0,{"$f":"IF(Article!G15=Article!$O$8,1,IF(Article!G15=Article!$O$9,0.8,IF(Article!G15=Article!$O$10,0.75,IF(Article!G15=Article!$O$11,0.65,IF(Article!G15=Article!$O$12,0.55,IF(Article!G15=Article!$O$12,0.45))))))","v":false},null,0]
["مقاله 8",{"$f":"IF(Article!H16=Article!$L$8,7,IF(Article!H16=Article!$L$9,5,IF(Article!H16=Article!$L$10,3,IF(Article!H16=Article!$L$11,3,IF(Article!H16=Article!$L$12,2)))))","v":false},{"$f":"IF(Article!F16=Article!$M$8,1,IF(Article!F16=Article!$M$9,0.5,IF(Article!F16=Article!$M$10,0.33,IF(Article!F16=Article!$M$11,0.25))))","v":false},0,{"$f":"IF(Article!G16=Article!$O$8,1,IF(Article!G16=Article!$O$9,0.8,IF(Article!G16=Article!$O$10,0.75,IF(Article!G16=Article!$O$11,0.65,IF(Article!G16=Article!$O$12,0.55,IF(Article!G16=Article!$O$12,0.45))))))","v":false},null,0]
["مقاله 9",{"$f":"IF(Article!H17=Article!$L$8,7,IF(Article!H17=Article!$L$9,5,IF(Article!H17=Article!$L$10,3,IF(Article!H17=Article!$L$11,3,IF(Article!H17=Article!$L$12,2)))))","v":false},{"$f":"IF(Article!F17=Article!$M$8,1,IF(Article!F17=Article!$M$9,0.5,IF(Article!F17=Article!$M$10,0.33,IF(Article!F17=Article!$M$11,0.25))))","v":false},0,{"$f":"IF(Article!G17=Article!$O$8,1,IF(Article!G17=Article!$O$9,0.8,IF(Article!G17=Article!$O$10,0.75,IF(Article!G17=Article!$O$11,0.65,IF(Article!G17=Article!$O$12,0.55,IF(Article!G17=Article!$O$12,0.45))))))","v":false},null,0]
["مقاله 10",{"$f":"IF(Article!H18=Article!$L$8,7,IF(Article!H18=Article!$L$9,5,IF(Article!H18=Article!$L$10,3,IF(Article!H18=Article!$L$11,3,IF(Article!H18=Article!$L$12,2)))))","v":false},{"$f":"IF(Article!F18=Article!$M$8,1,IF(Article!F18=Article!$M$9,0.5,IF(Article!F18=Article!$M$10,0.33,IF(Article!F18=Article!$M$11,0.25))))","v":false},0,{"$f":"IF(Article!G18=Article!$O$8,1,IF(Article!G18=Article!$O$9,0.8,IF(Article!G18=Article!$O$10,0.75,IF(Article!G18=Article!$O$11,0.65,IF(Article!G18=Article!$O$12,0.55,IF(Article!G18=Article!$O$12,0.45))))))","v":false},null,0]
["مقاله 11",{"$f":"IF(Article!H19=Article!$L$8,7,IF(Article!H19=Article!$L$9,5,IF(Article!H19=Article!$L$10,3,IF(Article!H19=Article!$L$11,3,IF(Article!H19=Article!$L$12,2)))))","v":false},{"$f":"IF(Article!F19=Article!$M$8,1,IF(Article!F19=Article!$M$9,0.5,IF(Article!F19=Article!$M$10,0.33,IF(Article!F19=Article!$M$11,0.25))))","v":false},0,{"$f":"IF(Article!G19=Article!$O$8,1,IF(Article!G19=Article!$O$9,0.8,IF(Article!G19=Article!$O$10,0.75,IF(Article!G19=Article!$O$11,0.65,IF(Article!G19=Article!$O$12,0.55,IF(Article!G19=Article!$O$12,0.45))))))","v":false},null,0]
["مقاله 12",{"$f":"IF(Article!H20=Article!$L$8,7,IF(Article!H20=Article!$L$9,5,IF(Article!H20=Article!$L$10,3,IF(Article!H20=Article!$L$11,3,IF(Article!H20=Article!$L$12,2)))))","v":false},{"$f":"IF(Article!F20=Article!$M$8,1,IF(Article!F20=Article!$M$9,0.5,IF(Article!F20=Article!$M$10,0.33,IF(Article!F20=Article!$M$11,0.25))))","v":false},0,{"$f":"IF(Article!G20=Article!$O$8,1,IF(Article!G20=Article!$O$9,0.8,IF(Article!G20=Article!$O$10,0.75,IF(Article!G20=Article!$O$11,0.65,IF(Article!G20=Article!$O$12,0.55,IF(Article!G20=Article!$O$12,0.45))))))","v":false},null,0]
["مقاله 13",{"$f":"IF(Article!H21=Article!$L$8,7,IF(Article!H21=Article!$L$9,5,IF(Article!H21=Article!$L$10,3,IF(Article!H21=Article!$L$11,3,IF(Article!H21=Article!$L$12,2)))))","v":false},{"$f":"IF(Article!F21=Article!$M$8,1,IF(Article!F21=Article!$M$9,0.5,IF(Article!F21=Article!$M$10,0.33,IF(Article!F21=Article!$M$11,0.25))))","v":false},0,{"$f":"IF(Article!G21=Article!$O$8,1,IF(Article!G21=Article!$O$9,0.8,IF(Article!G21=Article!$O$10,0.75,IF(Article!G21=Article!$O$11,0.65,IF(Article!G21=Article!$O$12,0.55,IF(Article!G21=Article!$O$12,0.45))))))","v":false},null,0]
["مقاله 14",{"$f":"IF(Article!H22=Article!$L$8,7,IF(Article!H22=Article!$L$9,5,IF(Article!H22=Article!$L$10,3,IF(Article!H22=Article!$L$11,3,IF(Article!H22=Article!$L$12,2)))))","v":false},{"$f":"IF(Article!F22=Article!$M$8,1,IF(Article!F22=Article!$M$9,0.5,IF(Article!F22=Article!$M$10,0.33,IF(Article!F22=Article!$M$11,0.25))))","v":false},0,{"$f":"IF(Article!G22=Article!$O$8,1,IF(Article!G22=Article!$O$9,0.8,IF(Article!G22=Article!$O$10,0.75,IF(Article!G22=Article!$O$11,0.65,IF(Article!G22=Article!$O$12,0.55,IF(Article!G22=Article!$O$12,0.45))))))","v":false},null,0]
["مقاله 15",{"$f":"IF(Article!H23=Article!$L$8,7,IF(Article!H23=Article!$L$9,5,IF(Article!H23=Article!$L$10,3,IF(Article!H23=Article!$L$11,3,IF(Article!H23=Article!$L$12,2)))))","v":false},{"$f":"IF(Article!F23=Article!$M$8,1,IF(Article!F23=Article!$M$9,0.5,IF(Article!F23=Article!$M$10,0.33,IF(Article!F23=Article!$M$11,0.25))))","v":false},0,{"$f":"IF(Article!G23=Article!$O$8,1,IF(Article!G23=Article!$O$9,0.8,IF(Article!G23=Article!$O$10,0.75,IF(Article!G23=Article!$O$11,0.65,IF(Article!G23=Article!$O$12,0.55,IF(Article!G23=Article!$O$12,0.45))))))","v":false},null,0]
["مقاله 16",{"$f":"IF(Article!H24=Article!$L$8,7,IF(Article!H24=Article!$L$9,5,IF(Article!H24=Article!$L$10,3,IF(Article!H24=Article!$L$11,3,IF(Article!H24=Article!$L$12,2)))))","v":false},{"$f":"IF(Article!F24=Article!$M$8,1,IF(Article!F24=Article!$M$9,0.5,IF(Article!F24=Article!$M$10,0.33,IF(Article!F24=Article!$M$11,0.25))))","v":false},0,{"$f":"IF(Article!G24=Article!$O$8,1,IF(Article!G24=Article!$O$9,0.8,IF(Article!G24=Article!$O$10,0.75,IF(Article!G24=Article!$O$11,0.65,IF(Article!G24=Article!$O$12,0.55,IF(Article!G24=Article!$O$12,0.45))))))","v":false},null,0]
["مقاله 17",{"$f":"IF(Article!H25=Article!$L$8,7,IF(Article!H25=Article!$L$9,5,IF(Article!H25=Article!$L$10,3,IF(Article!H25=Article!$L$11,3,IF(Article!H25=Article!$L$12,2)))))","v":false},{"$f":"IF(Article!F25=Article!$M$8,1,IF(Article!F25=Article!$M$9,0.5,IF(Article!F25=Article!$M$10,0.33,IF(Article!F25=Article!$M$11,0.25))))","v":false},0,{"$f":"IF(Article!G25=Article!$O$8,1,IF(Article!G25=Article!$O$9,0.8,IF(Article!G25=Article!$O$10,0.75,IF(Article!G25=Article!$O$11,0.65,IF(Article!G25=Article!$O$12,0.55,IF(Article!G25=Article!$O$12,0.45))))))","v":false},null,0]
["مقاله 18",{"$f":"IF(Article!H26=Article!$L$8,7,IF(Article!H26=Article!$L$9,5,IF(Article!H26=Article!$L$10,3,IF(Article!H26=Article!$L$11,3,IF(Article!H26=Article!$L$12,2)))))","v":false},{"$f":"IF(Article!F26=Article!$M$8,1,IF(Article!F26=Article!$M$9,0.5,IF(Article!F26=Article!$M$10,0.33,IF(Article!F26=Article!$M$11,0.25))))","v":false},0,{"$f":"IF(Article!G26=Article!$O$8,1,IF(Article!G26=Article!$O$9,0.8,IF(Article!G26=Article!$O$10,0.75,IF(Article!G26=Article!$O$11,0.65,IF(Article!G26=Article!$O$12,0.55,IF(Article!G26=Article!$O$12,0.45))))))","v":false},null,0]
["مقاله 19",{"$f":"IF(Article!H27=Article!$L$8,7,IF(Article!H27=Article!$L$9,5,IF(Article!H27=Article!$L$10,3,IF(Article!H27=Article!$L$11,3,IF(Article!H27=Article!$L$12,2)))))","v":false},{"$f":"IF(Article!F27=Article!$M$8,1,IF(Article!F27=Article!$M$9,0.5,IF(Article!F27=Article!$M$10,0.33,IF(Article!F27=Article!$M$11,0.25))))","v":false},0,{"$f":"IF(Article!G27=Article!$O$8,1,IF(Article!G27=Article!$O$9,0.8,IF(Article!G27=Article!$O$10,0.75,IF(Article!G27=Article!$O$11,0.65,IF(Article!G27=Article!$O$12,0.55,IF(Article!G27=Article!$O$12,0.45))))))","v":false},null,0]
["مقاله 20",{"$f":"IF(Article!H28=Article!$L$8,7,IF(Article!H28=Article!$L$9,5,IF(Article!H28=Article!$L$10,3,IF(Article!H28=Article!$L$11,3,IF(Article!H28=Article!$L$12,2)))))","v":false},{"$f":"IF(Article!F28=Article!$M$8,1,IF(Article!F28=Article!$M$9,0.5,IF(Article!F28=Article!$M$10,0.33,IF(Article!F28=Article!$M$11,0.25))))","v":false},0,{"$f":"IF(Article!G28=Article!$O$8,1,IF(Article!G28=Article!$O$9,0.8,IF(Article!G28=Article!$O$10,0.75,IF(Article!G28=Article!$O$11,0.65,IF(Article!G28=Article!$O$12,0.55,IF(Article!G28=Article!$O$12,0.45))))))","v":false},null,0]
["مقاله 21",{"$f":"IF(Article!H29=Article!$L$8,7,IF(Article!H29=Article!$L$9,5,IF(Article!H29=Article!$L$10,3,IF(Article!H29=Article!$L$11,3,IF(Article!H29=Article!$L$12,2)))))","v":false},{"$f":"IF(Article!F29=Article!$M$8,1,IF(Article!F29=Article!$M$9,0.5,IF(Article!F29=Article!$M$10,0.33,IF(Article!F29=Article!$M$11,0.25))))","v":false},0,{"$f":"IF(Article!G29=Article!$O$8,1,IF(Article!G29=Article!$O$9,0.8,IF(Article!G29=Article!$O$10,0.75,IF(Article!G29=Article!$O$11,0.65,IF(Article!G29=Article!$O$12,0.55,IF(Article!G29=Article!$O$12,0.45))))))","v":false},null,0]
["مقاله 22",{"$f":"IF(Article!H30=Article!$L$8,7,IF(Article!H30=Article!$L$9,5,IF(Article!H30=Article!$L$10,3,IF(Article!H30=Article!$L$11,3,IF(Article!H30=Article!$L$12,2)))))","v":false},{"$f":"IF(Article!F30=Article!$M$8,1,IF(Article!F30=Article!$M$9,0.5,IF(Article!F30=Article!$M$10,0.33,IF(Article!F30=Article!$M$11,0.25))))","v":false},0,{"$f":"IF(Article!G30=Article!$O$8,1,IF(Article!G30=Article!$O$9,0.8,IF(Article!G30=Article!$O$10,0.75,IF(Article!G30=Article!$O$11,0.65,IF(Article!G30=Article!$O$12,0.55,IF(Article!G30=Article!$O$12,0.45))))))","v":false},null,0]
["مقاله 23",{"$f":"IF(Article!H31=Article!$L$8,7,IF(Article!H31=Article!$L$9,5,IF(Article!H31=Article!$L$10,3,IF(Article!H31=Article!$L$11,3,IF(Article!H31=Article!$L$12,2)))))","v":false},{"$f":"IF(Article!F31=Article!$M$8,1,IF(Article!F31=Article!$M$9,0.5,IF(Article!F31=Article!$M$10,0.33,IF(Article!F31=Article!$M$11,0.25))))","v":false},0,{"$f":"IF(Article!G31=Article!$O$8,1,IF(Article!G31=Article!$O$9,0.8,IF(Article!G31=Article!$O$10,0.75,IF(Article!G31=Article!$O$11,0.65,IF(Article!G31=Article!$O$12,0.55,IF(Article!G31=Article!$O$12,0.45))))))","v":false},null,0]
["مقاله 24",{"$f":"IF(Article!H32=Article!$L$8,7,IF(Article!H32=Article!$L$9,5,IF(Article!H32=Article!$L$10,3,IF(Article!H32=Article!$L$11,3,IF(Article!H32=Article!$L$12,2)))))","v":false},{"$f":"IF(Article!F32=Article!$M$8,1,IF(Article!F32=Article!$M$9,0.5,IF(Article!F32=Article!$M$10,0.33,IF(Article!F32=Article!$M$11,0.25))))","v":false},0,{"$f":"IF(Article!G32=Article!$O$8,1,IF(Article!G32=Article!$O$9,0.8,IF(Article!G32=Article!$O$10,0.75,IF(Article!G32=Article!$O$11,0.65,IF(Article!G32=Article!$O$12,0.55,IF(Article!G32=Article!$O$12,0.45))))))","v":false},null,0]
["مقاله 25",{"$f":"IF(Article!H33=Article!$L$8,7,IF(Article!H33=Article!$L$9,5,IF(Article!H33=Article!$L$10,3,IF(Article!H33=Article!$L$11,3,IF(Article!H33=Article!$L$12,2)))))","v":false},{"$f":"IF(Article!F33=Article!$M$8,1,IF(Article!F33=Article!$M$9,0.5,IF(Article!F33=Article!$M$10,0.33,IF(Article!F33=Article!$M$11,0.25))))","v":false},0,{"$f":"IF(Article!G33=Article!$O$8,1,IF(Article!G33=Article!$O$9,0.8,IF(Article!G33=Article!$O$10,0.75,IF(Article!G33=Article!$O$11,0.65,IF(Article!G33=Article!$O$12,0.55,IF(Article!G33=Article!$O$12,0.45))))))","v":false},null,0]
["مقاله 26",{"$f":"IF(Article!H34=Article!$L$8,7,IF(Article!H34=Article!$L$9,5,IF(Article!H34=Article!$L$10,3,IF(Article!H34=Article!$L$11,3,IF(Article!H34=Article!$L$12,2)))))","v":false},{"$f":"IF(Article!F34=Article!$M$8,1,IF(Article!F34=Article!$M$9,0.5,IF(Article!F34=Article!$M$10,0.33,IF(Article!F34=Article!$M$11,0.25))))","v":false},0,{"$f":"IF(Article!G34=Article!$O$8,1,IF(Article!G34=Article!$O$9,0.8,IF(Article!G34=Article!$O$10,0.75,IF(Article!G34=Article!$O$11,0.65,IF(Article!G34=Article!$O$12,0.55,IF(Article!G34=Article!$O$12,0.45))))))","v":false},null,0]
["مقاله 27",{"$f":"IF(Article!H35=Article!$L$8,7,IF(Article!H35=Article!$L$9,5,IF(Article!H35=Article!$L$10,3,IF(Article!H35=Article!$L$11,3,IF(Article!H35=Article!$L$12,2)))))","v":false},{"$f":"IF(Article!F35=Article!$M$8,1,IF(Article!F35=Article!$M$9,0.5,IF(Article!F35=Article!$M$10,0.33,IF(Article!F35=Article!$M$11,0.25))))","v":false},0,{"$f":"IF(Article!G35=Article!$O$8,1,IF(Article!G35=Article!$O$9,0.8,IF(Article!G35=Article!$O$10,0.75,IF(Article!G35=Article!$O$11,0.65,IF(Article!G35=Article!$O$12,0.55,IF(Article!G35=Article!$O$12,0.45))))))","v":false},null,0]
["مقاله 28",{"$f":"IF(Article!H36=Article!$L$8,7,IF(Article!H36=Article!$L$9,5,IF(Article!H36=Article!$L$10,3,IF(Article!H36=Article!$L$11,3,IF(Article!H36=Article!$L$12,2)))))","v":false},{"$f":"IF(Article!F36=Article!$M$8,1,IF(Article!F36=Article!$M$9,0.5,IF(Article!F36=Article!$M$10,0.33,IF(Article!F36=Article!$M$11,0.25))))","v":false},0,{"$f":"IF(Article!G36=Article!$O$8,1,IF(Article!G36=Article!$O$9,0.8,IF(Article!G36=Article!$O$10,0.75,IF(Article!G36=Article!$O$11,0.65,IF(Article!G36=Article!$O$12,0.55,IF(Article!G36=Article!$O$12,0.45))))))","v":false},null,0]
["مقاله 29",{"$f":"IF(Article!H37=Article!$L$8,7,IF(Article!H37=Article!$L$9,5,IF(Article!H37=Article!$L$10,3,IF(Article!H37=Article!$L$11,3,IF(Article!H37=Article!$L$12,2)))))","v":false},{"$f":"IF(Article!F37=Article!$M$8,1,IF(Article!F37=Article!$M$9,0.5,IF(Article!F37=Article!$M$10,0.33,IF(Article!F37=Article!$M$11,0.25))))","v":false},0,{"$f":"IF(Article!G37=Article!$O$8,1,IF(Article!G37=Article!$O$9,0.8,IF(Article!G37=Article!$O$10,0.75,IF(Article!G37=Article!$O$11,0.65,IF(Article!G37=Article!$O$12,0.55,IF(Article!G37=Article!$O$12,0.45))))))","v":false},null,0]
["مقاله 30",{"$f":"IF(Article!H38=Article!$L$8,7,IF(Article!H38=Article!$L$9,5,IF(Article!H38=Article!$L$10,3,IF(Article!H38=Article!$L$11,3,IF(Article!H38=Article!$L$12,2)))))","v":false},{"$f":"IF(Article!F38=Article!$M$8,1,IF(Article!F38=Article!$M$9,0.5,IF(Article!F38=Article!$M$10,0.33,IF(Article!F38=Article!$M$11,0.25))))","v":false},0,{"$f":"IF(Article!G38=Article!$O$8,1,IF(Article!G38=Article!$O$9,0.8,IF(Article!G38=Article!$O$10,0.75,IF(Article!G38=Article!$O$11,0.65,IF(Article!G38=Article!$O$12,0.55,IF(Article!G38=Article!$O$12,0.45))))))","v":false},null,0]
["مقاله 31",{"$f":"IF(Article!H39=Article!$L$8,7,IF(Article!H39=Article!$L$9,5,IF(Article!H39=Article!$L$10,3,IF(Article!H39=Article!$L$11,3,IF(Article!H39=Article!$L$12,2)))))","v":false},{"$f":"IF(Article!F39=Article!$M$8,1,IF(Article!F39=Article!$M$9,0.5,IF(Article!F39=Article!$M$10,0.33,IF(Article!F39=Article!$M$11,0.25))))","v":false},0,{"$f":"IF(Article!G39=Article!$O$8,1,IF(Article!G39=Article!$O$9,0.8,IF(Article!G39=Article!$O$10,0.75,IF(Article!G39=Article!$O$11,0.65,IF(Article!G39=Article!$O$12,0.55,IF(Article!G39=Article!$O$12,0.45))))))","v":false},null,0]
["مقاله 32",{"$f":"IF(Article!H40=Article!$L$8,7,IF(Article!H40=Article!$L$9,5,IF(Article!H40=Article!$L$10,3,IF(Article!H40=Article!$L$11,3,IF(Article!H40=Article!$L$12,2)))))","v":false},{"$f":"IF(Article!F40=Article!$M$8,1,IF(Article!F40=Article!$M$9,0.5,IF(Article!F40=Article!$M$10,0.33,IF(Article!F40=Article!$M$11,0.25))))","v":false},0,{"$f":"IF(Article!G40=Article!$O$8,1,IF(Article!G40=Article!$O$9,0.8,IF(Article!G40=Article!$O$10,0.75,IF(Article!G40=Article!$O$11,0.65,IF(Article!G40=Article!$O$12,0.55,IF(Article!G40=Article!$O$12,0.45))))))","v":false},null,0]
["مقاله 33",{"$f":"IF(Article!H41=Article!$L$8,7,IF(Article!H41=Article!$L$9,5,IF(Article!H41=Article!$L$10,3,IF(Article!H41=Article!$L$11,3,IF(Article!H41=Article!$L$12,2)))))","v":false},{"$f":"IF(Article!F41=Article!$M$8,1,IF(Article!F41=Article!$M$9,0.5,IF(Article!F41=Article!$M$10,0.33,IF(Article!F41=Article!$M$11,0.25))))","v":false},0,{"$f":"IF(Article!G41=Article!$O$8,1,IF(Article!G41=Article!$O$9,0.8,IF(Article!G41=Article!$O$10,0.75,IF(Article!G41=Article!$O$11,0.65,IF(Article!G41=Article!$O$12,0.55,IF(Article!G41=Article!$O$12,0.45))))))","v":false},null,0]
["مقاله 34",{"$f":"IF(Article!H42=Article!$L$8,7,IF(Article!H42=Article!$L$9,5,IF(Article!H42=Article!$L$10,3,IF(Article!H42=Article!$L$11,3,IF(Article!H42=Article!$L$12,2)))))","v":false},{"$f":"IF(Article!F42=Article!$M$8,1,IF(Article!F42=Article!$M$9,0.5,IF(Article!F42=Article!$M$10,0.33,IF(Article!F42=Article!$M$11,0.25))))","v":false},0,{"$f":"IF(Article!G42=Article!$O$8,1,IF(Article!G42=Article!$O$9,0.8,IF(Article!G42=Article!$O$10,0.75,IF(Article!G42=Article!$O$11,0.65,IF(Article!G42=Article!$O$12,0.55,IF(Article!G42=Article!$O$12,0.45))))))","v":false},null,0]
["مقاله 35",{"$f":"IF(Article!H43=Article!$L$8,7,IF(Article!H43=Article!$L$9,5,IF(Article!H43=Article!$L$10,3,IF(Article!H43=Article!$L$11,3,IF(Article!H43=Article!$L$12,2)))))","v":false},{"$f":"IF(Article!F43=Article!$M$8,1,IF(Article!F43=Article!$M$9,0.5,IF(Article!F43=Article!$M$10,0.33,IF(Article!F43=Article!$M$11,0.25))))","v":false},0,{"$f":"IF(Article!G43=Article!$O$8,1,IF(Article!G43=Article!$O$9,0.8,IF(Article!G43=Article!$O$10,0.75,IF(Article!G43=Article!$O$11,0.65,IF(Article!G43=Article!$O$12,0.55,IF(Article!G43=Article!$O$12,0.45))))))","v":false},null,0]
["مقاله 36",{"$f":"IF(Article!H44=Article!$L$8,7,IF(Article!H44=Article!$L$9,5,IF(Article!H44=Article!$L$10,3,IF(Article!H44=Article!$L$11,3,IF(Article!H44=Article!$L$12,2)))))","v":false},{"$f":"IF(Article!F44=Article!$M$8,1,IF(Article!F44=Article!$M$9,0.5,IF(Article!F44=Article!$M$10,0.33,IF(Article!F44=Article!$M$11,0.25))))","v":false},0,{"$f":"IF(Article!G44=Article!$O$8,1,IF(Article!G44=Article!$O$9,0.8,IF(Article!G44=Article!$O$10,0.75,IF(Article!G44=Article!$O$11,0.65,IF(Article!G44=Article!$O$12,0.55,IF(Article!G44=Article!$O$12,0.45))))))","v":false},null,0]
["مقاله 37",{"$f":"IF(Article!H45=Article!$L$8,7,IF(Article!H45=Article!$L$9,5,IF(Article!H45=Article!$L$10,3,IF(Article!H45=Article!$L$11,3,IF(Article!H45=Article!$L$12,2)))))","v":false},{"$f":"IF(Article!F45=Article!$M$8,1,IF(Article!F45=Article!$M$9,0.5,IF(Article!F45=Article!$M$10,0.33,IF(Article!F45=Article!$M$11,0.25))))","v":false},0,{"$f":"IF(Article!G45=Article!$O$8,1,IF(Article!G45=Article!$O$9,0.8,IF(Article!G45=Article!$O$10,0.75,IF(Article!G45=Article!$O$11,0.65,IF(Article!G45=Article!$O$12,0.55,IF(Article!G45=Article!$O$12,0.45))))))","v":false},null,0]
["مقاله 38",{"$f":"IF(Article!H46=Article!$L$8,7,IF(Article!H46=Article!$L$9,5,IF(Article!H46=Article!$L$10,3,IF(Article!H46=Article!$L$11,3,IF(Article!H46=Article!$L$12,2)))))","v":false},{"$f":"IF(Article!F46=Article!$M$8,1,IF(Article!F46=Article!$M$9,0.5,IF(Article!F46=Article!$M$10,0.33,IF(Article!F46=Article!$M$11,0.25))))","v":false},0,{"$f":"IF(Article!G46=Article!$O$8,1,IF(Article!G46=Article!$O$9,0.8,IF(Article!G46=Article!$O$10,0.75,IF(Article!G46=Article!$O$11,0.65,IF(Article!G46=Article!$O$12,0.55,IF(Article!G46=Article!$O$12,0.45))))))","v":false},null,0]
["مقاله 39",{"$f":"IF(Article!H47=Article!$L$8,7,IF(Article!H47=Article!$L$9,5,IF(Article!H47=Article!$L$10,3,IF(Article!H47=Article!$L$11,3,IF(Article!H47=Article!$L$12,2)))))","v":false},{"$f":"IF(Article!F47=Article!$M$8,1,IF(Article!F47=Article!$M$9,0.5,IF(Article!F47=Article!$M$10,0.33,IF(Article!F47=Article!$M$11,0.25))))","v":false},0,{"$f":"IF(Article!G47=Article!$O$8,1,IF(Article!G47=Article!$O$9,0.8,IF(Article!G47=Article!$O$10,0.75,IF(Article!G47=Article!$O$11,0.65,IF(Article!G47=Article!$O$12,0.55,IF(Article!G47=Article!$O$12,0.45))))))","v":false},null,0]
["مقاله 40",{"$f":"IF(Article!H48=Article!$L$8,7,IF(Article!H48=Article!$L$9,5,IF(Article!H48=Article!$L$10,3,IF(Article!H48=Article!$L$11,3,IF(Article!H48=Article!$L$12,2)))))","v":false},{"$f":"IF(Article!F48=Article!$M$8,1,IF(Article!F48=Article!$M$9,0.5,IF(Article!F48=Article!$M$10,0.33,IF(Article!F48=Article!$M$11,0.25))))","v":false},0,{"$f":"IF(Article!G48=Article!$O$8,1,IF(Article!G48=Article!$O$9,0.8,IF(Article!G48=Article!$O$10,0.75,IF(Article!G48=Article!$O$11,0.65,IF(Article!G48=Article!$O$12,0.55,IF(Article!G48=Article!$O$12,0.45))))))","v":false},null,0]
["مقاله 41",{"$f":"IF(Article!H49=Article!$L$8,7,IF(Article!H49=Article!$L$9,5,IF(Article!H49=Article!$L$10,3,IF(Article!H49=Article!$L$11,3,IF(Article!H49=Article!$L$12,2)))))","v":false},{"$f":"IF(Article!F49=Article!$M$8,1,IF(Article!F49=Article!$M$9,0.5,IF(Article!F49=Article!$M$10,0.33,IF(Article!F49=Article!$M$11,0.25))))","v":false},0,{"$f":"IF(Article!G49=Article!$O$8,1,IF(Article!G49=Article!$O$9,0.8,IF(Article!G49=Article!$O$10,0.75,IF(Article!G49=Article!$O$11,0.65,IF(Article!G49=Article!$O$12,0.55,IF(Article!G49=Article!$O$12,0.45))))))","v":false},null,0]
["مقاله 42",{"$f":"IF(Article!H50=Article!$L$8,7,IF(Article!H50=Article!$L$9,5,IF(Article!H50=Article!$L$10,3,IF(Article!H50=Article!$L$11,3,IF(Article!H50=Article!$L$12,2)))))","v":false},{"$f":"IF(Article!F50=Article!$M$8,1,IF(Article!F50=Article!$M$9,0.5,IF(Article!F50=Article!$M$10,0.33,IF(Article!F50=Article!$M$11,0.25))))","v":false},0,{"$f":"IF(Article!G50=Article!$O$8,1,IF(Article!G50=Article!$O$9,0.8,IF(Article!G50=Article!$O$10,0.75,IF(Article!G50=Article!$O$11,0.65,IF(Article!G50=Article!$O$12,0.55,IF(Article!G50=Article!$O$12,0.45))))))","v":false},null,0]
["مقاله 43",{"$f":"IF(Article!H51=Article!$L$8,7,IF(Article!H51=Article!$L$9,5,IF(Article!H51=Article!$L$10,3,IF(Article!H51=Article!$L$11,3,IF(Article!H51=Article!$L$12,2)))))","v":false},{"$f":"IF(Article!F51=Article!$M$8,1,IF(Article!F51=Article!$M$9,0.5,IF(Article!F51=Article!$M$10,0.33,IF(Article!F51=Article!$M$11,0.25))))","v":false},0,{"$f":"IF(Article!G51=Article!$O$8,1,IF(Article!G51=Article!$O$9,0.8,IF(Article!G51=Article!$O$10,0.75,IF(Article!G51=Article!$O$11,0.65,IF(Article!G51=Article!$O$12,0.55,IF(Article!G51=Article!$O$12,0.45))))))","v":false},null,0]
["مقاله 44",{"$f":"IF(Article!H52=Article!$L$8,7,IF(Article!H52=Article!$L$9,5,IF(Article!H52=Article!$L$10,3,IF(Article!H52=Article!$L$11,3,IF(Article!H52=Article!$L$12,2)))))","v":false},{"$f":"IF(Article!F52=Article!$M$8,1,IF(Article!F52=Article!$M$9,0.5,IF(Article!F52=Article!$M$10,0.33,IF(Article!F52=Article!$M$11,0.25))))","v":false},0,{"$f":"IF(Article!G52=Article!$O$8,1,IF(Article!G52=Article!$O$9,0.8,IF(Article!G52=Article!$O$10,0.75,IF(Article!G52=Article!$O$11,0.65,IF(Article!G52=Article!$O$12,0.55,IF(Article!G52=Article!$O$12,0.45))))))","v":false},null,0]
["مقاله 45",{"$f":"IF(Article!H53=Article!$L$8,7,IF(Article!H53=Article!$L$9,5,IF(Article!H53=Article!$L$10,3,IF(Article!H53=Article!$L$11,3,IF(Article!H53=Article!$L$12,2)))))","v":false},{"$f":"IF(Article!F53=Article!$M$8,1,IF(Article!F53=Article!$M$9,0.5,IF(Article!F53=Article!$M$10,0.33,IF(Article!F53=Article!$M$11,0.25))))","v":false},0,{"$f":"IF(Article!G53=Article!$O$8,1,IF(Article!G53=Article!$O$9,0.8,IF(Article!G53=Article!$O$10,0.75,IF(Article!G53=Article!$O$11,0.65,IF(Article!G53=Article!$O$12,0.55,IF(Article!G53=Article!$O$12,0.45))))))","v":false},null,0]
["مقاله 46",{"$f":"IF(Article!H54=Article!$L$8,7,IF(Article!H54=Article!$L$9,5,IF(Article!H54=Article!$L$10,3,IF(Article!H54=Article!$L$11,3,IF(Article!H54=Article!$L$12,2)))))","v":false},{"$f":"IF(Article!F54=Article!$M$8,1,IF(Article!F54=Article!$M$9,0.5,IF(Article!F54=Article!$M$10,0.33,IF(Article!F54=Article!$M$11,0.25))))","v":false},0,{"$f":"IF(Article!G54=Article!$O$8,1,IF(Article!G54=Article!$O$9,0.8,IF(Article!G54=Article!$O$10,0.75,IF(Article!G54=Article!$O$11,0.65,IF(Article!G54=Article!$O$12,0.55,IF(Article!G54=Article!$O$12,0.45))))))","v":false},null,0]
["مقاله 47",{"$f":"IF(Article!H55=Article!$L$8,7,IF(Article!H55=Article!$L$9,5,IF(Article!H55=Article!$L$10,3,IF(Article!H55=Article!$L$11,3,IF(Article!H55=Article!$L$12,2)))))","v":false},{"$f":"IF(Article!F55=Article!$M$8,1,IF(Article!F55=Article!$M$9,0.5,IF(Article!F55=Article!$M$10,0.33,IF(Article!F55=Article!$M$11,0.25))))","v":false},0,{"$f":"IF(Article!G55=Article!$O$8,1,IF(Article!G55=Article!$O$9,0.8,IF(Article!G55=Article!$O$10,0.75,IF(Article!G55=Article!$O$11,0.65,IF(Article!G55=Article!$O$12,0.55,IF(Article!G55=Article!$O$12,0.45))))))","v":false},null,0]
["مقاله 48",{"$f":"IF(Article!H56=Article!$L$8,7,IF(Article!H56=Article!$L$9,5,IF(Article!H56=Article!$L$10,3,IF(Article!H56=Article!$L$11,3,IF(Article!H56=Article!$L$12,2)))))","v":false},{"$f":"IF(Article!F56=Article!$M$8,1,IF(Article!F56=Article!$M$9,0.5,IF(Article!F56=Article!$M$10,0.33,IF(Article!F56=Article!$M$11,0.25))))","v":false},0,{"$f":"IF(Article!G56=Article!$O$8,1,IF(Article!G56=Article!$O$9,0.8,IF(Article!G56=Article!$O$10,0.75,IF(Article!G56=Article!$O$11,0.65,IF(Article!G56=Article!$O$12,0.55,IF(Article!G56=Article!$O$12,0.45))))))","v":false},null,0]
["مقاله 49",{"$f":"IF(Article!H57=Article!$L$8,7,IF(Article!H57=Article!$L$9,5,IF(Article!H57=Article!$L$10,3,IF(Article!H57=Article!$L$11,3,IF(Article!H57=Article!$L$12,2)))))","v":false},{"$f":"IF(Article!F57=Article!$M$8,1,IF(Article!F57=Article!$M$9,0.5,IF(Article!F57=Article!$M$10,0.33,IF(Article!F57=Article!$M$11,0.25))))","v":false},0,{"$f":"IF(Article!G57=Article!$O$8,1,IF(Article!G57=Article!$O$9,0.8,IF(Article!G57=Article!$O$10,0.75,IF(Article!G57=Article!$O$11,0.65,IF(Article!G57=Article!$O$12,0.55,IF(Article!G57=Article!$O$12,0.45))))))","v":false},null,0]
["مقاله 50",{"$f":"IF(Article!H58=Article!$L$8,7,IF(Article!H58=Article!$L$9,5,IF(Article!H58=Article!$L$10,3,IF(Article!H58=Article!$L$11,3,IF(Article!H58=Article!$L$12,2)))))","v":false},{"$f":"IF(Article!F58=Article!$M$8,1,IF(Article!F58=Article!$M$9,0.5,IF(Article!F58=Article!$M$10,0.33,IF(Article!F58=Article!$M$11,0.25))))","v":false},0,{"$f":"IF(Article!G58=Article!$O$8,1,IF(Article!G58=Article!$O$9,0.8,IF(Article!G58=Article!$O$10,0.75,IF(Article!G58=Article!$O$11,0.65,IF(Article!G58=Article!$O$12,0.55,IF(Article!G58=Article!$O$12,0.45))))))","v":false},null,0]
["مقاله 51",{"$f":"IF(Article!H59=Article!$L$8,7,IF(Article!H59=Article!$L$9,5,IF(Article!H59=Article!$L$10,3,IF(Article!H59=Article!$L$11,3,IF(Article!H59=Article!$L$12,2)))))","v":false},{"$f":"IF(Article!F59=Article!$M$8,1,IF(Article!F59=Article!$M$9,0.5,IF(Article!F59=Article!$M$10,0.33,IF(Article!F59=Article!$M$11,0.25))))","v":false},0,{"$f":"IF(Article!G59=Article!$O$8,1,IF(Article!G59=Article!$O$9,0.8,IF(Article!G59=Article!$O$10,0.75,IF(Article!G59=Article!$O$11,0.65,IF(Article!G59=Article!$O$12,0.55,IF(Article!G59=Article!$O$12,0.45))))))","v":false},null,0]
["مقاله 52",{"$f":"IF(Article!H60=Article!$L$8,7,IF(Article!H60=Article!$L$9,5,IF(Article!H60=Article!$L$10,3,IF(Article!H60=Article!$L$11,3,IF(Article!H60=Article!$L$12,2)))))","v":false},{"$f":"IF(Article!F60=Article!$M$8,1,IF(Article!F60=Article!$M$9,0.5,IF(Article!F60=Article!$M$10,0.33,IF(Article!F60=Article!$M$11,0.25))))","v":false},0,{"$f":"IF(Article!G60=Article!$O$8,1,IF(Article!G60=Article!$O$9,0.8,IF(Article!G60=Article!$O$10,0.75,IF(Article!G60=Article!$O$11,0.65,IF(Article!G60=Article!$O$12,0.55,IF(Article!G60=Article!$O$12,0.45))))))","v":false},null,0]
["مقاله 53",{"$f":"IF(Article!H61=Article!$L$8,7,IF(Article!H61=Article!$L$9,5,IF(Article!H61=Article!$L$10,3,IF(Article!H61=Article!$L$11,3,IF(Article!H61=Article!$L$12,2)))))","v":false},{"$f":"IF(Article!F61=Article!$M$8,1,IF(Article!F61=Article!$M$9,0.5,IF(Article!F61=Article!$M$10,0.33,IF(Article!F61=Article!$M$11,0.25))))","v":false},0,{"$f":"IF(Article!G61=Article!$O$8,1,IF(Article!G61=Article!$O$9,0.8,IF(Article!G61=Article!$O$10,0.75,IF(Article!G61=Article!$O$11,0.65,IF(Article!G61=Article!$O$12,0.55,IF(Article!G61=Article!$O$12,0.45))))))","v":false},null,0]
["مقاله 54",{"$f":"IF(Article!H62=Article!$L$8,7,IF(Article!H62=Article!$L$9,5,IF(Article!H62=Article!$L$10,3,IF(Article!H62=Article!$L$11,3,IF(Article!H62=Article!$L$12,2)))))","v":false},{"$f":"IF(Article!F62=Article!$M$8,1,IF(Article!F62=Article!$M$9,0.5,IF(Article!F62=Article!$M$10,0.33,IF(Article!F62=Article!$M$11,0.25))))","v":false},0,{"$f":"IF(Article!G62=Article!$O$8,1,IF(Article!G62=Article!$O$9,0.8,IF(Article!G62=Article!$O$10,0.75,IF(Article!G62=Article!$O$11,0.65,IF(Article!G62=Article!$O$12,0.55,IF(Article!G62=Article!$O$12,0.45))))))","v":false},null,0]
["مقاله 55",{"$f":"IF(Article!H63=Article!$L$8,7,IF(Article!H63=Article!$L$9,5,IF(Article!H63=Article!$L$10,3,IF(Article!H63=Article!$L$11,3,IF(Article!H63=Article!$L$12,2)))))","v":false},{"$f":"IF(Article!F63=Article!$M$8,1,IF(Article!F63=Article!$M$9,0.5,IF(Article!F63=Article!$M$10,0.33,IF(Article!F63=Article!$M$11,0.25))))","v":false},0,{"$f":"IF(Article!G63=Article!$O$8,1,IF(Article!G63=Article!$O$9,0.8,IF(Article!G63=Article!$O$10,0.75,IF(Article!G63=Article!$O$11,0.65,IF(Article!G63=Article!$O$12,0.55,IF(Article!G63=Article!$O$12,0.45))))))","v":false},null,0]
["مقاله 56",{"$f":"IF(Article!H64=Article!$L$8,7,IF(Article!H64=Article!$L$9,5,IF(Article!H64=Article!$L$10,3,IF(Article!H64=Article!$L$11,3,IF(Article!H64=Article!$L$12,2)))))","v":false},{"$f":"IF(Article!F64=Article!$M$8,1,IF(Article!F64=Article!$M$9,0.5,IF(Article!F64=Article!$M$10,0.33,IF(Article!F64=Article!$M$11,0.25))))","v":false},0,{"$f":"IF(Article!G64=Article!$O$8,1,IF(Article!G64=Article!$O$9,0.8,IF(Article!G64=Article!$O$10,0.75,IF(Article!G64=Article!$O$11,0.65,IF(Article!G64=Article!$O$12,0.55,IF(Article!G64=Article!$O$12,0.45))))))","v":false},null,0]
["مقاله 57",{"$f":"IF(Article!H65=Article!$L$8,7,IF(Article!H65=Article!$L$9,5,IF(Article!H65=Article!$L$10,3,IF(Article!H65=Article!$L$11,3,IF(Article!H65=Article!$L$12,2)))))","v":false},{"$f":"IF(Article!F65=Article!$M$8,1,IF(Article!F65=Article!$M$9,0.5,IF(Article!F65=Article!$M$10,0.33,IF(Article!F65=Article!$M$11,0.25))))","v":false},0,{"$f":"IF(Article!G65=Article!$O$8,1,IF(Article!G65=Article!$O$9,0.8,IF(Article!G65=Article!$O$10,0.75,IF(Article!G65=Article!$O$11,0.65,IF(Article!G65=Article!$O$12,0.55,IF(Article!G65=Article!$O$12,0.45))))))","v":false},null,0]
["مقاله 58",{"$f":"IF(Article!H66=Article!$L$8,7,IF(Article!H66=Article!$L$9,5,IF(Article!H66=Article!$L$10,3,IF(Article!H66=Article!$L$11,3,IF(Article!H66=Article!$L$12,2)))))","v":false},{"$f":"IF(Article!F66=Article!$M$8,1,IF(Article!F66=Article!$M$9,0.5,IF(Article!F66=Article!$M$10,0.33,IF(Article!F66=Article!$M$11,0.25))))","v":false},0,{"$f":"IF(Article!G66=Article!$O$8,1,IF(Article!G66=Article!$O$9,0.8,IF(Article!G66=Article!$O$10,0.75,IF(Article!G66=Article!$O$11,0.65,IF(Article!G66=Article!$O$12,0.55,IF(Article!G66=Article!$O$12,0.45))))))","v":false},null,0]
["مقاله 59",{"$f":"IF(Article!H67=Article!$L$8,7,IF(Article!H67=Article!$L$9,5,IF(Article!H67=Article!$L$10,3,IF(Article!H67=Article!$L$11,3,IF(Article!H67=Article!$L$12,2)))))","v":false},{"$f":"IF(Article!F67=Article!$M$8,1,IF(Article!F67=Article!$M$9,0.5,IF(Article!F67=Article!$M$10,0.33,IF(Article!F67=Article!$M$11,0.25))))","v":false},0,{"$f":"IF(Article!G67=Article!$O$8,1,IF(Article!G67=Article!$O$9,0.8,IF(Article!G67=Article!$O$10,0.75,IF(Article!G67=Article!$O$11,0.65,IF(Article!G67=Article!$O$12,0.55,IF(Article!G67=Article!$O$12,0.45))))))","v":false},null,0]
["مقاله 60",{"$f":"IF(Article!H68=Article!$L$8,7,IF(Article!H68=Article!$L$9,5,IF(Article!H68=Article!$L$10,3,IF(Article!H68=Article!$L$11,3,IF(Article!H68=Article!$L$12,2)))))","v":false},{"$f":"IF(Article!F68=Article!$M$8,1,IF(Article!F68=Article!$M$9,0.5,IF(Article!F68=Article!$M$10,0.33,IF(Article!F68=Article!$M$11,0.25))))","v":false},0,{"$f":"IF(Article!G68=Article!$O$8,1,IF(Article!G68=Article!$O$9,0.8,IF(Article!G68=Article!$O$10,0.75,IF(Article!G68=Article!$O$11,0.65,IF(Article!G68=Article!$O$12,0.55,IF(Article!G68=Article!$O$12,0.45))))))","v":false},null,0]
["مقاله 61",{"$f":"IF(Article!H69=Article!$L$8,7,IF(Article!H69=Article!$L$9,5,IF(Article!H69=Article!$L$10,3,IF(Article!H69=Article!$L$11,3,IF(Article!H69=Article!$L$12,2)))))","v":false},{"$f":"IF(Article!F69=Article!$M$8,1,IF(Article!F69=Article!$M$9,0.5,IF(Article!F69=Article!$M$10,0.33,IF(Article!F69=Article!$M$11,0.25))))","v":false},0,{"$f":"IF(Article!G69=Article!$O$8,1,IF(Article!G69=Article!$O$9,0.8,IF(Article!G69=Article!$O$10,0.75,IF(Article!G69=Article!$O$11,0.65,IF(Article!G69=Article!$O$12,0.55,IF(Article!G69=Article!$O$12,0.45))))))","v":false},null,0]
["مقاله 62",{"$f":"IF(Article!H70=Article!$L$8,7,IF(Article!H70=Article!$L$9,5,IF(Article!H70=Article!$L$10,3,IF(Article!H70=Article!$L$11,3,IF(Article!H70=Article!$L$12,2)))))","v":false},{"$f":"IF(Article!F70=Article!$M$8,1,IF(Article!F70=Article!$M$9,0.5,IF(Article!F70=Article!$M$10,0.33,IF(Article!F70=Article!$M$11,0.25))))","v":false},0,{"$f":"IF(Article!G70=Article!$O$8,1,IF(Article!G70=Article!$O$9,0.8,IF(Article!G70=Article!$O$10,0.75,IF(Article!G70=Article!$O$11,0.65,IF(Article!G70=Article!$O$12,0.55,IF(Article!G70=Article!$O$12,0.45))))))","v":false},null,0]
["مقاله 63",{"$f":"IF(Article!H71=Article!$L$8,7,IF(Article!H71=Article!$L$9,5,IF(Article!H71=Article!$L$10,3,IF(Article!H71=Article!$L$11,3,IF(Article!H71=Article!$L$12,2)))))","v":false},{"$f":"IF(Article!F71=Article!$M$8,1,IF(Article!F71=Article!$M$9,0.5,IF(Article!F71=Article!$M$10,0.33,IF(Article!F71=Article!$M$11,0.25))))","v":false},0,{"$f":"IF(Article!G71=Article!$O$8,1,IF(Article!G71=Article!$O$9,0.8,IF(Article!G71=Article!$O$10,0.75,IF(Article!G71=Article!$O$11,0.65,IF(Article!G71=Article!$O$12,0.55,IF(Article!G71=Article!$O$12,0.45))))))","v":false},null,0]
["مقاله 64",{"$f":"IF(Article!H72=Article!$L$8,7,IF(Article!H72=Article!$L$9,5,IF(Article!H72=Article!$L$10,3,IF(Article!H72=Article!$L$11,3,IF(Article!H72=Article!$L$12,2)))))","v":false},{"$f":"IF(Article!F72=Article!$M$8,1,IF(Article!F72=Article!$M$9,0.5,IF(Article!F72=Article!$M$10,0.33,IF(Article!F72=Article!$M$11,0.25))))","v":false},0,{"$f":"IF(Article!G72=Article!$O$8,1,IF(Article!G72=Article!$O$9,0.8,IF(Article!G72=Article!$O$10,0.75,IF(Article!G72=Article!$O$11,0.65,IF(Article!G72=Article!$O$12,0.55,IF(Article!G72=Article!$O$12,0.45))))))","v":false},null,0]
["مقاله 65",{"$f":"IF(Article!H73=Article!$L$8,7,IF(Article!H73=Article!$L$9,5,IF(Article!H73=Article!$L$10,3,IF(Article!H73=Article!$L$11,3,IF(Article!H73=Article!$L$12,2)))))","v":false},{"$f":"IF(Article!F73=Article!$M$8,1,IF(Article!F73=Article!$M$9,0.5,IF(Article!F73=Article!$M$10,0.33,IF(Article!F73=Article!$M$11,0.25))))","v":false},0,{"$f":"IF(Article!G73=Article!$O$8,1,IF(Article!G73=Article!$O$9,0.8,IF(Article!G73=Article!$O$10,0.75,IF(Article!G73=Article!$O$11,0.65,IF(Article!G73=Article!$O$12,0.55,IF(Article!G73=Article!$O$12,0.45))))))","v":false},null,0]
["مقاله 66",{"$f":"IF(Article!H74=Article!$L$8,7,IF(Article!H74=Article!$L$9,5,IF(Article!H74=Article!$L$10,3,IF(Article!H74=Article!$L$11,3,IF(Article!H74=Article!$L$12,2)))))","v":false},{"$f":"IF(Article!F74=Article!$M$8,1,IF(Article!F74=Article!$M$9,0.5,IF(Article!F74=Article!$M$10,0.33,IF(Article!F74=Article!$M$11,0.25))))","v":false},{"$f":"B67*C67","v":0},{"$f":"IF(Article!G74=Article!$O$8,1,IF(Article!G74=Article!$O$9,0.8,IF(Article!G74=Article!$O$10,0.75,IF(Article!G74=Article!$O$11,0.65,IF(Article!G74=Article!$O$12,0.55,IF(Article!G74=Article!$O$12,0.45))))))","v":false},null,{"$f":"D67*E67","v":0}]
["مقاله 67",{"$f":"IF(Article!H75=Article!$L$8,7,IF(Article!H75=Article!$L$9,5,IF(Article!H75=Article!$L$10,3,IF(Article!H75=Article!$L$11,3,IF(Article!H75=Article!$L$12,2)))))","v":false},{"$f":"IF(Article!F75=Article!$M$8,1,IF(Article!F75=Article!$M$9,0.5,IF(Article!F75=Article!$M$10,0.33,IF(Article!F75=Article!$M$11,0.25))))","v":false},0,{"$f":"IF(Article!G75=Article!$O$8,1,IF(Article!G75=Article!$O$9,0.8,IF(Article!G75=Article!$O$10,0.75,IF(Article!G75=Article!$O$11,0.65,IF(Article!G75=Article!$O$12,0.55,IF(Article!G75=Article!$O$12,0.45))))))","v":false},null,0]
["مقاله 68",{"$f":"IF(Article!H76=Article!$L$8,7,IF(Article!H76=Article!$L$9,5,IF(Article!H76=Article!$L$10,3,IF(Article!H76=Article!$L$11,3,IF(Article!H76=Article!$L$12,2)))))","v":false},{"$f":"IF(Article!F76=Article!$M$8,1,IF(Article!F76=Article!$M$9,0.5,IF(Article!F76=Article!$M$10,0.33,IF(Article!F76=Article!$M$11,0.25))))","v":false},0,{"$f":"IF(Article!G76=Article!$O$8,1,IF(Article!G76=Article!$O$9,0.8,IF(Article!G76=Article!$O$10,0.75,IF(Article!G76=Article!$O$11,0.65,IF(Article!G76=Article!$O$12,0.55,IF(Article!G76=Article!$O$12,0.45))))))","v":false},null,0]
["مقاله 69",{"$f":"IF(Article!H77=Article!$L$8,7,IF(Article!H77=Article!$L$9,5,IF(Article!H77=Article!$L$10,3,IF(Article!H77=Article!$L$11,3,IF(Article!H77=Article!$L$12,2)))))","v":false},{"$f":"IF(Article!F77=Article!$M$8,1,IF(Article!F77=Article!$M$9,0.5,IF(Article!F77=Article!$M$10,0.33,IF(Article!F77=Article!$M$11,0.25))))","v":false},0,{"$f":"IF(Article!G77=Article!$O$8,1,IF(Article!G77=Article!$O$9,0.8,IF(Article!G77=Article!$O$10,0.75,IF(Article!G77=Article!$O$11,0.65,IF(Article!G77=Article!$O$12,0.55,IF(Article!G77=Article!$O$12,0.45))))))","v":false},null,0]
["مقاله 70",{"$f":"IF(Article!H78=Article!$L$8,7,IF(Article!H78=Article!$L$9,5,IF(Article!H78=Article!$L$10,3,IF(Article!H78=Article!$L$11,3,IF(Article!H78=Article!$L$12,2)))))","v":false},{"$f":"IF(Article!F78=Article!$M$8,1,IF(Article!F78=Article!$M$9,0.5,IF(Article!F78=Article!$M$10,0.33,IF(Article!F78=Article!$M$11,0.25))))","v":false},0,{"$f":"IF(Article!G78=Article!$O$8,1,IF(Article!G78=Article!$O$9,0.8,IF(Article!G78=Article!$O$10,0.75,IF(Article!G78=Article!$O$11,0.65,IF(Article!G78=Article!$O$12,0.55,IF(Article!G78=Article!$O$12,0.45))))))","v":false},null,0]
["مقاله 71",{"$f":"IF(Article!H79=Article!$L$8,7,IF(Article!H79=Article!$L$9,5,IF(Article!H79=Article!$L$10,3,IF(Article!H79=Article!$L$11,3,IF(Article!H79=Article!$L$12,2)))))","v":false},{"$f":"IF(Article!F79=Article!$M$8,1,IF(Article!F79=Article!$M$9,0.5,IF(Article!F79=Article!$M$10,0.33,IF(Article!F79=Article!$M$11,0.25))))","v":false},0,{"$f":"IF(Article!G79=Article!$O$8,1,IF(Article!G79=Article!$O$9,0.8,IF(Article!G79=Article!$O$10,0.75,IF(Article!G79=Article!$O$11,0.65,IF(Article!G79=Article!$O$12,0.55,IF(Article!G79=Article!$O$12,0.45))))))","v":false},null,0]
["مقاله 72",{"$f":"IF(Article!H80=Article!$L$8,7,IF(Article!H80=Article!$L$9,5,IF(Article!H80=Article!$L$10,3,IF(Article!H80=Article!$L$11,3,IF(Article!H80=Article!$L$12,2)))))","v":false},{"$f":"IF(Article!F80=Article!$M$8,1,IF(Article!F80=Article!$M$9,0.5,IF(Article!F80=Article!$M$10,0.33,IF(Article!F80=Article!$M$11,0.25))))","v":false},0,{"$f":"IF(Article!G80=Article!$O$8,1,IF(Article!G80=Article!$O$9,0.8,IF(Article!G80=Article!$O$10,0.75,IF(Article!G80=Article!$O$11,0.65,IF(Article!G80=Article!$O$12,0.55,IF(Article!G80=Article!$O$12,0.45))))))","v":false},null,0]
["مقاله 73",{"$f":"IF(Article!H81=Article!$L$8,7,IF(Article!H81=Article!$L$9,5,IF(Article!H81=Article!$L$10,3,IF(Article!H81=Article!$L$11,3,IF(Article!H81=Article!$L$12,2)))))","v":false},{"$f":"IF(Article!F81=Article!$M$8,1,IF(Article!F81=Article!$M$9,0.5,IF(Article!F81=Article!$M$10,0.33,IF(Article!F81=Article!$M$11,0.25))))","v":false},0,{"$f":"IF(Article!G81=Article!$O$8,1,IF(Article!G81=Article!$O$9,0.8,IF(Article!G81=Article!$O$10,0.75,IF(Article!G81=Article!$O$11,0.65,IF(Article!G81=Article!$O$12,0.55,IF(Article!G81=Article!$O$12,0.45))))))","v":false},null,0]
["مقاله 74",{"$f":"IF(Article!H82=Article!$L$8,7,IF(Article!H82=Article!$L$9,5,IF(Article!H82=Article!$L$10,3,IF(Article!H82=Article!$L$11,3,IF(Article!H82=Article!$L$12,2)))))","v":false},{"$f":"IF(Article!F82=Article!$M$8,1,IF(Article!F82=Article!$M$9,0.5,IF(Article!F82=Article!$M$10,0.33,IF(Article!F82=Article!$M$11,0.25))))","v":false},0,{"$f":"IF(Article!G82=Article!$O$8,1,IF(Article!G82=Article!$O$9,0.8,IF(Article!G82=Article!$O$10,0.75,IF(Article!G82=Article!$O$11,0.65,IF(Article!G82=Article!$O$12,0.55,IF(Article!G82=Article!$O$12,0.45))))))","v":false},null,0]
["مقاله 75",{"$f":"IF(Article!H83=Article!$L$8,7,IF(Article!H83=Article!$L$9,5,IF(Article!H83=Article!$L$10,3,IF(Article!H83=Article!$L$11,3,IF(Article!H83=Article!$L$12,2)))))","v":false},{"$f":"IF(Article!F83=Article!$M$8,1,IF(Article!F83=Article!$M$9,0.5,IF(Article!F83=Article!$M$10,0.33,IF(Article!F83=Article!$M$11,0.25))))","v":false},0,{"$f":"IF(Article!G83=Article!$O$8,1,IF(Article!G83=Article!$O$9,0.8,IF(Article!G83=Article!$O$10,0.75,IF(Article!G83=Article!$O$11,0.65,IF(Article!G83=Article!$O$12,0.55,IF(Article!G83=Article!$O$12,0.45))))))","v":false},null,0]
["مقاله 76",{"$f":"IF(Article!H84=Article!$L$8,7,IF(Article!H84=Article!$L$9,5,IF(Article!H84=Article!$L$10,3,IF(Article!H84=Article!$L$11,3,IF(Article!H84=Article!$L$12,2)))))","v":false},{"$f":"IF(Article!F84=Article!$M$8,1,IF(Article!F84=Article!$M$9,0.5,IF(Article!F84=Article!$M$10,0.33,IF(Article!F84=Article!$M$11,0.25))))","v":false},0,{"$f":"IF(Article!G84=Article!$O$8,1,IF(Article!G84=Article!$O$9,0.8,IF(Article!G84=Article!$O$10,0.75,IF(Article!G84=Article!$O$11,0.65,IF(Article!G84=Article!$O$12,0.55,IF(Article!G84=Article!$O$12,0.45))))))","v":false},null,0]
["مقاله 77",{"$f":"IF(Article!H85=Article!$L$8,7,IF(Article!H85=Article!$L$9,5,IF(Article!H85=Article!$L$10,3,IF(Article!H85=Article!$L$11,3,IF(Article!H85=Article!$L$12,2)))))","v":false},{"$f":"IF(Article!F85=Article!$M$8,1,IF(Article!F85=Article!$M$9,0.5,IF(Article!F85=Article!$M$10,0.33,IF(Article!F85=Article!$M$11,0.25))))","v":false},0,{"$f":"IF(Article!G85=Article!$O$8,1,IF(Article!G85=Article!$O$9,0.8,IF(Article!G85=Article!$O$10,0.75,IF(Article!G85=Article!$O$11,0.65,IF(Article!G85=Article!$O$12,0.55,IF(Article!G85=Article!$O$12,0.45))))))","v":false},null,0]
["مقاله 78",{"$f":"IF(Article!H86=Article!$L$8,7,IF(Article!H86=Article!$L$9,5,IF(Article!H86=Article!$L$10,3,IF(Article!H86=Article!$L$11,3,IF(Article!H86=Article!$L$12,2)))))","v":false},{"$f":"IF(Article!F86=Article!$M$8,1,IF(Article!F86=Article!$M$9,0.5,IF(Article!F86=Article!$M$10,0.33,IF(Article!F86=Article!$M$11,0.25))))","v":false},0,{"$f":"IF(Article!G86=Article!$O$8,1,IF(Article!G86=Article!$O$9,0.8,IF(Article!G86=Article!$O$10,0.75,IF(Article!G86=Article!$O$11,0.65,IF(Article!G86=Article!$O$12,0.55,IF(Article!G86=Article!$O$12,0.45))))))","v":false},null,0]
["مقاله 79",{"$f":"IF(Article!H87=Article!$L$8,7,IF(Article!H87=Article!$L$9,5,IF(Article!H87=Article!$L$10,3,IF(Article!H87=Article!$L$11,3,IF(Article!H87=Article!$L$12,2)))))","v":false},{"$f":"IF(Article!F87=Article!$M$8,1,IF(Article!F87=Article!$M$9,0.5,IF(Article!F87=Article!$M$10,0.33,IF(Article!F87=Article!$M$11,0.25))))","v":false},0,{"$f":"IF(Article!G87=Article!$O$8,1,IF(Article!G87=Article!$O$9,0.8,IF(Article!G87=Article!$O$10,0.75,IF(Article!G87=Article!$O$11,0.65,IF(Article!G87=Article!$O$12,0.55,IF(Article!G87=Article!$O$12,0.45))))))","v":false},null,0]
["مقاله 80",{"$f":"IF(Article!H88=Article!$L$8,7,IF(Article!H88=Article!$L$9,5,IF(Article!H88=Article!$L$10,3,IF(Article!H88=Article!$L$11,3,IF(Article!H88=Article!$L$12,2)))))","v":false},{"$f":"IF(Article!F88=Article!$M$8,1,IF(Article!F88=Article!$M$9,0.5,IF(Article!F88=Article!$M$10,0.33,IF(Article!F88=Article!$M$11,0.25))))","v":false},0,{"$f":"IF(Article!G88=Article!$O$8,1,IF(Article!G88=Article!$O$9,0.8,IF(Article!G88=Article!$O$10,0.75,IF(Article!G88=Article!$O$11,0.65,IF(Article!G88=Article!$O$12,0.55,IF(Article!G88=Article!$O$12,0.45))))))","v":false},null,0]
[]
[null,null,null,null,null,null,{"$f":"SUM(G2:G81)","v":0}]

{"sheet":"ebda","index":14,"n_rows":22,"n_cols":5,"rows_kept":22,"cut":false,"hidden":false,"merged":[]}
[null,"نوع ثبت اختراع","جمع ",null,"امتیاز کلی"]
["اختراع 1",{"$f":"IF(inovation!C6=inovation!$M$3,4,IF(inovation!C6=inovation!$M$4,6))","v":false},{"$f":"B2","v":false},null,{"$f":"IF(C22<=6,C22,IF(C22>6,6))","v":0}]
["اختراع 2",{"$f":"IF(inovation!C7=inovation!$M$3,4,IF(inovation!C7=inovation!$M$4,6))","v":false},{"$f":"B3","v":false}]
["اختراع 3",{"$f":"IF(inovation!C8=inovation!$M$3,4,IF(inovation!C8=inovation!$M$4,6))","v":false},false]
["اختراع 4",{"$f":"IF(inovation!C9=inovation!$M$3,4,IF(inovation!C9=inovation!$M$4,6))","v":false},false]
["اختراع 5",{"$f":"IF(inovation!C10=inovation!$M$3,4,IF(inovation!C10=inovation!$M$4,6))","v":false},false]
["اختراع 6",{"$f":"IF(inovation!C11=inovation!$M$3,4,IF(inovation!C11=inovation!$M$4,6))","v":false},false]
["اختراع 7",{"$f":"IF(inovation!C12=inovation!$M$3,4,IF(inovation!C12=inovation!$M$4,6))","v":false},false]
["اختراع 8",{"$f":"IF(inovation!C13=inovation!$M$3,4,IF(inovation!C13=inovation!$M$4,6))","v":false},false]
["اختراع 9",{"$f":"IF(inovation!C14=inovation!$M$3,4,IF(inovation!C14=inovation!$M$4,6))","v":false},false]
["اختراع 10",{"$f":"IF(inovation!C15=inovation!$M$3,4,IF(inovation!C15=inovation!$M$4,6))","v":false},false]
["اختراع 11",{"$f":"IF(inovation!C16=inovation!$M$3,4,IF(inovation!C16=inovation!$M$4,6))","v":false},false]
["اختراع 12",{"$f":"IF(inovation!C17=inovation!$M$3,4,IF(inovation!C17=inovation!$M$4,6))","v":false},false]
["اختراع 13",{"$f":"IF(inovation!C18=inovation!$M$3,4,IF(inovation!C18=inovation!$M$4,6))","v":false},false]
["اختراع 14",{"$f":"IF(inovation!C19=inovation!$M$3,4,IF(inovation!C19=inovation!$M$4,6))","v":false},false]
["اختراع 15",{"$f":"IF(inovation!C20=inovation!$M$3,4,IF(inovation!C20=inovation!$M$4,6))","v":false},false]
["اختراع 16",{"$f":"IF(inovation!C21=inovation!$M$3,4,IF(inovation!C21=inovation!$M$4,6))","v":false},false]
["اختراع 17",{"$f":"IF(inovation!C22=inovation!$M$3,4,IF(inovation!C22=inovation!$M$4,6))","v":false},false]
["اختراع 18",{"$f":"IF(inovation!C23=inovation!$M$3,4,IF(inovation!C23=inovation!$M$4,6))","v":false},false]
["اختراع 19",{"$f":"IF(inovation!C24=inovation!$M$3,4,IF(inovation!C24=inovation!$M$4,6))","v":false},false]
[]
[null,null,{"$f":"SUM(C2:C20)","v":0}]

{"sheet":"ketab","index":15,"n_rows":33,"n_cols":4,"rows_kept":33,"cut":false,"hidden":false,"merged":[[0,0,0,2],[29,3,31,3],[32,3,33,3]]}
["تالیف کتاب "]
[null,"تالیف است  ",null,"کل نمره تالیف کتاب"]
["کتاب 1",{"$f":"IF(book!C6=book!$N$4,5,IF(book!C6=book!$N$5,4,IF(book!C6=book!$N$6,2)))","v":false},null,{"$f":"IF(B26<=10,B26,IF(B26>10,10))","v":0}]
["کتاب 2",{"$f":"IF(book!C7=book!$N$4,5,IF(book!C7=book!$N$5,4,IF(book!C7=book!$N$6,2)))","v":false}]
["کتاب 3",{"$f":"IF(book!C8=book!$N$4,5,IF(book!C8=book!$N$5,4,IF(book!C8=book!$N$6,2)))","v":false}]
["کتاب 4",{"$f":"IF(book!C9=book!$N$4,5,IF(book!C9=book!$N$5,4,IF(book!C9=book!$N$6,2)))","v":false}]
["کتاب 5",{"$f":"IF(book!C10=book!$N$4,5,IF(book!C10=book!$N$5,4,IF(book!C10=book!$N$6,2)))","v":false}]
["کتاب 6",{"$f":"IF(book!C11=book!$N$4,5,IF(book!C11=book!$N$5,4,IF(book!C11=book!$N$6,2)))","v":false}]
["کتاب 7",{"$f":"IF(book!C12=book!$N$4,5,IF(book!C12=book!$N$5,4,IF(book!C12=book!$N$6,2)))","v":false}]
["کتاب 8",{"$f":"IF(book!C13=book!$N$4,5,IF(book!C13=book!$N$5,4,IF(book!C13=book!$N$6,2)))","v":false}]
["کتاب 9",{"$f":"IF(book!C14=book!$N$4,5,IF(book!C14=book!$N$5,4,IF(book!C14=book!$N$6,2)))","v":false}]
["کتاب 10",{"$f":"IF(book!C15=book!$N$4,5,IF(book!C15=book!$N$5,4,IF(book!C15=book!$N$6,2)))","v":false}]
["کتاب 11",{"$f":"IF(book!C16=book!$N$4,5,IF(book!C16=book!$N$5,4,IF(book!C16=book!$N$6,2)))","v":false}]
["کتاب 12",{"$f":"IF(book!C17=book!$N$4,5,IF(book!C17=book!$N$5,4,IF(book!C17=book!$N$6,2)))","v":false}]
["کتاب 13",{"$f":"IF(book!C18=book!$N$4,5,IF(book!C18=book!$N$5,4,IF(book!C18=book!$N$6,2)))","v":false}]
["کتاب 14",{"$f":"IF(book!C19=book!$N$4,5,IF(book!C19=book!$N$5,4,IF(book!C19=book!$N$6,2)))","v":false}]
["کتاب 15",{"$f":"IF(book!C20=book!$N$4,5,IF(book!C20=book!$N$5,4,IF(book!C20=book!$N$6,2)))","v":false}]
["کتاب 16",{"$f":"IF(book!C21=book!$N$4,5,IF(book!C21=book!$N$5,4,IF(book!C21=book!$N$6,2)))","v":false}]
["کتاب 17",{"$f":"IF(book!C22=book!$N$4,5,IF(book!C22=book!$N$5,4,IF(book!C22=book!$N$6,2)))","v":false}]
["کتاب 18",{"$f":"IF(book!C23=book!$N$4,5,IF(book!C23=book!$N$5,4,IF(book!C23=book!$N$6,2)))","v":false}]
["کتاب 19",{"$f":"IF(book!C24=book!$N$4,5,IF(book!C24=book!$N$5,4,IF(book!C24=book!$N$6,2)))","v":false}]
["کتاب 20",{"$f":"IF(book!C25=book!$N$4,5,IF(book!C25=book!$N$5,4,IF(book!C25=book!$N$6,2)))","v":false}]
["کتاب 21",{"$f":"IF(book!C26=book!$N$4,5,IF(book!C26=book!$N$5,4,IF(book!C26=book!$N$6,2)))","v":false}]
["کتاب 22",{"$f":"IF(book!C27=book!$N$4,5,IF(book!C27=book!$N$5,4,IF(book!C27=book!$N$6,2)))","v":false}]
["کتاب 23",{"$f":"IF(book!C28=book!$N$4,5,IF(book!C28=book!$N$5,4,IF(book!C28=book!$N$6,2)))","v":false}]
["sum",{"$f":"SUM(B3:B25)","v":0}]
[]
[]
[]
[null,null,null,"کل نمره تالیف و ترجمه کتاب"]
[]
[]
[null,null,null,{"$f":"D3","v":0}]

{"sheet":"tarh","index":16,"n_rows":103,"n_cols":7,"rows_kept":103,"cut":false,"hidden":false,"merged":[]}
[]
["طرح 1",{"$f":"IF(proposal!F5=proposal!$P$3,0.75,IF(proposal!F5=proposal!$P$4,2,IF(proposal!F5=proposal!$P$5,5,IF(proposal!F5=proposal!$P$6,3))))","v":false},null,{"$f":"B2","v":false},null,null,{"$f":"IF(D103<=10,D103,IF(D103>10,10))","v":0}]
["طرح 2",{"$f":"IF(proposal!F6=proposal!$P$3,0.75,IF(proposal!F6=proposal!$P$4,2,IF(proposal!F6=proposal!$P$5,5,IF(proposal!F6=proposal!$P$6,3))))","v":false},null,{"$f":"B3","v":false}]
["طرح 3",{"$f":"IF(proposal!F7=proposal!$P$3,0.75,IF(proposal!F7=proposal!$P$4,2,IF(proposal!F7=proposal!$P$5,5,IF(proposal!F7=proposal!$P$6,3))))","v":false},null,false]
["طرح 4",{"$f":"IF(proposal!F8=proposal!$P$3,0.75,IF(proposal!F8=proposal!$P$4,2,IF(proposal!F8=proposal!$P$5,5,IF(proposal!F8=proposal!$P$6,3))))","v":false},null,false]
["طرح 5",{"$f":"IF(proposal!F9=proposal!$P$3,0.75,IF(proposal!F9=proposal!$P$4,2,IF(proposal!F9=proposal!$P$5,5,IF(proposal!F9=proposal!$P$6,3))))","v":false},null,false]
["طرح 6",{"$f":"IF(proposal!F10=proposal!$P$3,0.75,IF(proposal!F10=proposal!$P$4,2,IF(proposal!F10=proposal!$P$5,5,IF(proposal!F10=proposal!$P$6,3))))","v":false},null,false]
["طرح 7",{"$f":"IF(proposal!F11=proposal!$P$3,0.75,IF(proposal!F11=proposal!$P$4,2,IF(proposal!F11=proposal!$P$5,5,IF(proposal!F11=proposal!$P$6,3))))","v":false},null,false]
["طرح 8",{"$f":"IF(proposal!F12=proposal!$P$3,0.75,IF(proposal!F12=proposal!$P$4,2,IF(proposal!F12=proposal!$P$5,5,IF(proposal!F12=proposal!$P$6,3))))","v":false},null,false]
["طرح 9",{"$f":"IF(proposal!F13=proposal!$P$3,0.75,IF(proposal!F13=proposal!$P$4,2,IF(proposal!F13=proposal!$P$5,5,IF(proposal!F13=proposal!$P$6,3))))","v":false},null,false]
["طرح 10",{"$f":"IF(proposal!F14=proposal!$P$3,0.75,IF(proposal!F14=proposal!$P$4,2,IF(proposal!F14=proposal!$P$5,5,IF(proposal!F14=proposal!$P$6,3))))","v":false},null,false]
["طرح 11",{"$f":"IF(proposal!F15=proposal!$P$3,0.75,IF(proposal!F15=proposal!$P$4,2,IF(proposal!F15=proposal!$P$5,5,IF(proposal!F15=proposal!$P$6,3))))","v":false},null,false]
["طرح 12",{"$f":"IF(proposal!F16=proposal!$P$3,0.75,IF(proposal!F16=proposal!$P$4,2,IF(proposal!F16=proposal!$P$5,5,IF(proposal!F16=proposal!$P$6,3))))","v":false},null,false]
["طرح 13",{"$f":"IF(proposal!F17=proposal!$P$3,0.75,IF(proposal!F17=proposal!$P$4,2,IF(proposal!F17=proposal!$P$5,5,IF(proposal!F17=proposal!$P$6,3))))","v":false},null,false]
["طرح 14",{"$f":"IF(proposal!F18=proposal!$P$3,0.75,IF(proposal!F18=proposal!$P$4,2,IF(proposal!F18=proposal!$P$5,5,IF(proposal!F18=proposal!$P$6,3))))","v":false},null,false]
["طرح 15",{"$f":"IF(proposal!F19=proposal!$P$3,0.75,IF(proposal!F19=proposal!$P$4,2,IF(proposal!F19=proposal!$P$5,5,IF(proposal!F19=proposal!$P$6,3))))","v":false},null,false]
["طرح 16",{"$f":"IF(proposal!F20=proposal!$P$3,0.75,IF(proposal!F20=proposal!$P$4,2,IF(proposal!F20=proposal!$P$5,5,IF(proposal!F20=proposal!$P$6,3))))","v":false},null,false]
["طرح 17",{"$f":"IF(proposal!F21=proposal!$P$3,0.75,IF(proposal!F21=proposal!$P$4,2,IF(proposal!F21=proposal!$P$5,5,IF(proposal!F21=proposal!$P$6,3))))","v":false},null,false]
["طرح 18",{"$f":"IF(proposal!F22=proposal!$P$3,0.75,IF(proposal!F22=proposal!$P$4,2,IF(proposal!F22=proposal!$P$5,5,IF(proposal!F22=proposal!$P$6,3))))","v":false},null,false]
["طرح 19",{"$f":"IF(proposal!F23=proposal!$P$3,0.75,IF(proposal!F23=proposal!$P$4,2,IF(proposal!F23=proposal!$P$5,5,IF(proposal!F23=proposal!$P$6,3))))","v":false},null,false]
["طرح 20",{"$f":"IF(proposal!F24=proposal!$P$3,0.75,IF(proposal!F24=proposal!$P$4,2,IF(proposal!F24=proposal!$P$5,5,IF(proposal!F24=proposal!$P$6,3))))","v":false},null,false]
["طرح 21",{"$f":"IF(proposal!F25=proposal!$P$3,0.75,IF(proposal!F25=proposal!$P$4,2,IF(proposal!F25=proposal!$P$5,5,IF(proposal!F25=proposal!$P$6,3))))","v":false},null,false]
["طرح 22",{"$f":"IF(proposal!F26=proposal!$P$3,0.75,IF(proposal!F26=proposal!$P$4,2,IF(proposal!F26=proposal!$P$5,5,IF(proposal!F26=proposal!$P$6,3))))","v":false},null,false]
["طرح 23",{"$f":"IF(proposal!F27=proposal!$P$3,0.75,IF(proposal!F27=proposal!$P$4,2,IF(proposal!F27=proposal!$P$5,5,IF(proposal!F27=proposal!$P$6,3))))","v":false},null,false]
["طرح 24",{"$f":"IF(proposal!F28=proposal!$P$3,0.75,IF(proposal!F28=proposal!$P$4,2,IF(proposal!F28=proposal!$P$5,5,IF(proposal!F28=proposal!$P$6,3))))","v":false},null,false]
["طرح 25",{"$f":"IF(proposal!F29=proposal!$P$3,0.75,IF(proposal!F29=proposal!$P$4,2,IF(proposal!F29=proposal!$P$5,5,IF(proposal!F29=proposal!$P$6,3))))","v":false},null,false]
["طرح 26",{"$f":"IF(proposal!F30=proposal!$P$3,0.75,IF(proposal!F30=proposal!$P$4,2,IF(proposal!F30=proposal!$P$5,5,IF(proposal!F30=proposal!$P$6,3))))","v":false},null,false]
["طرح 27",{"$f":"IF(proposal!F31=proposal!$P$3,0.75,IF(proposal!F31=proposal!$P$4,2,IF(proposal!F31=proposal!$P$5,5,IF(proposal!F31=proposal!$P$6,3))))","v":false},null,false]
["طرح 28",{"$f":"IF(proposal!F32=proposal!$P$3,0.75,IF(proposal!F32=proposal!$P$4,2,IF(proposal!F32=proposal!$P$5,5,IF(proposal!F32=proposal!$P$6,3))))","v":false},null,false]
["طرح 29",{"$f":"IF(proposal!F33=proposal!$P$3,0.75,IF(proposal!F33=proposal!$P$4,2,IF(proposal!F33=proposal!$P$5,5,IF(proposal!F33=proposal!$P$6,3))))","v":false},null,false]
["طرح 30",{"$f":"IF(proposal!F34=proposal!$P$3,0.75,IF(proposal!F34=proposal!$P$4,2,IF(proposal!F34=proposal!$P$5,5,IF(proposal!F34=proposal!$P$6,3))))","v":false},null,false]
["طرح 31",{"$f":"IF(proposal!F35=proposal!$P$3,0.75,IF(proposal!F35=proposal!$P$4,2,IF(proposal!F35=proposal!$P$5,5,IF(proposal!F35=proposal!$P$6,3))))","v":false},null,false]
["طرح 32",{"$f":"IF(proposal!F36=proposal!$P$3,0.75,IF(proposal!F36=proposal!$P$4,2,IF(proposal!F36=proposal!$P$5,5,IF(proposal!F36=proposal!$P$6,3))))","v":false},null,false]
["طرح 33",{"$f":"IF(proposal!F37=proposal!$P$3,0.75,IF(proposal!F37=proposal!$P$4,2,IF(proposal!F37=proposal!$P$5,5,IF(proposal!F37=proposal!$P$6,3))))","v":false},null,false]
["طرح 34",{"$f":"IF(proposal!F38=proposal!$P$3,0.75,IF(proposal!F38=proposal!$P$4,2,IF(proposal!F38=proposal!$P$5,5,IF(proposal!F38=proposal!$P$6,3))))","v":false},null,false]
["طرح 35",{"$f":"IF(proposal!F39=proposal!$P$3,0.75,IF(proposal!F39=proposal!$P$4,2,IF(proposal!F39=proposal!$P$5,5,IF(proposal!F39=proposal!$P$6,3))))","v":false},null,false]
["طرح 36",{"$f":"IF(proposal!F40=proposal!$P$3,0.75,IF(proposal!F40=proposal!$P$4,2,IF(proposal!F40=proposal!$P$5,5,IF(proposal!F40=proposal!$P$6,3))))","v":false},null,false]
["طرح 37",{"$f":"IF(proposal!F41=proposal!$P$3,0.75,IF(proposal!F41=proposal!$P$4,2,IF(proposal!F41=proposal!$P$5,5,IF(proposal!F41=proposal!$P$6,3))))","v":false},null,false]
["طرح 38",{"$f":"IF(proposal!F42=proposal!$P$3,0.75,IF(proposal!F42=proposal!$P$4,2,IF(proposal!F42=proposal!$P$5,5,IF(proposal!F42=proposal!$P$6,3))))","v":false},null,false]
["طرح 39",{"$f":"IF(proposal!F43=proposal!$P$3,0.75,IF(proposal!F43=proposal!$P$4,2,IF(proposal!F43=proposal!$P$5,5,IF(proposal!F43=proposal!$P$6,3))))","v":false},null,false]
["طرح 40",{"$f":"IF(proposal!F44=proposal!$P$3,0.75,IF(proposal!F44=proposal!$P$4,2,IF(proposal!F44=proposal!$P$5,5,IF(proposal!F44=proposal!$P$6,3))))","v":false},null,false]
["طرح 41",{"$f":"IF(proposal!F45=proposal!$P$3,0.75,IF(proposal!F45=proposal!$P$4,2,IF(proposal!F45=proposal!$P$5,5,IF(proposal!F45=proposal!$P$6,3))))","v":false},null,false]
["طرح 42",{"$f":"IF(proposal!F46=proposal!$P$3,0.75,IF(proposal!F46=proposal!$P$4,2,IF(proposal!F46=proposal!$P$5,5,IF(proposal!F46=proposal!$P$6,3))))","v":false},null,false]
["طرح 43",{"$f":"IF(proposal!F47=proposal!$P$3,0.75,IF(proposal!F47=proposal!$P$4,2,IF(proposal!F47=proposal!$P$5,5,IF(proposal!F47=proposal!$P$6,3))))","v":false},null,false]
["طرح 44",{"$f":"IF(proposal!F48=proposal!$P$3,0.75,IF(proposal!F48=proposal!$P$4,2,IF(proposal!F48=proposal!$P$5,5,IF(proposal!F48=proposal!$P$6,3))))","v":false},null,false]
["طرح 45",{"$f":"IF(proposal!F49=proposal!$P$3,0.75,IF(proposal!F49=proposal!$P$4,2,IF(proposal!F49=proposal!$P$5,5,IF(proposal!F49=proposal!$P$6,3))))","v":false},null,false]
["طرح 46",{"$f":"IF(proposal!F50=proposal!$P$3,0.75,IF(proposal!F50=proposal!$P$4,2,IF(proposal!F50=proposal!$P$5,5,IF(proposal!F50=proposal!$P$6,3))))","v":false},null,false]
["طرح 47",{"$f":"IF(proposal!F51=proposal!$P$3,0.75,IF(proposal!F51=proposal!$P$4,2,IF(proposal!F51=proposal!$P$5,5,IF(proposal!F51=proposal!$P$6,3))))","v":false},null,false]
["طرح 48",{"$f":"IF(proposal!F52=proposal!$P$3,0.75,IF(proposal!F52=proposal!$P$4,2,IF(proposal!F52=proposal!$P$5,5,IF(proposal!F52=proposal!$P$6,3))))","v":false},null,false]
["طرح 49",{"$f":"IF(proposal!F53=proposal!$P$3,0.75,IF(proposal!F53=proposal!$P$4,2,IF(proposal!F53=proposal!$P$5,5,IF(proposal!F53=proposal!$P$6,3))))","v":false},null,false]
["طرح 50",{"$f":"IF(proposal!F54=proposal!$P$3,0.75,IF(proposal!F54=proposal!$P$4,2,IF(proposal!F54=proposal!$P$5,5,IF(proposal!F54=proposal!$P$6,3))))","v":false},null,false]
["طرح 51",{"$f":"IF(proposal!F55=proposal!$P$3,0.75,IF(proposal!F55=proposal!$P$4,2,IF(proposal!F55=proposal!$P$5,5,IF(proposal!F55=proposal!$P$6,3))))","v":false},null,false]
["طرح 52",{"$f":"IF(proposal!F56=proposal!$P$3,0.75,IF(proposal!F56=proposal!$P$4,2,IF(proposal!F56=proposal!$P$5,5,IF(proposal!F56=proposal!$P$6,3))))","v":false},null,false]
["طرح 53",{"$f":"IF(proposal!F57=proposal!$P$3,0.75,IF(proposal!F57=proposal!$P$4,2,IF(proposal!F57=proposal!$P$5,5,IF(proposal!F57=proposal!$P$6,3))))","v":false},null,false]
["طرح 54",{"$f":"IF(proposal!F58=proposal!$P$3,0.75,IF(proposal!F58=proposal!$P$4,2,IF(proposal!F58=proposal!$P$5,5,IF(proposal!F58=proposal!$P$6,3))))","v":false},null,false]
["طرح 55",{"$f":"IF(proposal!F59=proposal!$P$3,0.75,IF(proposal!F59=proposal!$P$4,2,IF(proposal!F59=proposal!$P$5,5,IF(proposal!F59=proposal!$P$6,3))))","v":false},null,false]
["طرح 56",{"$f":"IF(proposal!F60=proposal!$P$3,0.75,IF(proposal!F60=proposal!$P$4,2,IF(proposal!F60=proposal!$P$5,5,IF(proposal!F60=proposal!$P$6,3))))","v":false},null,false]
["طرح 57",{"$f":"IF(proposal!F61=proposal!$P$3,0.75,IF(proposal!F61=proposal!$P$4,2,IF(proposal!F61=proposal!$P$5,5,IF(proposal!F61=proposal!$P$6,3))))","v":false},null,false]
["طرح 58",{"$f":"IF(proposal!F62=proposal!$P$3,0.75,IF(proposal!F62=proposal!$P$4,2,IF(proposal!F62=proposal!$P$5,5,IF(proposal!F62=proposal!$P$6,3))))","v":false},null,false]
["طرح 59",{"$f":"IF(proposal!F63=proposal!$P$3,0.75,IF(proposal!F63=proposal!$P$4,2,IF(proposal!F63=proposal!$P$5,5,IF(proposal!F63=proposal!$P$6,3))))","v":false},null,false]
["طرح 60",{"$f":"IF(proposal!F64=proposal!$P$3,0.75,IF(proposal!F64=proposal!$P$4,2,IF(proposal!F64=proposal!$P$5,5,IF(proposal!F64=proposal!$P$6,3))))","v":false},null,false]
["طرح 61",{"$f":"IF(proposal!F65=proposal!$P$3,0.75,IF(proposal!F65=proposal!$P$4,2,IF(proposal!F65=proposal!$P$5,5,IF(proposal!F65=proposal!$P$6,3))))","v":false},null,false]
["طرح 62",{"$f":"IF(proposal!F66=proposal!$P$3,0.75,IF(proposal!F66=proposal!$P$4,2,IF(proposal!F66=proposal!$P$5,5,IF(proposal!F66=proposal!$P$6,3))))","v":false},null,false]
["طرح 63",{"$f":"IF(proposal!F67=proposal!$P$3,0.75,IF(proposal!F67=proposal!$P$4,2,IF(proposal!F67=proposal!$P$5,5,IF(proposal!F67=proposal!$P$6,3))))","v":false},null,false]
["طرح 64",{"$f":"IF(proposal!F68=proposal!$P$3,0.75,IF(proposal!F68=proposal!$P$4,2,IF(proposal!F68=proposal!$P$5,5,IF(proposal!F68=proposal!$P$6,3))))","v":false},null,false]
["طرح 65",{"$f":"IF(proposal!F69=proposal!$P$3,0.75,IF(proposal!F69=proposal!$P$4,2,IF(proposal!F69=proposal!$P$5,5,IF(proposal!F69=proposal!$P$6,3))))","v":false},null,false]
["طرح 66",{"$f":"IF(proposal!F70=proposal!$P$3,0.75,IF(proposal!F70=proposal!$P$4,2,IF(proposal!F70=proposal!$P$5,5,IF(proposal!F70=proposal!$P$6,3))))","v":false},null,{"$f":"B67","v":false}]
["طرح 67",{"$f":"IF(proposal!F71=proposal!$P$3,0.75,IF(proposal!F71=proposal!$P$4,2,IF(proposal!F71=proposal!$P$5,5,IF(proposal!F71=proposal!$P$6,3))))","v":false},null,false]
["طرح 68",{"$f":"IF(proposal!F72=proposal!$P$3,0.75,IF(proposal!F72=proposal!$P$4,2,IF(proposal!F72=proposal!$P$5,5,IF(proposal!F72=proposal!$P$6,3))))","v":false},null,false]
["طرح 69",{"$f":"IF(proposal!F73=proposal!$P$3,0.75,IF(proposal!F73=proposal!$P$4,2,IF(proposal!F73=proposal!$P$5,5,IF(proposal!F73=proposal!$P$6,3))))","v":false},null,false]
["طرح 70",{"$f":"IF(proposal!F74=proposal!$P$3,0.75,IF(proposal!F74=proposal!$P$4,2,IF(proposal!F74=proposal!$P$5,5,IF(proposal!F74=proposal!$P$6,3))))","v":false},null,false]
["طرح 71",{"$f":"IF(proposal!F75=proposal!$P$3,0.75,IF(proposal!F75=proposal!$P$4,2,IF(proposal!F75=proposal!$P$5,5,IF(proposal!F75=proposal!$P$6,3))))","v":false},null,false]
["طرح 72",{"$f":"IF(proposal!F76=proposal!$P$3,0.75,IF(proposal!F76=proposal!$P$4,2,IF(proposal!F76=proposal!$P$5,5,IF(proposal!F76=proposal!$P$6,3))))","v":false},null,false]
["طرح 73",{"$f":"IF(proposal!F77=proposal!$P$3,0.75,IF(proposal!F77=proposal!$P$4,2,IF(proposal!F77=proposal!$P$5,5,IF(proposal!F77=proposal!$P$6,3))))","v":false},null,false]
["طرح 74",{"$f":"IF(proposal!F78=proposal!$P$3,0.75,IF(proposal!F78=proposal!$P$4,2,IF(proposal!F78=proposal!$P$5,5,IF(proposal!F78=proposal!$P$6,3))))","v":false},null,false]
["طرح 75",{"$f":"IF(proposal!F79=proposal!$P$3,0.75,IF(proposal!F79=proposal!$P$4,2,IF(proposal!F79=proposal!$P$5,5,IF(proposal!F79=proposal!$P$6,3))))","v":false},null,false]
["طرح 76",{"$f":"IF(proposal!F80=proposal!$P$3,0.75,IF(proposal!F80=proposal!$P$4,2,IF(proposal!F80=proposal!$P$5,5,IF(proposal!F80=proposal!$P$6,3))))","v":false},null,false]
["طرح 77",{"$f":"IF(proposal!F81=proposal!$P$3,0.75,IF(proposal!F81=proposal!$P$4,2,IF(proposal!F81=proposal!$P$5,5,IF(proposal!F81=proposal!$P$6,3))))","v":false},null,false]
["طرح 78",{"$f":"IF(proposal!F82=proposal!$P$3,0.75,IF(proposal!F82=proposal!$P$4,2,IF(proposal!F82=proposal!$P$5,5,IF(proposal!F82=proposal!$P$6,3))))","v":false},null,false]
["طرح 79",{"$f":"IF(proposal!F83=proposal!$P$3,0.75,IF(proposal!F83=proposal!$P$4,2,IF(proposal!F83=proposal!$P$5,5,IF(proposal!F83=proposal!$P$6,3))))","v":false},null,false]
["طرح 80",{"$f":"IF(proposal!F84=proposal!$P$3,0.75,IF(proposal!F84=proposal!$P$4,2,IF(proposal!F84=proposal!$P$5,5,IF(proposal!F84=proposal!$P$6,3))))","v":false},null,false]
["طرح 81",{"$f":"IF(proposal!F85=proposal!$P$3,0.75,IF(proposal!F85=proposal!$P$4,2,IF(proposal!F85=proposal!$P$5,5,IF(proposal!F85=proposal!$P$6,3))))","v":false},null,false]
["طرح 82",{"$f":"IF(proposal!F86=proposal!$P$3,0.75,IF(proposal!F86=proposal!$P$4,2,IF(proposal!F86=proposal!$P$5,5,IF(proposal!F86=proposal!$P$6,3))))","v":false},null,false]
["طرح 83",{"$f":"IF(proposal!F87=proposal!$P$3,0.75,IF(proposal!F87=proposal!$P$4,2,IF(proposal!F87=proposal!$P$5,5,IF(proposal!F87=proposal!$P$6,3))))","v":false},null,false]
["طرح 84",{"$f":"IF(proposal!F88=proposal!$P$3,0.75,IF(proposal!F88=proposal!$P$4,2,IF(proposal!F88=proposal!$P$5,5,IF(proposal!F88=proposal!$P$6,3))))","v":false},null,false]
["طرح 85",{"$f":"IF(proposal!F89=proposal!$P$3,0.75,IF(proposal!F89=proposal!$P$4,2,IF(proposal!F89=proposal!$P$5,5,IF(proposal!F89=proposal!$P$6,3))))","v":false},null,false]
["طرح 86",{"$f":"IF(proposal!F90=proposal!$P$3,0.75,IF(proposal!F90=proposal!$P$4,2,IF(proposal!F90=proposal!$P$5,5,IF(proposal!F90=proposal!$P$6,3))))","v":false},null,false]
["طرح 87",{"$f":"IF(proposal!F91=proposal!$P$3,0.75,IF(proposal!F91=proposal!$P$4,2,IF(proposal!F91=proposal!$P$5,5,IF(proposal!F91=proposal!$P$6,3))))","v":false},null,false]
["طرح 88",{"$f":"IF(proposal!F92=proposal!$P$3,0.75,IF(proposal!F92=proposal!$P$4,2,IF(proposal!F92=proposal!$P$5,5,IF(proposal!F92=proposal!$P$6,3))))","v":false},null,false]
["طرح 89",{"$f":"IF(proposal!F93=proposal!$P$3,0.75,IF(proposal!F93=proposal!$P$4,2,IF(proposal!F93=proposal!$P$5,5,IF(proposal!F93=proposal!$P$6,3))))","v":false},null,false]
["طرح 90",{"$f":"IF(proposal!F94=proposal!$P$3,0.75,IF(proposal!F94=proposal!$P$4,2,IF(proposal!F94=proposal!$P$5,5,IF(proposal!F94=proposal!$P$6,3))))","v":false},null,false]
["طرح 91",{"$f":"IF(proposal!F95=proposal!$P$3,0.75,IF(proposal!F95=proposal!$P$4,2,IF(proposal!F95=proposal!$P$5,5,IF(proposal!F95=proposal!$P$6,3))))","v":false},null,false]
["طرح 92",{"$f":"IF(proposal!F96=proposal!$P$3,0.75,IF(proposal!F96=proposal!$P$4,2,IF(proposal!F96=proposal!$P$5,5,IF(proposal!F96=proposal!$P$6,3))))","v":false},null,false]
["طرح 93",{"$f":"IF(proposal!F97=proposal!$P$3,0.75,IF(proposal!F97=proposal!$P$4,2,IF(proposal!F97=proposal!$P$5,5,IF(proposal!F97=proposal!$P$6,3))))","v":false},null,false]
["طرح 94",{"$f":"IF(proposal!F98=proposal!$P$3,0.75,IF(proposal!F98=proposal!$P$4,2,IF(proposal!F98=proposal!$P$5,5,IF(proposal!F98=proposal!$P$6,3))))","v":false},null,false]
["طرح 95",{"$f":"IF(proposal!F99=proposal!$P$3,0.75,IF(proposal!F99=proposal!$P$4,2,IF(proposal!F99=proposal!$P$5,5,IF(proposal!F99=proposal!$P$6,3))))","v":false},null,false]
["طرح 96",{"$f":"IF(proposal!F100=proposal!$P$3,0.75,IF(proposal!F100=proposal!$P$4,2,IF(proposal!F100=proposal!$P$5,5,IF(proposal!F100=proposal!$P$6,3))))","v":false},null,false]
["طرح 97",{"$f":"IF(proposal!F101=proposal!$P$3,0.75,IF(proposal!F101=proposal!$P$4,2,IF(proposal!F101=proposal!$P$5,5,IF(proposal!F101=proposal!$P$6,3))))","v":false},null,false]
["طرح 98",{"$f":"IF(proposal!F102=proposal!$P$3,0.75,IF(proposal!F102=proposal!$P$4,2,IF(proposal!F102=proposal!$P$5,5,IF(proposal!F102=proposal!$P$6,3))))","v":false},null,false]
["طرح 99",{"$f":"IF(proposal!F103=proposal!$P$3,0.75,IF(proposal!F103=proposal!$P$4,2,IF(proposal!F103=proposal!$P$5,5,IF(proposal!F103=proposal!$P$6,3))))","v":false},null,false]
["طرح 100",{"$f":"IF(proposal!F104=proposal!$P$3,0.75,IF(proposal!F104=proposal!$P$4,2,IF(proposal!F104=proposal!$P$5,5,IF(proposal!F104=proposal!$P$6,3))))","v":false},null,false]
[]
[null,null,null,{"$f":"SUM(D2:D101)","v":0}]

{"sheet":"hamayesh","index":17,"n_rows":40,"n_cols":5,"rows_kept":40,"cut":false,"hidden":false,"merged":[]}
[]
["شماره 1",{"$f":"IF(conference!E5=conference!$L$2,0.25,IF(conference!E5=conference!$L$3,0.25,IF(conference!E5=conference!$L$4,0.5,IF(conference!E5=conference!$L$5,0.5))))","v":false},null,null,"امتیاز همایش"]
["شماره 2",{"$f":"IF(conference!E6=conference!$L$2,0.25,IF(conference!E6=conference!$L$3,0.25,IF(conference!E6=conference!$L$4,0.5,IF(conference!E6=conference!$L$5,0.5))))","v":false},null,null,{"$f":"IF(B40=0,0,IF(B40=0.25,0.25,IF(B40=0.5,0.5,IF(B40=0.75,0.75,IF(B40=1,1,IF(B40=1.25,1.25,IF(B40=1.5,1.5,IF(B40=1.75,1.75,IF(B40>1.75,2)))))))))","v":0}]
["شماره 3",{"$f":"IF(conference!E7=conference!$L$2,0.25,IF(conference!E7=conference!$L$3,0.25,IF(conference!E7=conference!$L$4,0.5,IF(conference!E7=conference!$L$5,0.5))))","v":false}]
["شماره 4",{"$f":"IF(conference!E8=conference!$L$2,0.25,IF(conference!E8=conference!$L$3,0.25,IF(conference!E8=conference!$L$4,0.5,IF(conference!E8=conference!$L$5,0.5))))","v":false}]
["شماره 5",{"$f":"IF(conference!E9=conference!$L$2,0.25,IF(conference!E9=conference!$L$3,0.25,IF(conference!E9=conference!$L$4,0.5,IF(conference!E9=conference!$L$5,0.5))))","v":false}]
["شماره 6",{"$f":"IF(conference!E10=conference!$L$2,0.25,IF(conference!E10=conference!$L$3,0.25,IF(conference!E10=conference!$L$4,0.5,IF(conference!E10=conference!$L$5,0.5))))","v":false}]
["شماره 7",{"$f":"IF(conference!E11=conference!$L$2,0.25,IF(conference!E11=conference!$L$3,0.25,IF(conference!E11=conference!$L$4,0.5,IF(conference!E11=conference!$L$5,0.5))))","v":false}]
["شماره 8",{"$f":"IF(conference!E12=conference!$L$2,0.25,IF(conference!E12=conference!$L$3,0.25,IF(conference!E12=conference!$L$4,0.5,IF(conference!E12=conference!$L$5,0.5))))","v":false}]
["شماره 9",{"$f":"IF(conference!E13=conference!$L$2,0.25,IF(conference!E13=conference!$L$3,0.25,IF(conference!E13=conference!$L$4,0.5,IF(conference!E13=conference!$L$5,0.5))))","v":false}]
["شماره 10",{"$f":"IF(conference!E14=conference!$L$2,0.25,IF(conference!E14=conference!$L$3,0.25,IF(conference!E14=conference!$L$4,0.5,IF(conference!E14=conference!$L$5,0.5))))","v":false}]
["شماره 11",{"$f":"IF(conference!E15=conference!$L$2,0.25,IF(conference!E15=conference!$L$3,0.25,IF(conference!E15=conference!$L$4,0.5,IF(conference!E15=conference!$L$5,0.5))))","v":false}]
["شماره 12",{"$f":"IF(conference!E16=conference!$L$2,0.25,IF(conference!E16=conference!$L$3,0.25,IF(conference!E16=conference!$L$4,0.5,IF(conference!E16=conference!$L$5,0.5))))","v":false}]
["شماره 13",{"$f":"IF(conference!E17=conference!$L$2,0.25,IF(conference!E17=conference!$L$3,0.25,IF(conference!E17=conference!$L$4,0.5,IF(conference!E17=conference!$L$5,0.5))))","v":false}]
["شماره 14",{"$f":"IF(conference!E18=conference!$L$2,0.25,IF(conference!E18=conference!$L$3,0.25,IF(conference!E18=conference!$L$4,0.5,IF(conference!E18=conference!$L$5,0.5))))","v":false}]
["شماره 15",{"$f":"IF(conference!E19=conference!$L$2,0.25,IF(conference!E19=conference!$L$3,0.25,IF(conference!E19=conference!$L$4,0.5,IF(conference!E19=conference!$L$5,0.5))))","v":false}]
["شماره 16",{"$f":"IF(conference!E20=conference!$L$2,0.25,IF(conference!E20=conference!$L$3,0.25,IF(conference!E20=conference!$L$4,0.5,IF(conference!E20=conference!$L$5,0.5))))","v":false}]
["شماره 17",{"$f":"IF(conference!E21=conference!$L$2,0.25,IF(conference!E21=conference!$L$3,0.25,IF(conference!E21=conference!$L$4,0.5,IF(conference!E21=conference!$L$5,0.5))))","v":false}]
["شماره 18",{"$f":"IF(conference!E22=conference!$L$2,0.25,IF(conference!E22=conference!$L$3,0.25,IF(conference!E22=conference!$L$4,0.5,IF(conference!E22=conference!$L$5,0.5))))","v":false}]
["شماره 19",{"$f":"IF(conference!E23=conference!$L$2,0.25,IF(conference!E23=conference!$L$3,0.25,IF(conference!E23=conference!$L$4,0.5,IF(conference!E23=conference!$L$5,0.5))))","v":false}]
["شماره 20",{"$f":"IF(conference!E24=conference!$L$2,0.25,IF(conference!E24=conference!$L$3,0.25,IF(conference!E24=conference!$L$4,0.5,IF(conference!E24=conference!$L$5,0.5))))","v":false}]
["شماره 21",{"$f":"IF(conference!E25=conference!$L$2,0.25,IF(conference!E25=conference!$L$3,0.25,IF(conference!E25=conference!$L$4,0.5,IF(conference!E25=conference!$L$5,0.5))))","v":false}]
["شماره 22",{"$f":"IF(conference!E26=conference!$L$2,0.25,IF(conference!E26=conference!$L$3,0.25,IF(conference!E26=conference!$L$4,0.5,IF(conference!E26=conference!$L$5,0.5))))","v":false}]
["شماره 23",{"$f":"IF(conference!E27=conference!$L$2,0.25,IF(conference!E27=conference!$L$3,0.25,IF(conference!E27=conference!$L$4,0.5,IF(conference!E27=conference!$L$5,0.5))))","v":false}]
["شماره 24",{"$f":"IF(conference!E28=conference!$L$2,0.25,IF(conference!E28=conference!$L$3,0.25,IF(conference!E28=conference!$L$4,0.5,IF(conference!E28=conference!$L$5,0.5))))","v":false}]
["شماره 25",{"$f":"IF(conference!E29=conference!$L$2,0.25,IF(conference!E29=conference!$L$3,0.25,IF(conference!E29=conference!$L$4,0.5,IF(conference!E29=conference!$L$5,0.5))))","v":false}]
["شماره 26",{"$f":"IF(conference!E30=conference!$L$2,0.25,IF(conference!E30=conference!$L$3,0.25,IF(conference!E30=conference!$L$4,0.5,IF(conference!E30=conference!$L$5,0.5))))","v":false}]
["شماره 27",{"$f":"IF(conference!E31=conference!$L$2,0.25,IF(conference!E31=conference!$L$3,0.25,IF(conference!E31=conference!$L$4,0.5,IF(conference!E31=conference!$L$5,0.5))))","v":false}]
["شماره 28",{"$f":"IF(conference!E32=conference!$L$2,0.25,IF(conference!E32=conference!$L$3,0.25,IF(conference!E32=conference!$L$4,0.5,IF(conference!E32=conference!$L$5,0.5))))","v":false}]
["شماره 29",{"$f":"IF(conference!E33=conference!$L$2,0.25,IF(conference!E33=conference!$L$3,0.25,IF(conference!E33=conference!$L$4,0.5,IF(conference!E33=conference!$L$5,0.5))))","v":false}]
["شماره 30",{"$f":"IF(conference!E34=conference!$L$2,0.25,IF(conference!E34=conference!$L$3,0.25,IF(conference!E34=conference!$L$4,0.5,IF(conference!E34=conference!$L$5,0.5))))","v":false}]
["شماره 31",{"$f":"IF(conference!E35=conference!$L$2,0.25,IF(conference!E35=conference!$L$3,0.25,IF(conference!E35=conference!$L$4,0.5,IF(conference!E35=conference!$L$5,0.5))))","v":false}]
["شماره 32",{"$f":"IF(conference!E36=conference!$L$2,0.25,IF(conference!E36=conference!$L$3,0.25,IF(conference!E36=conference!$L$4,0.5,IF(conference!E36=conference!$L$5,0.5))))","v":false}]
["شماره 33",{"$f":"IF(conference!E37=conference!$L$2,0.25,IF(conference!E37=conference!$L$3,0.25,IF(conference!E37=conference!$L$4,0.5,IF(conference!E37=conference!$L$5,0.5))))","v":false}]
["شماره 34",{"$f":"IF(conference!E38=conference!$L$2,0.25,IF(conference!E38=conference!$L$3,0.25,IF(conference!E38=conference!$L$4,0.5,IF(conference!E38=conference!$L$5,0.5))))","v":false}]
["شماره 35",{"$f":"IF(conference!E39=conference!$L$2,0.25,IF(conference!E39=conference!$L$3,0.25,IF(conference!E39=conference!$L$4,0.5,IF(conference!E39=conference!$L$5,0.5))))","v":false}]
["شماره 36",{"$f":"IF(conference!E40=conference!$L$2,0.25,IF(conference!E40=conference!$L$3,0.25,IF(conference!E40=conference!$L$4,0.5,IF(conference!E40=conference!$L$5,0.5))))","v":false}]
["شماره 37",{"$f":"IF(conference!E41=conference!$L$2,0.25,IF(conference!E41=conference!$L$3,0.25,IF(conference!E41=conference!$L$4,0.5,IF(conference!E41=conference!$L$5,0.5))))","v":false}]
[]
[null,{"$f":"SUM(B2:B38)","v":0}]

{"sheet":"majaleh","index":18,"n_rows":21,"n_cols":4,"rows_kept":21,"cut":false,"hidden":false,"merged":[]}
[]
[]
[1,{"$f":"IF(journals!D9=journals!$H$11,5,IF(journals!D9=journals!$H$10,4,IF(journals!D9=journals!$H$9,4,IF(journals!D9=journals!$H$8,2,IF(journals!D9=journals!$H$7,2)))))","v":false},null,{"$f":"IF(B21<=5,B21,IF(B21>5,5))","v":0}]
[2,{"$f":"IF(journals!D10=journals!$H$11,5,IF(journals!D10=journals!$H$10,4,IF(journals!D10=journals!$H$9,4,IF(journals!D10=journals!$H$8,2,IF(journals!D10=journals!$H$7,2)))))","v":false}]
[3,{"$f":"IF(journals!D11=journals!$H$11,5,IF(journals!D11=journals!$H$10,4,IF(journals!D11=journals!$H$9,4,IF(journals!D11=journals!$H$8,2,IF(journals!D11=journals!$H$7,2)))))","v":false}]
[4,{"$f":"IF(journals!D12=journals!$H$11,5,IF(journals!D12=journals!$H$10,4,IF(journals!D12=journals!$H$9,4,IF(journals!D12=journals!$H$8,2,IF(journals!D12=journals!$H$7,2)))))","v":false}]
[5,{"$f":"IF(journals!D13=journals!$H$11,5,IF(journals!D13=journals!$H$10,4,IF(journals!D13=journals!$H$9,4,IF(journals!D13=journals!$H$8,2,IF(journals!D13=journals!$H$7,2)))))","v":false}]
[6,{"$f":"IF(journals!D14=journals!$H$11,5,IF(journals!D14=journals!$H$10,4,IF(journals!D14=journals!$H$9,4,IF(journals!D14=journals!$H$8,2,IF(journals!D14=journals!$H$7,2)))))","v":false}]
[7,{"$f":"IF(journals!D15=journals!$H$11,5,IF(journals!D15=journals!$H$10,4,IF(journals!D15=journals!$H$9,4,IF(journals!D15=journals!$H$8,2,IF(journals!D15=journals!$H$7,2)))))","v":false}]
[8,{"$f":"IF(journals!D16=journals!$H$11,5,IF(journals!D16=journals!$H$10,4,IF(journals!D16=journals!$H$9,4,IF(journals!D16=journals!$H$8,2,IF(journals!D16=journals!$H$7,2)))))","v":false}]
[9,{"$f":"IF(journals!D17=journals!$H$11,5,IF(journals!D17=journals!$H$10,4,IF(journals!D17=journals!$H$9,4,IF(journals!D17=journals!$H$8,2,IF(journals!D17=journals!$H$7,2)))))","v":false}]
[10,{"$f":"IF(journals!D18=journals!$H$11,5,IF(journals!D18=journals!$H$10,4,IF(journals!D18=journals!$H$9,4,IF(journals!D18=journals!$H$8,2,IF(journals!D18=journals!$H$7,2)))))","v":false}]
[11,{"$f":"IF(journals!D19=journals!$H$11,5,IF(journals!D19=journals!$H$10,4,IF(journals!D19=journals!$H$9,4,IF(journals!D19=journals!$H$8,2,IF(journals!D19=journals!$H$7,2)))))","v":false}]
[12,{"$f":"IF(journals!D20=journals!$H$11,5,IF(journals!D20=journals!$H$10,4,IF(journals!D20=journals!$H$9,4,IF(journals!D20=journals!$H$8,2,IF(journals!D20=journals!$H$7,2)))))","v":false}]
[13,{"$f":"IF(journals!D21=journals!$H$11,5,IF(journals!D21=journals!$H$10,4,IF(journals!D21=journals!$H$9,4,IF(journals!D21=journals!$H$8,2,IF(journals!D21=journals!$H$7,2)))))","v":false}]
[14,{"$f":"IF(journals!D22=journals!$H$11,5,IF(journals!D22=journals!$H$10,4,IF(journals!D22=journals!$H$9,4,IF(journals!D22=journals!$H$8,2,IF(journals!D22=journals!$H$7,2)))))","v":false}]
[15,{"$f":"IF(journals!D23=journals!$H$11,5,IF(journals!D23=journals!$H$10,4,IF(journals!D23=journals!$H$9,4,IF(journals!D23=journals!$H$8,2,IF(journals!D23=journals!$H$7,2)))))","v":false}]
[16,{"$f":"IF(journals!D24=journals!$H$11,5,IF(journals!D24=journals!$H$10,4,IF(journals!D24=journals!$H$9,4,IF(journals!D24=journals!$H$8,2,IF(journals!D24=journals!$H$7,2)))))","v":false}]
[17,{"$f":"IF(journals!D25=journals!$H$11,5,IF(journals!D25=journals!$H$10,4,IF(journals!D25=journals!$H$9,4,IF(journals!D25=journals!$H$8,2,IF(journals!D25=journals!$H$7,2)))))","v":false}]
[]
[null,{"$f":"SUM(B3:B19)","v":0}]

{"sheet":"masouliat","index":19,"n_rows":18,"n_cols":4,"rows_kept":18,"cut":false,"hidden":false,"merged":[]}
[]
[]
[1,{"$f":"IF(responsibility!D10=responsibility!$K$8,5,IF(responsibility!D10=responsibility!$K$9,2.5, IF(responsibility!D10=responsibility!$K$10,1,IF(responsibility!D10=responsibility!$K$11,0.5))))","v":false},null,{"$f":"IF(B18<=5,B18,IF(B18>5,5))","v":0}]
[2,{"$f":"IF(responsibility!D11=responsibility!$K$8,5,IF(responsibility!D11=responsibility!$K$9,2.5, IF(responsibility!D11=responsibility!$K$10,1,IF(responsibility!D11=responsibility!$K$11,0.5))))","v":false}]
[3,{"$f":"IF(responsibility!D12=responsibility!$K$8,5,IF(responsibility!D12=responsibility!$K$9,2.5, IF(responsibility!D12=responsibility!$K$10,1,IF(responsibility!D12=responsibility!$K$11,0.5))))","v":false}]
[4,{"$f":"IF(responsibility!D13=responsibility!$K$8,5,IF(responsibility!D13=responsibility!$K$9,2.5, IF(responsibility!D13=responsibility!$K$10,1,IF(responsibility!D13=responsibility!$K$11,0.5))))","v":false}]
[5,{"$f":"IF(responsibility!D14=responsibility!$K$8,5,IF(responsibility!D14=responsibility!$K$9,2.5, IF(responsibility!D14=responsibility!$K$10,1,IF(responsibility!D14=responsibility!$K$11,0.5))))","v":false}]
[6,{"$f":"IF(responsibility!D15=responsibility!$K$8,5,IF(responsibility!D15=responsibility!$K$9,2.5, IF(responsibility!D15=responsibility!$K$10,1,IF(responsibility!D15=responsibility!$K$11,0.5))))","v":false}]
[7,{"$f":"IF(responsibility!D16=responsibility!$K$8,5,IF(responsibility!D16=responsibility!$K$9,2.5, IF(responsibility!D16=responsibility!$K$10,1,IF(responsibility!D16=responsibility!$K$11,0.5))))","v":false}]
[8,{"$f":"IF(responsibility!D17=responsibility!$K$8,5,IF(responsibility!D17=responsibility!$K$9,2.5, IF(responsibility!D17=responsibility!$K$10,1,IF(responsibility!D17=responsibility!$K$11,0.5))))","v":false}]
[9,{"$f":"IF(responsibility!D18=responsibility!$K$8,5,IF(responsibility!D18=responsibility!$K$9,2.5, IF(responsibility!D18=responsibility!$K$10,1,IF(responsibility!D18=responsibility!$K$11,0.5))))","v":false}]
[10,{"$f":"IF(responsibility!D19=responsibility!$K$8,5,IF(responsibility!D19=responsibility!$K$9,2.5, IF(responsibility!D19=responsibility!$K$10,1,IF(responsibility!D19=responsibility!$K$11,0.5))))","v":false}]
[11,{"$f":"IF(responsibility!D20=responsibility!$K$8,5,IF(responsibility!D20=responsibility!$K$9,2.5, IF(responsibility!D20=responsibility!$K$10,1,IF(responsibility!D20=responsibility!$K$11,0.5))))","v":false}]
[12,{"$f":"IF(responsibility!D21=responsibility!$K$8,5,IF(responsibility!D21=responsibility!$K$9,2.5, IF(responsibility!D21=responsibility!$K$10,1,IF(responsibility!D21=responsibility!$K$11,0.5))))","v":false}]
[13,{"$f":"IF(responsibility!D22=responsibility!$K$8,5,IF(responsibility!D22=responsibility!$K$9,2.5, IF(responsibility!D22=responsibility!$K$10,1,IF(responsibility!D22=responsibility!$K$11,0.5))))","v":false}]
[14,{"$f":"IF(responsibility!D23=responsibility!$K$8,5,IF(responsibility!D23=responsibility!$K$9,2.5, IF(responsibility!D23=responsibility!$K$10,1,IF(responsibility!D23=responsibility!$K$11,0.5))))","v":false}]
[]
[null,{"$f":"SUM(B3:B16)","v":0}]

{"sheet":"karafariniii","index":20,"n_rows":25,"n_cols":4,"rows_kept":25,"cut":false,"hidden":false,"merged":[]}
[]
[]
[]
[1,{"$f":"IF(karafarini!D8=karafarini!$I$7,3,IF(karafarini!D8=karafarini!$I$8,5,IF(karafarini!D8=karafarini!$I$9,4)))","v":false},null,{"$f":"IF(B25<=8,B25,IF(B25>8,8))","v":0}]
[2,{"$f":"IF(karafarini!D9=karafarini!$I$7,3,IF(karafarini!D9=karafarini!$I$8,5,IF(karafarini!D9=karafarini!$I$9,4)))","v":false}]
[3,{"$f":"IF(karafarini!D10=karafarini!$I$7,3,IF(karafarini!D10=karafarini!$I$8,5,IF(karafarini!D10=karafarini!$I$9,4)))","v":false}]
[4,{"$f":"IF(karafarini!D11=karafarini!$I$7,3,IF(karafarini!D11=karafarini!$I$8,5,IF(karafarini!D11=karafarini!$I$9,4)))","v":false}]
[5,{"$f":"IF(karafarini!D12=karafarini!$I$7,3,IF(karafarini!D12=karafarini!$I$8,5,IF(karafarini!D12=karafarini!$I$9,4)))","v":false}]
[6,{"$f":"IF(karafarini!D13=karafarini!$I$7,3,IF(karafarini!D13=karafarini!$I$8,5,IF(karafarini!D13=karafarini!$I$9,4)))","v":false}]
[7,{"$f":"IF(karafarini!D14=karafarini!$I$7,3,IF(karafarini!D14=karafarini!$I$8,5,IF(karafarini!D14=karafarini!$I$9,4)))","v":false}]
[8,{"$f":"IF(karafarini!D15=karafarini!$I$7,3,IF(karafarini!D15=karafarini!$I$8,5,IF(karafarini!D15=karafarini!$I$9,4)))","v":false}]
[9,{"$f":"IF(karafarini!D16=karafarini!$I$7,3,IF(karafarini!D16=karafarini!$I$8,5,IF(karafarini!D16=karafarini!$I$9,4)))","v":false}]
[10,{"$f":"IF(karafarini!D17=karafarini!$I$7,3,IF(karafarini!D17=karafarini!$I$8,5,IF(karafarini!D17=karafarini!$I$9,4)))","v":false}]
[11,{"$f":"IF(karafarini!D18=karafarini!$I$7,3,IF(karafarini!D18=karafarini!$I$8,5,IF(karafarini!D18=karafarini!$I$9,4)))","v":false}]
[12,{"$f":"IF(karafarini!D19=karafarini!$I$7,3,IF(karafarini!D19=karafarini!$I$8,5,IF(karafarini!D19=karafarini!$I$9,4)))","v":false}]
[13,{"$f":"IF(karafarini!D20=karafarini!$I$7,3,IF(karafarini!D20=karafarini!$I$8,5,IF(karafarini!D20=karafarini!$I$9,4)))","v":false}]
[14,{"$f":"IF(karafarini!D21=karafarini!$I$7,3,IF(karafarini!D21=karafarini!$I$8,5,IF(karafarini!D21=karafarini!$I$9,4)))","v":false}]
[15,{"$f":"IF(karafarini!D22=karafarini!$I$7,3,IF(karafarini!D22=karafarini!$I$8,5,IF(karafarini!D22=karafarini!$I$9,4)))","v":false}]
[16,{"$f":"IF(karafarini!D23=karafarini!$I$7,3,IF(karafarini!D23=karafarini!$I$8,5,IF(karafarini!D23=karafarini!$I$9,4)))","v":false}]
[17,{"$f":"IF(karafarini!D24=karafarini!$I$7,3,IF(karafarini!D24=karafarini!$I$8,5,IF(karafarini!D24=karafarini!$I$9,4)))","v":false}]
[18,{"$f":"IF(karafarini!D25=karafarini!$I$7,3,IF(karafarini!D25=karafarini!$I$8,5,IF(karafarini!D25=karafarini!$I$9,4)))","v":false}]
[19,{"$f":"IF(karafarini!D26=karafarini!$I$7,3,IF(karafarini!D26=karafarini!$I$8,5,IF(karafarini!D26=karafarini!$I$9,4)))","v":false}]
[20,{"$f":"IF(karafarini!D27=karafarini!$I$7,3,IF(karafarini!D27=karafarini!$I$8,5,IF(karafarini!D27=karafarini!$I$9,4)))","v":false}]
[]
[null,{"$f":"SUM(B4:B23)","v":0}]

{"sheet":"Rahnama","index":21,"n_rows":58,"n_cols":4,"rows_kept":58,"cut":false,"hidden":false,"merged":[]}
[]
[]
[]
[1,{"$f":"IF(supervisor!D7=supervisor!$I$5,0.5,IF(supervisor!D7=supervisor!$I$6,0.25,IF(supervisor!D7=supervisor!$I$7,0.75,IF(supervisor!D7=supervisor!$I$8,0.5))))","v":false},null,{"$f":"IF(B58<=5,B58,IF(B58>5,5))","v":0}]
[2,{"$f":"IF(supervisor!D8=supervisor!$I$5,0.5,IF(supervisor!D8=supervisor!$I$6,0.25,IF(supervisor!D8=supervisor!$I$7,0.75,IF(supervisor!D8=supervisor!$I$8,0.5))))","v":false}]
[3,{"$f":"IF(supervisor!D9=supervisor!$I$5,0.5,IF(supervisor!D9=supervisor!$I$6,0.25,IF(supervisor!D9=supervisor!$I$7,0.75,IF(supervisor!D9=supervisor!$I$8,0.5))))","v":false}]
[4,{"$f":"IF(supervisor!D10=supervisor!$I$5,0.5,IF(supervisor!D10=supervisor!$I$6,0.25,IF(supervisor!D10=supervisor!$I$7,0.75,IF(supervisor!D10=supervisor!$I$8,0.5))))","v":false}]
[5,{"$f":"IF(supervisor!D11=supervisor!$I$5,0.5,IF(supervisor!D11=supervisor!$I$6,0.25,IF(supervisor!D11=supervisor!$I$7,0.75,IF(supervisor!D11=supervisor!$I$8,0.5))))","v":false}]
[6,{"$f":"IF(supervisor!D12=supervisor!$I$5,0.5,IF(supervisor!D12=supervisor!$I$6,0.25,IF(supervisor!D12=supervisor!$I$7,0.75,IF(supervisor!D12=supervisor!$I$8,0.5))))","v":false}]
[7,{"$f":"IF(supervisor!D13=supervisor!$I$5,0.5,IF(supervisor!D13=supervisor!$I$6,0.25,IF(supervisor!D13=supervisor!$I$7,0.75,IF(supervisor!D13=supervisor!$I$8,0.5))))","v":false}]
[8,{"$f":"IF(supervisor!D14=supervisor!$I$5,0.5,IF(supervisor!D14=supervisor!$I$6,0.25,IF(supervisor!D14=supervisor!$I$7,0.75,IF(supervisor!D14=supervisor!$I$8,0.5))))","v":false}]
[9,{"$f":"IF(supervisor!D15=supervisor!$I$5,0.5,IF(supervisor!D15=supervisor!$I$6,0.25,IF(supervisor!D15=supervisor!$I$7,0.75,IF(supervisor!D15=supervisor!$I$8,0.5))))","v":false}]
[10,{"$f":"IF(supervisor!D16=supervisor!$I$5,0.5,IF(supervisor!D16=supervisor!$I$6,0.25,IF(supervisor!D16=supervisor!$I$7,0.75,IF(supervisor!D16=supervisor!$I$8,0.5))))","v":false}]
[11,{"$f":"IF(supervisor!D17=supervisor!$I$5,0.5,IF(supervisor!D17=supervisor!$I$6,0.25,IF(supervisor!D17=supervisor!$I$7,0.75,IF(supervisor!D17=supervisor!$I$8,0.5))))","v":false}]
[12,{"$f":"IF(supervisor!D18=supervisor!$I$5,0.5,IF(supervisor!D18=supervisor!$I$6,0.25,IF(supervisor!D18=supervisor!$I$7,0.75,IF(supervisor!D18=supervisor!$I$8,0.5))))","v":false}]
[13,{"$f":"IF(supervisor!D19=supervisor!$I$5,0.5,IF(supervisor!D19=supervisor!$I$6,0.25,IF(supervisor!D19=supervisor!$I$7,0.75,IF(supervisor!D19=supervisor!$I$8,0.5))))","v":false}]
[14,{"$f":"IF(supervisor!D20=supervisor!$I$5,0.5,IF(supervisor!D20=supervisor!$I$6,0.25,IF(supervisor!D20=supervisor!$I$7,0.75,IF(supervisor!D20=supervisor!$I$8,0.5))))","v":false}]
[15,{"$f":"IF(supervisor!D21=supervisor!$I$5,0.5,IF(supervisor!D21=supervisor!$I$6,0.25,IF(supervisor!D21=supervisor!$I$7,0.75,IF(supervisor!D21=supervisor!$I$8,0.5))))","v":false}]
[16,{"$f":"IF(supervisor!D22=supervisor!$I$5,0.5,IF(supervisor!D22=supervisor!$I$6,0.25,IF(supervisor!D22=supervisor!$I$7,0.75,IF(supervisor!D22=supervisor!$I$8,0.5))))","v":false}]
[17,{"$f":"IF(supervisor!D23=supervisor!$I$5,0.5,IF(supervisor!D23=supervisor!$I$6,0.25,IF(supervisor!D23=supervisor!$I$7,0.75,IF(supervisor!D23=supervisor!$I$8,0.5))))","v":false}]
[18,{"$f":"IF(supervisor!D24=supervisor!$I$5,0.5,IF(supervisor!D24=supervisor!$I$6,0.25,IF(supervisor!D24=supervisor!$I$7,0.75,IF(supervisor!D24=supervisor!$I$8,0.5))))","v":false}]
[19,{"$f":"IF(supervisor!D25=supervisor!$I$5,0.5,IF(supervisor!D25=supervisor!$I$6,0.25,IF(supervisor!D25=supervisor!$I$7,0.75,IF(supervisor!D25=supervisor!$I$8,0.5))))","v":false}]
[20,{"$f":"IF(supervisor!D26=supervisor!$I$5,0.5,IF(supervisor!D26=supervisor!$I$6,0.25,IF(supervisor!D26=supervisor!$I$7,0.75,IF(supervisor!D26=supervisor!$I$8,0.5))))","v":false}]
[21,{"$f":"IF(supervisor!D27=supervisor!$I$5,0.5,IF(supervisor!D27=supervisor!$I$6,0.25,IF(supervisor!D27=supervisor!$I$7,0.75,IF(supervisor!D27=supervisor!$I$8,0.5))))","v":false}]
[22,{"$f":"IF(supervisor!D28=supervisor!$I$5,0.5,IF(supervisor!D28=supervisor!$I$6,0.25,IF(supervisor!D28=supervisor!$I$7,0.75,IF(supervisor!D28=supervisor!$I$8,0.5))))","v":false}]
[23,{"$f":"IF(supervisor!D29=supervisor!$I$5,0.5,IF(supervisor!D29=supervisor!$I$6,0.25,IF(supervisor!D29=supervisor!$I$7,0.75,IF(supervisor!D29=supervisor!$I$8,0.5))))","v":false}]
[24,{"$f":"IF(supervisor!D30=supervisor!$I$5,0.5,IF(supervisor!D30=supervisor!$I$6,0.25,IF(supervisor!D30=supervisor!$I$7,0.75,IF(supervisor!D30=supervisor!$I$8,0.5))))","v":false}]
[25,{"$f":"IF(supervisor!D31=supervisor!$I$5,0.5,IF(supervisor!D31=supervisor!$I$6,0.25,IF(supervisor!D31=supervisor!$I$7,0.75,IF(supervisor!D31=supervisor!$I$8,0.5))))","v":false}]
[26,{"$f":"IF(supervisor!D32=supervisor!$I$5,0.5,IF(supervisor!D32=supervisor!$I$6,0.25,IF(supervisor!D32=supervisor!$I$7,0.75,IF(supervisor!D32=supervisor!$I$8,0.5))))","v":false}]
[27,{"$f":"IF(supervisor!D33=supervisor!$I$5,0.5,IF(supervisor!D33=supervisor!$I$6,0.25,IF(supervisor!D33=supervisor!$I$7,0.75,IF(supervisor!D33=supervisor!$I$8,0.5))))","v":false}]
[28,{"$f":"IF(supervisor!D34=supervisor!$I$5,0.5,IF(supervisor!D34=supervisor!$I$6,0.25,IF(supervisor!D34=supervisor!$I$7,0.75,IF(supervisor!D34=supervisor!$I$8,0.5))))","v":false}]
[29,{"$f":"IF(supervisor!D35=supervisor!$I$5,0.5,IF(supervisor!D35=supervisor!$I$6,0.25,IF(supervisor!D35=supervisor!$I$7,0.75,IF(supervisor!D35=supervisor!$I$8,0.5))))","v":false}]
[30,{"$f":"IF(supervisor!D36=supervisor!$I$5,0.5,IF(supervisor!D36=supervisor!$I$6,0.25,IF(supervisor!D36=supervisor!$I$7,0.75,IF(supervisor!D36=supervisor!$I$8,0.5))))","v":false}]
[31,{"$f":"IF(supervisor!D37=supervisor!$I$5,0.5,IF(supervisor!D37=supervisor!$I$6,0.25,IF(supervisor!D37=supervisor!$I$7,0.75,IF(supervisor!D37=supervisor!$I$8,0.5))))","v":false}]
[32,{"$f":"IF(supervisor!D38=supervisor!$I$5,0.5,IF(supervisor!D38=supervisor!$I$6,0.25,IF(supervisor!D38=supervisor!$I$7,0.75,IF(supervisor!D38=supervisor!$I$8,0.5))))","v":false}]
[33,{"$f":"IF(supervisor!D39=supervisor!$I$5,0.5,IF(supervisor!D39=supervisor!$I$6,0.25,IF(supervisor!D39=supervisor!$I$7,0.75,IF(supervisor!D39=supervisor!$I$8,0.5))))","v":false}]
[34,{"$f":"IF(supervisor!D40=supervisor!$I$5,0.5,IF(supervisor!D40=supervisor!$I$6,0.25,IF(supervisor!D40=supervisor!$I$7,0.75,IF(supervisor!D40=supervisor!$I$8,0.5))))","v":false}]
[35,{"$f":"IF(supervisor!D41=supervisor!$I$5,0.5,IF(supervisor!D41=supervisor!$I$6,0.25,IF(supervisor!D41=supervisor!$I$7,0.75,IF(supervisor!D41=supervisor!$I$8,0.5))))","v":false}]
[36,{"$f":"IF(supervisor!D42=supervisor!$I$5,0.5,IF(supervisor!D42=supervisor!$I$6,0.25,IF(supervisor!D42=supervisor!$I$7,0.75,IF(supervisor!D42=supervisor!$I$8,0.5))))","v":false}]
[37,{"$f":"IF(supervisor!D43=supervisor!$I$5,0.5,IF(supervisor!D43=supervisor!$I$6,0.25,IF(supervisor!D43=supervisor!$I$7,0.75,IF(supervisor!D43=supervisor!$I$8,0.5))))","v":false}]
[38,{"$f":"IF(supervisor!D44=supervisor!$I$5,0.5,IF(supervisor!D44=supervisor!$I$6,0.25,IF(supervisor!D44=supervisor!$I$7,0.75,IF(supervisor!D44=supervisor!$I$8,0.5))))","v":false}]
[39,{"$f":"IF(supervisor!D45=supervisor!$I$5,0.5,IF(supervisor!D45=supervisor!$I$6,0.25,IF(supervisor!D45=supervisor!$I$7,0.75,IF(supervisor!D45=supervisor!$I$8,0.5))))","v":false}]
[40,{"$f":"IF(supervisor!D46=supervisor!$I$5,0.5,IF(supervisor!D46=supervisor!$I$6,0.25,IF(supervisor!D46=supervisor!$I$7,0.75,IF(supervisor!D46=supervisor!$I$8,0.5))))","v":false}]
[41,{"$f":"IF(supervisor!D47=supervisor!$I$5,0.5,IF(supervisor!D47=supervisor!$I$6,0.25,IF(supervisor!D47=supervisor!$I$7,0.75,IF(supervisor!D47=supervisor!$I$8,0.5))))","v":false}]
[42,{"$f":"IF(supervisor!D48=supervisor!$I$5,0.5,IF(supervisor!D48=supervisor!$I$6,0.25,IF(supervisor!D48=supervisor!$I$7,0.75,IF(supervisor!D48=supervisor!$I$8,0.5))))","v":false}]
[43,{"$f":"IF(supervisor!D49=supervisor!$I$5,0.5,IF(supervisor!D49=supervisor!$I$6,0.25,IF(supervisor!D49=supervisor!$I$7,0.75,IF(supervisor!D49=supervisor!$I$8,0.5))))","v":false}]
[44,{"$f":"IF(supervisor!D50=supervisor!$I$5,0.5,IF(supervisor!D50=supervisor!$I$6,0.25,IF(supervisor!D50=supervisor!$I$7,0.75,IF(supervisor!D50=supervisor!$I$8,0.5))))","v":false}]
[45,{"$f":"IF(supervisor!D51=supervisor!$I$5,0.5,IF(supervisor!D51=supervisor!$I$6,0.25,IF(supervisor!D51=supervisor!$I$7,0.75,IF(supervisor!D51=supervisor!$I$8,0.5))))","v":false}]
[46,{"$f":"IF(supervisor!D52=supervisor!$I$5,0.5,IF(supervisor!D52=supervisor!$I$6,0.25,IF(supervisor!D52=supervisor!$I$7,0.75,IF(supervisor!D52=supervisor!$I$8,0.5))))","v":false}]
[47,{"$f":"IF(supervisor!D53=supervisor!$I$5,0.5,IF(supervisor!D53=supervisor!$I$6,0.25,IF(supervisor!D53=supervisor!$I$7,0.75,IF(supervisor!D53=supervisor!$I$8,0.5))))","v":false}]
[48,{"$f":"IF(supervisor!D54=supervisor!$I$5,0.5,IF(supervisor!D54=supervisor!$I$6,0.25,IF(supervisor!D54=supervisor!$I$7,0.75,IF(supervisor!D54=supervisor!$I$8,0.5))))","v":false}]
[49,{"$f":"IF(supervisor!D55=supervisor!$I$5,0.5,IF(supervisor!D55=supervisor!$I$6,0.25,IF(supervisor!D55=supervisor!$I$7,0.75,IF(supervisor!D55=supervisor!$I$8,0.5))))","v":false}]
[50,{"$f":"IF(supervisor!D56=supervisor!$I$5,0.5,IF(supervisor!D56=supervisor!$I$6,0.25,IF(supervisor!D56=supervisor!$I$7,0.75,IF(supervisor!D56=supervisor!$I$8,0.5))))","v":false}]
[51,{"$f":"IF(supervisor!D57=supervisor!$I$5,0.5,IF(supervisor!D57=supervisor!$I$6,0.25,IF(supervisor!D57=supervisor!$I$7,0.75,IF(supervisor!D57=supervisor!$I$8,0.5))))","v":false}]
[52,{"$f":"IF(supervisor!D58=supervisor!$I$5,0.5,IF(supervisor!D58=supervisor!$I$6,0.25,IF(supervisor!D58=supervisor!$I$7,0.75,IF(supervisor!D58=supervisor!$I$8,0.5))))","v":false}]
[53,{"$f":"IF(supervisor!D59=supervisor!$I$5,0.5,IF(supervisor!D59=supervisor!$I$6,0.25,IF(supervisor!D59=supervisor!$I$7,0.75,IF(supervisor!D59=supervisor!$I$8,0.5))))","v":false}]
[]
[null,{"$f":"SUM(B4:B56)","v":0}]

{"sheet":"H index","index":22,"n_rows":4,"n_cols":2,"rows_kept":4,"cut":false,"hidden":false,"merged":[]}
[]
["H index",{"$f":"IF(Moshakhasat!B36=Moshakhasat!F30,0,IF(Moshakhasat!B36=Moshakhasat!F31,0.2,IF(Moshakhasat!B36=Moshakhasat!F32,0.4,IF(Moshakhasat!B36=Moshakhasat!F33,0.6,IF(Moshakhasat!B36=Moshakhasat!F34,0.8,IF(Moshakhasat!B36=Moshakhasat!F35,1,IF(Moshakhasat!B36=Moshakhasat!F36,1.2,IF(Moshakhasat!B36=Moshakhasat!F37,1.4,IF(Moshakhasat!B36=Moshakhasat!F38,1.6,IF(Moshakhasat!B36=Moshakhasat!F39,1.8,IF(Moshakhasat!B36=Moshakhasat!F40,2,IF(Moshakhasat!B36=Moshakhasat!F41,2.25,IF(Moshakhasat!B36=Moshakhasat!F42,2.5,IF(Moshakhasat!B36=Moshakhasat!F43,2.75,IF(Moshakhasat!B36=Moshakhasat!F44,3,IF(Moshakhasat!B36=Moshakhasat!F45,3.25,IF(Moshakhasat!B36=Moshakhasat!F46,3.5,IF(Moshakhasat!B36=Moshakhasat!F47,3.75,IF(Moshakhasat!B36=Moshakhasat!F48,4,IF(Moshakhasat!B36=Moshakhasat!F49,4.25,IF(Moshakhasat!B36=Moshakhasat!F50,4.5,IF(Moshakhasat!B36=Moshakhasat!F51,4.75,IF(Moshakhasat!B36=Moshakhasat!F52,5)))))))))))))))))))))))","v":0}]
[]
["Ozviyat",{"$f":"IF(Moshakhasat!B40=Moshakhasat!$H$35,5, IF(Moshakhasat!B40=Moshakhasat!$H$36,5,IF(Moshakhasat!B40=Moshakhasat!$H$37,0.5,IF(Moshakhasat!B40=Moshakhasat!$H$38,0))))","v":false}]

{"sheet":"total","index":23,"n_rows":2,"n_cols":3,"rows_kept":2,"cut":false,"hidden":false,"merged":[]}
["نمره رزومه","نمره اختصاصی","نمره کل"]
[{"$f":"(maghale!I2)+(ebda!E2)+(ketab!D3)+(tarh!G2)+(hamayesh!E3)+(majaleh!D3)+(masouliat!D3)+(karafariniii!D4)+(Rahnama!D4)+('H index'!B2)+('H index'!B4)","v":0},null,{"$f":"((A2*0.3)+(B2*0.7))","v":0}]

{"sheet":"sum","index":24,"n_rows":49,"n_cols":5,"rows_kept":49,"cut":false,"hidden":false,"merged":[]}
[null,null,null,"خلاصه موضوعات/ فعالیت های پژوهشی"]
[null,null,null,{"$f":"Moshakhasat!#REF!","v":{"$error":"#REF!"}}]
[null,null,null,{"$f":"Moshakhasat!#REF!","v":{"$error":"#REF!"}}]
[null,null,null,{"$f":"Moshakhasat!#REF!","v":{"$error":"#REF!"}}]
[null,null,null,{"$f":"Moshakhasat!#REF!","v":{"$error":"#REF!"}}]
[null,null,null,"تعداد شرکت در همایش"]
[null,null,null,"ارائه به صورت سخنرانی"]
[null,null,null,{"$f":"COUNTIF(conference!C5:C104,conference!K2)","v":0}]
[null,null,null,"ارائه به صورت پوستر"]
[null,null,null,{"$f":"COUNTIF(conference!C5:C104,conference!K3)","v":0}]
[null,null,null,"تعداد اختراع"]
[null,null,null,"ثبت داخلی"]
[null,null,null,{"$f":"COUNTIF(inovation!C6:C10,inovation!M3)","v":0}]
[null,null,null,"ثبت خارجی"]
[null,null,null,{"$f":"COUNTIF(inovation!C6:C10,inovation!M4)","v":0}]
[null,null,null,"تعداد داوری"]
[null,null,null,"مجله"]
[null,null,null,{"$f":"SUM(#REF!)","v":{"$error":"#REF!"}}]
[null,null,null,"همایش"]
[null,null,null,{"$f":"SUM(#REF!)","v":{"$error":"#REF!"}}]
[null,null,null,"تعداد کتاب"]
[null,null,null,"تالیف"]
[null,null,null,{"$f":"COUNTIF(book!C5:C15,book!N4)","v":0}]
[null,null,null,"ترجمه"]
[null,null,null,{"$f":"COUNTIF(book!C5:C15,book!M5)","v":0}]
[null,null,null,"تعداد مقالات چاپ شده"]
[null,null,null,"انگلیسی"]
[null,null,null,{"$f":"COUNTIF(Article!#REF!,Article!R8)","v":{"$error":"#REF!"}}]
[null,null,null,"فارسی"]
[null,null,null,{"$f":"COUNTIF(Article!#REF!,Article!R7)","v":{"$error":"#REF!"}}]
[null,null,null,"تعداد طرح پژوهشی"]
[null,null,null,"مجری"]
[null,null,null,{"$f":"COUNTIF(proposal!E5:E38,proposal!N3)","v":0}]
[null,null,null,"همکار"]
[null,null,null,{"$f":"COUNTIF(proposal!E8:E380,proposal!N4)","v":0}]
[null,null,null,"امتیازات"]
[null,null,{"$f":"SUM(Article!I:I)","v":0},"امتیاز مقالات","محاسبه خودکار امتیاز مقالات به تکمیل ستون Affiliation حساس است."]
[null,null,{"$f":"2*SUM(Article!#REF!)","v":{"$error":"#REF!"}},"امتیاز استنادات","محاسبه بصورت خودکار انجام می شود."]
[null,null,{"$f":"COUNTIFS(conference!C5:C104,conference!$K$3,conference!E5:E104,conference!$L$5,conference!H5:H104,conference!$M$2)*10+COUNTIFS(conference!C5:C104,conference!$K$2,conference!E5:E104,conference!$L$5,conference!H5:H104,conference!$M$2)*7+COUNTIFS(conference!E5:E104,conference!$L$5,conference!H5:H104,conference!$M$3)*5+COUNTIFS(conference!C5:C104,conference!$K$3,conference!E5:E104,conference!$L$4,conference!H5:H104,conference!$M$2)*10*0.9+COUNTIFS(conference!C5:C104,conference!$K$2,conference!E5:E104,conference!$L$4,conference!H5:H104,conference!$M$2)*7*0.9+COUNTIFS(conference!E5:E104,conference!$L$4,conference!H5:H104,conference!$M$3)*5*0.9+COUNTIFS(conference!C5:C104,conference!$K$3,conference!E5:E104,conference!$L$3,conference!H5:H104,conference!$M$2)*10*0.6+COUNTIFS(conference!C5:C104,conference!$K$2,conference!E5:E104,conference!$L$3,conference!H5:H104,conference!$M$2)*7*0.6+COUNTIFS(conference!E5:E104,conference!$L$3,conference!H5:H104,conference!$M$3)*5*0.6+COUNTIFS(conference!C5:C104,conference!$K$3,conference!E5:E104,conference!$L$2,conference!H5:H104,conference!$M$2)*10*0.5+COUNTIFS(conference!C5:C104,conference!$K$2,conference!E5:E104,conference!$L$2,conference!H5:H104,conference!$M$2)*7*0.5+COUNTIFS(conference!E5:E104,conference!$L$2,conference!H5:H104,conference!$M$3)*5*0.5","v":0},"امتیاز همایش","محاسبه خودکار؛ عدم ارائه مستندات به منزله چاپ خلاصه مقاله به تنهایی است."]
[null,null,{"$f":"COUNTIFS(inovation!C6:C10,inovation!$M$4,inovation!J6:J10,inovation!$O$3)*100+COUNTIFS(inovation!C6:C10,inovation!$M$3,inovation!J6:J10,inovation!$O$3)*20","v":0},"امتیاز اختراع","محاسبه خودکار؛ عدم ارائه مستندات (مستندات=ندارم) به منزله امتیاز صفر است."]
[null,null,null,"امتیاز کتاب","بصورت دستی محاسبه شود."]
[null,null,null,"امتیاز طرح ها","بصورت دستی محاسبه شود."]
[null,null,null,"امتیاز پایان نامه","بصورت دستی محاسبه شود."]
[null,null,{"$f":"SUM(#REF!)","v":{"$error":"#REF!"}},"امتیاز داوری علمی مجلات","محاسبه بصورت خودکار انجام می شود."]
[null,null,{"$f":"SUM(#REF!)","v":{"$error":"#REF!"}},"امتیاز داوری در همایش ها","محاسبه بصورت خودکار انجام می شود."]
[null,null,null,"امتیاز فعالیت آموزش مرتبط با پژوهش","بصورت دستی محاسبه شود."]
[null,null,null,"امتیاز جشنواره های دانشگاهی","بصورت دستی محاسبه شود."]
[null,null,null,"امتیاز جشنواره های علمی","بصورت دستی محاسبه شود."]
[null,null,{"$f":"SUM(C37:C48)","v":{"$error":"#REF!"}},"جمع کل امتیازات"]